Workbook

Sheet FICHA
B1: SEGUIMIENTO AL CUMPLIMIENTO DE REGLAS FISCALES DE LOS GOBIERNOS REGIONALES Y GOBIERNOS LOCALES 4T 2021 1/
B3: DEPARTAMENTO
B4: PROVINCIA
B5: ENTIDAD
B7: R1: Regla Fiscal de Saldo de Deuda Total | D7: =IFERROR( VLOOKUP($C$19,REGLAS!$A$1:$S$1901,14,FALSE)," ") ->  | E7: R2: Regla Fiscal de Ahorro en Cuenta Corriente | G7: =IFERROR( VLOOKUP($C$19,REGLAS!$A$1:$S$1901,19,FALSE)," ") -> 
B8: Saldo de Deuda Total | C8: =IFERROR( VLOOKUP($C$19,REGLAS!$A$1:$S$1901,6,FALSE), " ") ->  | D8: Miles | E8: Ingreso Corriente Total - ICT | F8: =IFERROR( VLOOKUP($C$19,REGLAS!$A$1:$S$1901,16,FALSE), " " ) ->  | G8: Miles
B9: Prom. ICT | C9: =IFERROR( VLOOKUP($C$19,REGLAS!$A$1:$S$1901,8,FALSE), " ") ->  | D9: Miles | E9: Gasto Corriente Total - GCT | F9: =IFERROR( VLOOKUP($C$19,REGLAS!$A$1:$S$1901,17,FALSE), " " ) ->  | G9: Miles
B10: Límite Ley N° 29230 2/ | C10: =IFERROR( VLOOKUP($C$19,REGLAS!$A$1:$S$1901,9,FALSE), " ") ->  | D10: Miles | E10: Ahorro en Cuenta Corriente - ACC | F10: =IFERROR( VLOOKUP($C$19,REGLAS!$A$1:$S$1901,18,FALSE), " ") ->  | G10: Miles
B12: SDT/Prom. ICT | C12: =IFERROR( VLOOKUP($C$19,REGLAS!$A$1:$S$1901,12,FALSE), " ") ->  | D12: Porcentaje
L20: Zona de riesgo
L21: limite1 | M21: limite2 | N21: valor | P21: ICT | Q21: =IFERROR( VLOOKUP($C$19,REGLAS!$A$1:$S$1901,15,FALSE), " " ) -> 
L22: 0.8 | M22: 0.8 | N22: 0.8 | P22: GCT | Q22: =IFERROR( VLOOKUP($C$19,REGLAS!$A$1:$S$1901,16,FALSE), " " ) -> 
L23: 1 | M23: 1 | N23: 1 | P23: ACC | Q23: =IFERROR( VLOOKUP($C$19,REGLAS!$A$1:$S$1901,17,FALSE), " ") -> 
M24: =C12/100 -> 
P25: ICT | Q25: GCT | R25: ACC
P26: 0 | Q26: 0 | R26: 0 | S26: 0
P27: 0 | Q27: 0 | R27: 0
P28: =IFERROR( VLOOKUP($C$19,REGLAS!$A$1:$S$1901,16,FALSE), " " ) ->  | Q28: =IFERROR( VLOOKUP($C$19,REGLAS!$A$1:$S$1901,17,FALSE), " " ) ->  | R28: =IFERROR( VLOOKUP($C$19,REGLAS!$A$1:$S$1901,18,FALSE), " ") -> 
B30: 1/ El Decreto Legislativo 1275, que aprueba el Marco de la Responsabilidad y Transparencia Fiscal de los Gobiernos Regionales y Gobiernos Locales, deroga la Ley N° 30099, dejando sin efecto las reglas fiscales establecidas en el literal a) y b) del artículo 7°, así como las medidas correctivas establecidas en el numeral 8.4 del artículo 8° de la LFRTF y las metas de convergencia; en adelante se aplicará lo establecido en el artículo 6° de dicho Decreto Legislativo.
B31: 2/ Corresponde a la suma de los flujos transferidos por concepto de Recursos Determinados provenientes de Canon, Sobrecanon, Regalías, Renta de Aduanas y Participaciones de los años 2019 y 2020, más el tope presupuestal por el mismo concepto incluido en el Presupuesto Institucional de Apertura 2021, aprobado mediante Ley N° 31084, Ley de Presupuesto del Sector Público para el Año Fiscal 2021. Información remitida a través de Memorando N° 288-2021-EF/50.03 por la Dirección General de Presupuesto Público del Ministerio de Economía y Finanzas.
B32: Nota:El Saldo de Deuda Total está compuesto por el Saldo de Pasivos, la Deuda Exigible con entidades del Estado y la Deuda Real con las Administradoras Privadas de Fondos de Pensiones (AFP). La información disponible del Saldo de Pasivos es al cuarto trimestre de 2021, la Deuda Exigible con entidades del Estado es a diciembre 2021 y la Deuda Real con las AFP es a octubre de 2021.
B33: Fuente: SICON-MEF, SIAF-MEF, SUNAT, SBS y AFP.

Sheet Anexo_GR
B1: Anexo N° 5: Seguimiento al Cumplimiento de las Reglas Fiscales Subnacionales 4T2021
B3: Gobiernos Regionales
B5: N° | C5: UBIGEO | D5: Gobiernos Regional | E5: R1: Regla Fiscal de Saldo de Deuda Total | K5: R2: Regla Fiscal de Ahorro en Cuenta Corriente
E6: 4T2021 | K6: 4T2021
E7: S/ Miles | H7: SDT/ICT Prom % | I7: Cumple R1 | K7: S/ Miles | N7: Cumple R2
E8: Saldo de Deuda Total 1/ | F8: ICT Prom 2/ | G8: Límite Ley N° 29230 3/ | K8: Ingreso Corriente Total | L8: Gasto Corriente Total | M8: Ahorro en Cuenta Corriente
B9: 1 | C9: 010000 | D9: AMAZONAS | E9: 348936.1528 | F9: 781864.4343 | G9: 5.026 | H9: 44.62872814 | I9: Cumple | K9: 968007.0618 | L9: 893247.3524 | M9: 74759.70937 | N9: Cumple
B10: 2 | C10: 020000 | D10: ANCASH | E10: 396049.167 | F10: 1816128.667 | G10: 589842.1083 | H10: 21.80732974 | I10: Cumple | K10: 2051597.463 | L10: 1838877.213 | M10: 212720.2504 | N10: Cumple
B11: 3 | C11: 030000 | D11: APURIMAC | E11: 633713.3611 | F11: 939069.2501 | G11: 101632.6664 | H11: 67.48313408 | I11: Cumple | K11: 1106392.556 | L11: 994052.0093 | M11: 112340.5464 | N11: Cumple
B12: 4 | C12: 040000 | D12: AREQUIPA | E12: 593486.5236 | F12: 1689033.693 | G12: 349255.1243 | H12: 35.13763674 | I12: Cumple | K12: 2039425.368 | L12: 1783296.807 | M12: 256128.5602 | N12: Cumple
B13: 5 | C13: 050000 | D13: AYACUCHO | E13: 581657.3043 | F13: 1276366.88 | G13: 75594.97469 | H13: 45.5713254 | I13: Cumple | K13: 1464197.559 | L13: 1350266.631 | M13: 113930.9282 | N13: Cumple
B14: 6 | C14: 060000 | D14: CAJAMARCA | E14: 1481044.507 | F14: 2103896.396 | G14: 93138.53573 | H14: 70.39531556 | I14: Cumple | K14: 2509341.694 | L14: 2356220.287 | M14: 153121.4073 | N14: Cumple
B15: 7 | C15: 070000 | D15: CALLAO | E15: 521761.8667 | F15: 1097186.099 | G15: 691719.104 | H15: 47.55454587 | I15: Cumple | K15: 1233019.106 | L15: 1069641.921 | M15: 163377.1841 | N15: Cumple
B16: 8 | C16: 080000 | D16: CUSCO | E16: 476370.6456 | F16: 2120223.4 | G16: 846825.5172 | H16: 22.46794586 | I16: Cumple | K16: 2541983.091 | L16: 2011009.112 | M16: 530973.9789 | N16: Cumple
B17: 9 | C17: 090000 | D17: HUANCAVELICA | E17: 210406.6301 | F17: 917784.2371 | G17: 83305.43719 | H17: 22.92550053 | I17: Cumple | K17: 1023706.197 | L17: 939931.3284 | M17: 83774.86879 | N17: Cumple
B18: 10 | C18: 100000 | D18: HUANUCO | E18: 113903.4203 | F18: 1118760.744 | G18: 3839.94051 | H18: 10.18121353 | I18: Cumple | K18: 1315575.507 | L18: 1232590.324 | M18: 82985.18334 | N18: Cumple
B19: 11 | C19: 110000 | D19: ICA | E19: 144718.3224 | F19: 1080411.381 | G19: 144741.8595 | H19: 13.3947425 | I19: Cumple | K19: 1288028.809 | L19: 1150169.606 | M19: 137859.2033 | N19: Cumple
B20: 12 | C20: 120000 | D20: JUNIN | E20: 375618.5383 | F20: 1743302.475 | G20: 47945.85105 | H20: 21.54637784 | I20: Cumple | K20: 2065814.188 | L20: 2005270.999 | M20: 60543.18886 | N20: Cumple
B21: 13 | C21: 130000 | D21: LA LIBERTAD | E21: 1203037.266 | F21: 2006172.416 | G21: 144812.8965 | H21: 59.96679329 | I21: Cumple | K21: 2294878.731 | L21: 2193478.445 | M21: 101400.2858 | N21: Cumple
B22: 14 | C22: 140000 | D22: LAMBAYEQUE | E22: 439732.2862 | F22: 1168291.616 | G22: 13.0974 | H22: 37.63891481 | I22: Cumple | K22: 1340308.116 | L22: 1282970.787 | M22: 57337.32986 | N22: Cumple
B23: 15 | C23: 150000 | D23: LIMA | E23: 163787.9196 | F23: 1249827.037 | G23: 122843.5422 | H23: 13.10484689 | I23: Cumple | K23: 1425516.44 | L23: 1354942.662 | M23: 70573.77716 | N23: Cumple
B24: 16 | C24: 160000 | D24: LORETO | E24: 616132.2968 | F24: 1887934.663 | G24: 164515.312 | H24: 32.63525528 | I24: Cumple | K24: 2195728.155 | L24: 1804871.747 | M24: 390856.4082 | N24: Cumple
B25: 17 | C25: 170000 | D25: MADRE DE DIOS | E25: 27558.28187 | F25: 288614.2945 | G25: 902.73967 | H25: 9.548481278 | I25: Cumple | K25: 365380.453 | L25: 313045.4451 | M25: 52335.00792 | N25: Cumple
B26: 18 | C26: 180000 | D26: MOQUEGUA | E26: 297038.0622 | F26: 427187.782 | G26: 128242.0382 | H26: 69.53337027 | I26: Cumple | K26: 524598.2534 | L26: 448684.1794 | M26: 75914.07402 | N26: Cumple
B27: 19 | C27: 190000 | D27: PASCO | E27: 208127.7904 | F27: 496970.0351 | G27: 36297.59545 | H27: 41.87934397 | I27: Cumple | K27: 611612.9282 | L27: 535814.3797 | M27: 75798.54852 | N27: Cumple
B28: 20 | C28: 200000 | D28: PIURA | E28: 1758975.648 | F28: 1992118.695 | G28: 210965.4679 | H28: 88.29672911 | I28: Cumple | K28: 2336142.516 | L28: 2183605.085 | M28: 152537.4314 | N28: Cumple
B29: 21 | C29: 210000 | D29: PUNO | E29: 1114590.616 | F29: 1792216.574 | G29: 62785.78904 | H29: 62.19062096 | I29: Cumple | K29: 2133984.414 | L29: 2022551.33 | M29: 111433.0839 | N29: Cumple
B30: 22 | C30: 220000 | D30: SAN MARTIN | E30: 307735.0931 | F30: 1302928.622 | G30: 1076.04123 | H30: 23.61872231 | I30: Cumple | K30: 1615408.158 | L30: 1411357.335 | M30: 204050.8231 | N30: Cumple
B31: 23 | C31: 230000 | D31: TACNA | E31: 82737.60595 | F31: 593131.5178 | G31: 177092.0959 | H31: 13.94928502 | I31: Cumple | K31: 750336.9898 | L31: 615373.1774 | M31: 134963.8124 | N31: Cumple
B32: 24 | C32: 240000 | D32: TUMBES | E32: 191018.5558 | F32: 434457.397 | G32: 64031.9301 | H32: 43.96715469 | I32: Cumple | K32: 463714.9691 | L32: 444816.9583 | M32: 18898.01074 | N32: Cumple
B33: 25 | C33: 250000 | D33: UCAYALI | E33: 351676.648 | F33: 802887.4099 | G33: 68786.66583 | H33: 43.80148992 | I33: Cumple | K33: 953276.7624 | L33: 850695.0571 | M33: 102581.7053 | N33: Cumple
B34: 26 | C34: 260000 | D34: REGIÓN LIMA METROPOLITANA | E34: 4943.05618 | F34: 22145.33897 | G34: 12442.3687 | H34: 22.32097773 | I34: Cumple | K34: 26404.60025 | L34: 15598.15679 | M34: 10806.44346 | N34: Cumple
B36: TOTAL | E36: =+SUM(E9:E34) -> 12644757.56 | F36: =+SUM(F9:F34) -> 31148911.06 | G36: =+SUM(G9:G34) -> 4222653.725 | K36: =+SUM(K9:K34) -> 36644380.09 | L36: =+SUM(L9:L34) -> 33102378.33 | M36: =+SUM(M9:M34) -> 3542001.751
B38: 1/ El Saldo de Deuda Total está compuesto por el Saldo de Pasivos, la Deuda Exigible con entidades del Estado y la Deuda Real con las Administradoras Privadas de Fondos de Pensiones (AFP). La información disponible del Saldo de Pasivos es al cuarto trimestre de 2021, la Deuda Exigible con entidades del Estado es a diciembre 2021 y la Deuda Real con las AFP es a octubre de 2021. El Decreto de Urgencia N° 031-2019, en su artículo 2 dispone la modificación de la definición "Saldo de Pasivos" establecida en el literal a) del numeral 1 del artículo 3 del Decreto Legislativo N° 1275, la cual queda redactada de la siguiente manera: "Comprende todos los pasivos reconocidos y formalizados en los Estados de Situación Financiera de los Gobiernos Regionales o Gobiernos Locales, excluyendo los ingresos diferidos, obligaciones previsionales, beneficios sociales, provisiones y pasivos derivados de la ejecución de cartas fianza, multas no consentidas y similares. El Saldo de Pasivos comprende también los que proceden de operaciones diversas garantizadas con flujos de ingresos futuros, con y sin aval del Gobierno Nacional, como los Fideicomisos, Titulización de activos y similares. Se excluyen también los pasivos derivados de la ejecución de las sentencias judiciales en materia laboral correspondientes a la subespecialidad personal del Magisterio y personal de la Salud."
B39: 2/ Promedio anual del Ingreso Corriente Total calculado a partir de los últimos 16 trimestres entre el 1T2018 y el 4T2021.
B40: 3/ Corresponde a la suma de los flujos transferidos por concepto de Recursos Determinados provenientes de Canon, Sobrecanon, Regalías, Renta de Aduanas y Participaciones de los años 2019 y 2020, más el tope presupuestal por el mismo concepto incluido en el Presupuesto Institucional de Apertura 2021, aprobado mediante Ley N° 31084, Ley de Presupuesto del Sector Público para el Año Fiscal 2021. Información remitida a través de Memorando N° 288-2021-EF/50.03 por la Dirección General de Presupuesto Público del Ministerio de Economía y Finanzas.
B41: Fuente: SICON-MEF, SIAF-MEF, SUNAT, SBS y AFP.

Sheet REGLAS (hidden)
A1: BUSQUEDA | B1: NRO | C1: Ubigeo | D1: Departamento | E1: Entidad | F1: SDT | G1: B01 | H1: PROM_ICT | I1: LIMITE_LEY | J1: Espacio Total | K1: B02 | L1: STD_PROM_ICT | M1: B03 | N1: Cumple_R1 | O1: B04 | P1: ICT | Q1: GCT | R1: ACC | S1: Cumple_R2
A2: 010000 : GOBIERNO REGIONAL DE AMAZONAS | B2: 1 | C2: 010000 | D2: AMAZONAS | E2: GOBIERNO REGIONAL AMAZONAS | F2: =VLOOKUP(C2,'Anexo_GR '!$C$9:$E$34,3,FALSE) -> 348936.1528 | H2: =VLOOKUP(C2,'Anexo_GR '!$C$9:$I$34,4,FALSE) -> 781864.4343 | I2: =VLOOKUP(C2,'Anexo_GR '!$C$9:$I$34,5,FALSE) -> 5.026 | L2: =VLOOKUP(C2,'Anexo_GR '!$C$9:$I$34,6,FALSE) -> 44.62872814 | N2: =VLOOKUP(C2,'Anexo_GR '!$C$9:$I$34,7,FALSE) -> Cumple | P2: =VLOOKUP(C2,'Anexo_GR '!$C$9:$N$34,9,FALSE) -> 968007.0618 | Q2: =VLOOKUP(C2,'Anexo_GR '!$C$9:$N$34,10,FALSE) -> 893247.3524 | R2: =VLOOKUP(C2,'Anexo_GR '!$C$9:$N$34,11,FALSE) -> 74759.70937 | S2: =VLOOKUP(C2,'Anexo_GR '!$C$9:$N$34,12,FALSE) -> Cumple
A3: 020000 : GOBIERNO REGIONAL DE ANCASH | B3: 2 | C3: 020000 | D3: ANCASH | E3: GOBIERNO REGIONAL ANCASH | F3: =VLOOKUP(C3,'Anexo_GR '!$C$9:$E$34,3,FALSE) -> 396049.167 | H3: =VLOOKUP(C3,'Anexo_GR '!$C$9:$I$34,4,FALSE) -> 1816128.667 | I3: =VLOOKUP(C3,'Anexo_GR '!$C$9:$I$34,5,FALSE) -> 589842.1083 | L3: =VLOOKUP(C3,'Anexo_GR '!$C$9:$I$34,6,FALSE) -> 21.80732974 | N3: =VLOOKUP(C3,'Anexo_GR '!$C$9:$I$34,7,FALSE) -> Cumple | P3: =VLOOKUP(C3,'Anexo_GR '!$C$9:$N$34,9,FALSE) -> 2051597.463 | Q3: =VLOOKUP(C3,'Anexo_GR '!$C$9:$N$34,10,FALSE) -> 1838877.213 | R3: =VLOOKUP(C3,'Anexo_GR '!$C$9:$N$34,11,FALSE) -> 212720.2504 | S3: =VLOOKUP(C3,'Anexo_GR '!$C$9:$N$34,12,FALSE) -> Cumple
A4: 030000 : GOBIERNO REGIONAL DE APURIMAC | B4: 3 | C4: 030000 | D4: APURIMAC | E4: GOBIERNO REGIONAL APURIMAC | F4: =VLOOKUP(C4,'Anexo_GR '!$C$9:$E$34,3,FALSE) -> 633713.3611 | H4: =VLOOKUP(C4,'Anexo_GR '!$C$9:$I$34,4,FALSE) -> 939069.2501 | I4: =VLOOKUP(C4,'Anexo_GR '!$C$9:$I$34,5,FALSE) -> 101632.6664 | L4: =VLOOKUP(C4,'Anexo_GR '!$C$9:$I$34,6,FALSE) -> 67.48313408 | N4: =VLOOKUP(C4,'Anexo_GR '!$C$9:$I$34,7,FALSE) -> Cumple | P4: =VLOOKUP(C4,'Anexo_GR '!$C$9:$N$34,9,FALSE) -> 1106392.556 | Q4: =VLOOKUP(C4,'Anexo_GR '!$C$9:$N$34,10,FALSE) -> 994052.0093 | R4: =VLOOKUP(C4,'Anexo_GR '!$C$9:$N$34,11,FALSE) -> 112340.5464 | S4: =VLOOKUP(C4,'Anexo_GR '!$C$9:$N$34,12,FALSE) -> Cumple
A5: 040000 : GOBIERNO REGIONAL DE AREQUIPA | B5: 4 | C5: 040000 | D5: AREQUIPA | E5: GOBIERNO REGIONAL AREQUIPA | F5: =VLOOKUP(C5,'Anexo_GR '!$C$9:$E$34,3,FALSE) -> 593486.5236 | H5: =VLOOKUP(C5,'Anexo_GR '!$C$9:$I$34,4,FALSE) -> 1689033.693 | I5: =VLOOKUP(C5,'Anexo_GR '!$C$9:$I$34,5,FALSE) -> 349255.1243 | L5: =VLOOKUP(C5,'Anexo_GR '!$C$9:$I$34,6,FALSE) -> 35.13763674 | N5: =VLOOKUP(C5,'Anexo_GR '!$C$9:$I$34,7,FALSE) -> Cumple | P5: =VLOOKUP(C5,'Anexo_GR '!$C$9:$N$34,9,FALSE) -> 2039425.368 | Q5: =VLOOKUP(C5,'Anexo_GR '!$C$9:$N$34,10,FALSE) -> 1783296.807 | R5: =VLOOKUP(C5,'Anexo_GR '!$C$9:$N$34,11,FALSE) -> 256128.5602 | S5: =VLOOKUP(C5,'Anexo_GR '!$C$9:$N$34,12,FALSE) -> Cumple
A6: 050000 : GOBIERNO REGIONAL DE AYACUCHO | B6: 5 | C6: 050000 | D6: AYACUCHO | E6: GOBIERNO REGIONAL AYACUCHO | F6: =VLOOKUP(C6,'Anexo_GR '!$C$9:$E$34,3,FALSE) -> 581657.3043 | H6: =VLOOKUP(C6,'Anexo_GR '!$C$9:$I$34,4,FALSE) -> 1276366.88 | I6: =VLOOKUP(C6,'Anexo_GR '!$C$9:$I$34,5,FALSE) -> 75594.97469 | L6: =VLOOKUP(C6,'Anexo_GR '!$C$9:$I$34,6,FALSE) -> 45.5713254 | N6: =VLOOKUP(C6,'Anexo_GR '!$C$9:$I$34,7,FALSE) -> Cumple | P6: =VLOOKUP(C6,'Anexo_GR '!$C$9:$N$34,9,FALSE) -> 1464197.559 | Q6: =VLOOKUP(C6,'Anexo_GR '!$C$9:$N$34,10,FALSE) -> 1350266.631 | R6: =VLOOKUP(C6,'Anexo_GR '!$C$9:$N$34,11,FALSE) -> 113930.9282 | S6: =VLOOKUP(C6,'Anexo_GR '!$C$9:$N$34,12,FALSE) -> Cumple
A7: 060000 : GOBIERNO REGIONAL DE CAJAMARCA | B7: 6 | C7: 060000 | D7: CAJAMARCA | E7: GOBIERNO REGIONAL CAJAMARCA | F7: =VLOOKUP(C7,'Anexo_GR '!$C$9:$E$34,3,FALSE) -> 1481044.507 | H7: =VLOOKUP(C7,'Anexo_GR '!$C$9:$I$34,4,FALSE) -> 2103896.396 | I7: =VLOOKUP(C7,'Anexo_GR '!$C$9:$I$34,5,FALSE) -> 93138.53573 | L7: =VLOOKUP(C7,'Anexo_GR '!$C$9:$I$34,6,FALSE) -> 70.39531556 | N7: =VLOOKUP(C7,'Anexo_GR '!$C$9:$I$34,7,FALSE) -> Cumple | P7: =VLOOKUP(C7,'Anexo_GR '!$C$9:$N$34,9,FALSE) -> 2509341.694 | Q7: =VLOOKUP(C7,'Anexo_GR '!$C$9:$N$34,10,FALSE) -> 2356220.287 | R7: =VLOOKUP(C7,'Anexo_GR '!$C$9:$N$34,11,FALSE) -> 153121.4073 | S7: =VLOOKUP(C7,'Anexo_GR '!$C$9:$N$34,12,FALSE) -> Cumple
A8: 070000 : GOBIERNO REGIONAL DEL CALLAO | B8: 7 | C8: 070000 | D8: CALLAO | E8: GOBIERNO REGIONAL CALLAO | F8: =VLOOKUP(C8,'Anexo_GR '!$C$9:$E$34,3,FALSE) -> 521761.8667 | H8: =VLOOKUP(C8,'Anexo_GR '!$C$9:$I$34,4,FALSE) -> 1097186.099 | I8: =VLOOKUP(C8,'Anexo_GR '!$C$9:$I$34,5,FALSE) -> 691719.104 | L8: =VLOOKUP(C8,'Anexo_GR '!$C$9:$I$34,6,FALSE) -> 47.55454587 | N8: =VLOOKUP(C8,'Anexo_GR '!$C$9:$I$34,7,FALSE) -> Cumple | P8: =VLOOKUP(C8,'Anexo_GR '!$C$9:$N$34,9,FALSE) -> 1233019.106 | Q8: =VLOOKUP(C8,'Anexo_GR '!$C$9:$N$34,10,FALSE) -> 1069641.921 | R8: =VLOOKUP(C8,'Anexo_GR '!$C$9:$N$34,11,FALSE) -> 163377.1841 | S8: =VLOOKUP(C8,'Anexo_GR '!$C$9:$N$34,12,FALSE) -> Cumple
A9: 080000 : GOBIERNO REGIONAL DE CUSCO | B9: 8 | C9: 080000 | D9: CUSCO | E9: GOBIERNO REGIONAL CUSCO | F9: =VLOOKUP(C9,'Anexo_GR '!$C$9:$E$34,3,FALSE) -> 476370.6456 | H9: =VLOOKUP(C9,'Anexo_GR '!$C$9:$I$34,4,FALSE) -> 2120223.4 | I9: =VLOOKUP(C9,'Anexo_GR '!$C$9:$I$34,5,FALSE) -> 846825.5172 | L9: =VLOOKUP(C9,'Anexo_GR '!$C$9:$I$34,6,FALSE) -> 22.46794586 | N9: =VLOOKUP(C9,'Anexo_GR '!$C$9:$I$34,7,FALSE) -> Cumple | P9: =VLOOKUP(C9,'Anexo_GR '!$C$9:$N$34,9,FALSE) -> 2541983.091 | Q9: =VLOOKUP(C9,'Anexo_GR '!$C$9:$N$34,10,FALSE) -> 2011009.112 | R9: =VLOOKUP(C9,'Anexo_GR '!$C$9:$N$34,11,FALSE) -> 530973.9789 | S9: =VLOOKUP(C9,'Anexo_GR '!$C$9:$N$34,12,FALSE) -> Cumple
A10: 090000 : GOBIERNO REGIONAL DE HUANCAVELICA | B10: 9 | C10: 090000 | D10: HUANCAVELICA | E10: GOBIERNO REGIONAL HUANCAVELICA | F10: =VLOOKUP(C10,'Anexo_GR '!$C$9:$E$34,3,FALSE) -> 210406.6301 | H10: =VLOOKUP(C10,'Anexo_GR '!$C$9:$I$34,4,FALSE) -> 917784.2371 | I10: =VLOOKUP(C10,'Anexo_GR '!$C$9:$I$34,5,FALSE) -> 83305.43719 | L10: =VLOOKUP(C10,'Anexo_GR '!$C$9:$I$34,6,FALSE) -> 22.92550053 | N10: =VLOOKUP(C10,'Anexo_GR '!$C$9:$I$34,7,FALSE) -> Cumple | P10: =VLOOKUP(C10,'Anexo_GR '!$C$9:$N$34,9,FALSE) -> 1023706.197 | Q10: =VLOOKUP(C10,'Anexo_GR '!$C$9:$N$34,10,FALSE) -> 939931.3284 | R10: =VLOOKUP(C10,'Anexo_GR '!$C$9:$N$34,11,FALSE) -> 83774.86879 | S10: =VLOOKUP(C10,'Anexo_GR '!$C$9:$N$34,12,FALSE) -> Cumple
A11: 100000 : GOBIERNO REGIONAL DE HUANUCO | B11: 10 | C11: 100000 | D11: HUANUCO | E11: GOBIERNO REGIONAL HUANUCO | F11: =VLOOKUP(C11,'Anexo_GR '!$C$9:$E$34,3,FALSE) -> 113903.4203 | H11: =VLOOKUP(C11,'Anexo_GR '!$C$9:$I$34,4,FALSE) -> 1118760.744 | I11: =VLOOKUP(C11,'Anexo_GR '!$C$9:$I$34,5,FALSE) -> 3839.94051 | L11: =VLOOKUP(C11,'Anexo_GR '!$C$9:$I$34,6,FALSE) -> 10.18121353 | N11: =VLOOKUP(C11,'Anexo_GR '!$C$9:$I$34,7,FALSE) -> Cumple | P11: =VLOOKUP(C11,'Anexo_GR '!$C$9:$N$34,9,FALSE) -> 1315575.507 | Q11: =VLOOKUP(C11,'Anexo_GR '!$C$9:$N$34,10,FALSE) -> 1232590.324 | R11: =VLOOKUP(C11,'Anexo_GR '!$C$9:$N$34,11,FALSE) -> 82985.18334 | S11: =VLOOKUP(C11,'Anexo_GR '!$C$9:$N$34,12,FALSE) -> Cumple
A12: 110000 : GOBIERNO REGIONAL DE ICA | B12: 11 | C12: 110000 | D12: ICA | E12: GOBIERNO REGIONAL ICA | F12: =VLOOKUP(C12,'Anexo_GR '!$C$9:$E$34,3,FALSE) -> 144718.3224 | H12: =VLOOKUP(C12,'Anexo_GR '!$C$9:$I$34,4,FALSE) -> 1080411.381 | I12: =VLOOKUP(C12,'Anexo_GR '!$C$9:$I$34,5,FALSE) -> 144741.8595 | L12: =VLOOKUP(C12,'Anexo_GR '!$C$9:$I$34,6,FALSE) -> 13.3947425 | N12: =VLOOKUP(C12,'Anexo_GR '!$C$9:$I$34,7,FALSE) -> Cumple | P12: =VLOOKUP(C12,'Anexo_GR '!$C$9:$N$34,9,FALSE) -> 1288028.809 | Q12: =VLOOKUP(C12,'Anexo_GR '!$C$9:$N$34,10,FALSE) -> 1150169.606 | R12: =VLOOKUP(C12,'Anexo_GR '!$C$9:$N$34,11,FALSE) -> 137859.2033 | S12: =VLOOKUP(C12,'Anexo_GR '!$C$9:$N$34,12,FALSE) -> Cumple
A13: 120000 : GOBIERNO REGIONAL DE JUNIN | B13: 12 | C13: 120000 | D13: JUNIN | E13: GOBIERNO REGIONAL JUNIN | F13: =VLOOKUP(C13,'Anexo_GR '!$C$9:$E$34,3,FALSE) -> 375618.5383 | H13: =VLOOKUP(C13,'Anexo_GR '!$C$9:$I$34,4,FALSE) -> 1743302.475 | I13: =VLOOKUP(C13,'Anexo_GR '!$C$9:$I$34,5,FALSE) -> 47945.85105 | L13: =VLOOKUP(C13,'Anexo_GR '!$C$9:$I$34,6,FALSE) -> 21.54637784 | N13: =VLOOKUP(C13,'Anexo_GR '!$C$9:$I$34,7,FALSE) -> Cumple | P13: =VLOOKUP(C13,'Anexo_GR '!$C$9:$N$34,9,FALSE) -> 2065814.188 | Q13: =VLOOKUP(C13,'Anexo_GR '!$C$9:$N$34,10,FALSE) -> 2005270.999 | R13: =VLOOKUP(C13,'Anexo_GR '!$C$9:$N$34,11,FALSE) -> 60543.18886 | S13: =VLOOKUP(C13,'Anexo_GR '!$C$9:$N$34,12,FALSE) -> Cumple
A14: 130000 : GOBIERNO REGIONAL DE LA LIBERTAD | B14: 13 | C14: 130000 | D14: LA LIBERTAD | E14: GOBIERNO REGIONAL LA LIBERTAD | F14: =VLOOKUP(C14,'Anexo_GR '!$C$9:$E$34,3,FALSE) -> 1203037.266 | H14: =VLOOKUP(C14,'Anexo_GR '!$C$9:$I$34,4,FALSE) -> 2006172.416 | I14: =VLOOKUP(C14,'Anexo_GR '!$C$9:$I$34,5,FALSE) -> 144812.8965 | L14: =VLOOKUP(C14,'Anexo_GR '!$C$9:$I$34,6,FALSE) -> 59.96679329 | N14: =VLOOKUP(C14,'Anexo_GR '!$C$9:$I$34,7,FALSE) -> Cumple | P14: =VLOOKUP(C14,'Anexo_GR '!$C$9:$N$34,9,FALSE) -> 2294878.731 | Q14: =VLOOKUP(C14,'Anexo_GR '!$C$9:$N$34,10,FALSE) -> 2193478.445 | R14: =VLOOKUP(C14,'Anexo_GR '!$C$9:$N$34,11,FALSE) -> 101400.2858 | S14: =VLOOKUP(C14,'Anexo_GR '!$C$9:$N$34,12,FALSE) -> Cumple
A15: 140000 : GOBIERNO REGIONAL DE LAMBAYEQUE | B15: 14 | C15: 140000 | D15: LAMBAYEQUE | E15: GOBIERNO REGIONAL LAMBAYEQUE | F15: =VLOOKUP(C15,'Anexo_GR '!$C$9:$E$34,3,FALSE) -> 439732.2862 | H15: =VLOOKUP(C15,'Anexo_GR '!$C$9:$I$34,4,FALSE) -> 1168291.616 | I15: =VLOOKUP(C15,'Anexo_GR '!$C$9:$I$34,5,FALSE) -> 13.0974 | L15: =VLOOKUP(C15,'Anexo_GR '!$C$9:$I$34,6,FALSE) -> 37.63891481 | N15: =VLOOKUP(C15,'Anexo_GR '!$C$9:$I$34,7,FALSE) -> Cumple | P15: =VLOOKUP(C15,'Anexo_GR '!$C$9:$N$34,9,FALSE) -> 1340308.116 | Q15: =VLOOKUP(C15,'Anexo_GR '!$C$9:$N$34,10,FALSE) -> 1282970.787 | R15: =VLOOKUP(C15,'Anexo_GR '!$C$9:$N$34,11,FALSE) -> 57337.32986 | S15: =VLOOKUP(C15,'Anexo_GR '!$C$9:$N$34,12,FALSE) -> Cumple
A16: 150000 : GOBIERNO REGIONAL DE LIMA | B16: 15 | C16: 150000 | D16: LIMA | E16: GOBIERNO REGIONAL LIMA | F16: =VLOOKUP(C16,'Anexo_GR '!$C$9:$E$34,3,FALSE) -> 163787.9196 | H16: =VLOOKUP(C16,'Anexo_GR '!$C$9:$I$34,4,FALSE) -> 1249827.037 | I16: =VLOOKUP(C16,'Anexo_GR '!$C$9:$I$34,5,FALSE) -> 122843.5422 | L16: =VLOOKUP(C16,'Anexo_GR '!$C$9:$I$34,6,FALSE) -> 13.10484689 | N16: =VLOOKUP(C16,'Anexo_GR '!$C$9:$I$34,7,FALSE) -> Cumple | P16: =VLOOKUP(C16,'Anexo_GR '!$C$9:$N$34,9,FALSE) -> 1425516.44 | Q16: =VLOOKUP(C16,'Anexo_GR '!$C$9:$N$34,10,FALSE) -> 1354942.662 | R16: =VLOOKUP(C16,'Anexo_GR '!$C$9:$N$34,11,FALSE) -> 70573.77716 | S16: =VLOOKUP(C16,'Anexo_GR '!$C$9:$N$34,12,FALSE) -> Cumple
A17: 160000 : GOBIERNO REGIONAL DE LORETO | B17: 16 | C17: 160000 | D17: LORETO | E17: GOBIERNO REGIONAL LORETO | F17: =VLOOKUP(C17,'Anexo_GR '!$C$9:$E$34,3,FALSE) -> 616132.2968 | H17: =VLOOKUP(C17,'Anexo_GR '!$C$9:$I$34,4,FALSE) -> 1887934.663 | I17: =VLOOKUP(C17,'Anexo_GR '!$C$9:$I$34,5,FALSE) -> 164515.312 | L17: =VLOOKUP(C17,'Anexo_GR '!$C$9:$I$34,6,FALSE) -> 32.63525528 | N17: =VLOOKUP(C17,'Anexo_GR '!$C$9:$I$34,7,FALSE) -> Cumple | P17: =VLOOKUP(C17,'Anexo_GR '!$C$9:$N$34,9,FALSE) -> 2195728.155 | Q17: =VLOOKUP(C17,'Anexo_GR '!$C$9:$N$34,10,FALSE) -> 1804871.747 | R17: =VLOOKUP(C17,'Anexo_GR '!$C$9:$N$34,11,FALSE) -> 390856.4082 | S17: =VLOOKUP(C17,'Anexo_GR '!$C$9:$N$34,12,FALSE) -> Cumple
A18: 170000 : GOBIERNO REGIONAL DE MADRE DE DIOS | B18: 17 | C18: 170000 | D18: MADRE DE DIOS | E18: GOBIERNO REGIONAL MADRE DE DIOS | F18: =VLOOKUP(C18,'Anexo_GR '!$C$9:$E$34,3,FALSE) -> 27558.28187 | H18: =VLOOKUP(C18,'Anexo_GR '!$C$9:$I$34,4,FALSE) -> 288614.2945 | I18: =VLOOKUP(C18,'Anexo_GR '!$C$9:$I$34,5,FALSE) -> 902.73967 | L18: =VLOOKUP(C18,'Anexo_GR '!$C$9:$I$34,6,FALSE) -> 9.548481278 | N18: =VLOOKUP(C18,'Anexo_GR '!$C$9:$I$34,7,FALSE) -> Cumple | P18: =VLOOKUP(C18,'Anexo_GR '!$C$9:$N$34,9,FALSE) -> 365380.453 | Q18: =VLOOKUP(C18,'Anexo_GR '!$C$9:$N$34,10,FALSE) -> 313045.4451 | R18: =VLOOKUP(C18,'Anexo_GR '!$C$9:$N$34,11,FALSE) -> 52335.00792 | S18: =VLOOKUP(C18,'Anexo_GR '!$C$9:$N$34,12,FALSE) -> Cumple
A19: 180000 : GOBIERNO REGIONAL DE MOQUEGUA | B19: 18 | C19: 180000 | D19: MOQUEGUA | E19: GOBIERNO REGIONAL MOQUEGUA | F19: =VLOOKUP(C19,'Anexo_GR '!$C$9:$E$34,3,FALSE) -> 297038.0622 | H19: =VLOOKUP(C19,'Anexo_GR '!$C$9:$I$34,4,FALSE) -> 427187.782 | I19: =VLOOKUP(C19,'Anexo_GR '!$C$9:$I$34,5,FALSE) -> 128242.0382 | L19: =VLOOKUP(C19,'Anexo_GR '!$C$9:$I$34,6,FALSE) -> 69.53337027 | N19: =VLOOKUP(C19,'Anexo_GR '!$C$9:$I$34,7,FALSE) -> Cumple | P19: =VLOOKUP(C19,'Anexo_GR '!$C$9:$N$34,9,FALSE) -> 524598.2534 | Q19: =VLOOKUP(C19,'Anexo_GR '!$C$9:$N$34,10,FALSE) -> 448684.1794 | R19: =VLOOKUP(C19,'Anexo_GR '!$C$9:$N$34,11,FALSE) -> 75914.07402 | S19: =VLOOKUP(C19,'Anexo_GR '!$C$9:$N$34,12,FALSE) -> Cumple
A20: 190000 : GOBIERNO REGIONAL DE PASCO | B20: 19 | C20: 190000 | D20: PASCO | E20: GOBIERNO REGIONAL PASCO | F20: =VLOOKUP(C20,'Anexo_GR '!$C$9:$E$34,3,FALSE) -> 208127.7904 | H20: =VLOOKUP(C20,'Anexo_GR '!$C$9:$I$34,4,FALSE) -> 496970.0351 | I20: =VLOOKUP(C20,'Anexo_GR '!$C$9:$I$34,5,FALSE) -> 36297.59545 | L20: =VLOOKUP(C20,'Anexo_GR '!$C$9:$I$34,6,FALSE) -> 41.87934397 | N20: =VLOOKUP(C20,'Anexo_GR '!$C$9:$I$34,7,FALSE) -> Cumple | P20: =VLOOKUP(C20,'Anexo_GR '!$C$9:$N$34,9,FALSE) -> 611612.9282 | Q20: =VLOOKUP(C20,'Anexo_GR '!$C$9:$N$34,10,FALSE) -> 535814.3797 | R20: =VLOOKUP(C20,'Anexo_GR '!$C$9:$N$34,11,FALSE) -> 75798.54852 | S20: =VLOOKUP(C20,'Anexo_GR '!$C$9:$N$34,12,FALSE) -> Cumple
A21: 200000 : GOBIERNO REGIONAL DE PIURA | B21: 20 | C21: 200000 | D21: PIURA | E21: GOBIERNO REGIONAL PIURA | F21: =VLOOKUP(C21,'Anexo_GR '!$C$9:$E$34,3,FALSE) -> 1758975.648 | H21: =VLOOKUP(C21,'Anexo_GR '!$C$9:$I$34,4,FALSE) -> 1992118.695 | I21: =VLOOKUP(C21,'Anexo_GR '!$C$9:$I$34,5,FALSE) -> 210965.4679 | L21: =VLOOKUP(C21,'Anexo_GR '!$C$9:$I$34,6,FALSE) -> 88.29672911 | N21: =VLOOKUP(C21,'Anexo_GR '!$C$9:$I$34,7,FALSE) -> Cumple | P21: =VLOOKUP(C21,'Anexo_GR '!$C$9:$N$34,9,FALSE) -> 2336142.516 | Q21: =VLOOKUP(C21,'Anexo_GR '!$C$9:$N$34,10,FALSE) -> 2183605.085 | R21: =VLOOKUP(C21,'Anexo_GR '!$C$9:$N$34,11,FALSE) -> 152537.4314 | S21: =VLOOKUP(C21,'Anexo_GR '!$C$9:$N$34,12,FALSE) -> Cumple
A22: 210000 : GOBIERNO REGIONAL DE PUNO | B22: 21 | C22: 210000 | D22: PUNO | E22: GOBIERNO REGIONAL PUNO | F22: =VLOOKUP(C22,'Anexo_GR '!$C$9:$E$34,3,FALSE) -> 1114590.616 | H22: =VLOOKUP(C22,'Anexo_GR '!$C$9:$I$34,4,FALSE) -> 1792216.574 | I22: =VLOOKUP(C22,'Anexo_GR '!$C$9:$I$34,5,FALSE) -> 62785.78904 | L22: =VLOOKUP(C22,'Anexo_GR '!$C$9:$I$34,6,FALSE) -> 62.19062096 | N22: =VLOOKUP(C22,'Anexo_GR '!$C$9:$I$34,7,FALSE) -> Cumple | P22: =VLOOKUP(C22,'Anexo_GR '!$C$9:$N$34,9,FALSE) -> 2133984.414 | Q22: =VLOOKUP(C22,'Anexo_GR '!$C$9:$N$34,10,FALSE) -> 2022551.33 | R22: =VLOOKUP(C22,'Anexo_GR '!$C$9:$N$34,11,FALSE) -> 111433.0839 | S22: =VLOOKUP(C22,'Anexo_GR '!$C$9:$N$34,12,FALSE) -> Cumple
A23: 220000 : GOBIERNO REGIONAL DE SAN MARTIN | B23: 22 | C23: 220000 | D23: SAN MARTIN | E23: GOBIERNO REGIONAL SAN MARTIN | F23: =VLOOKUP(C23,'Anexo_GR '!$C$9:$E$34,3,FALSE) -> 307735.0931 | H23: =VLOOKUP(C23,'Anexo_GR '!$C$9:$I$34,4,FALSE) -> 1302928.622 | I23: =VLOOKUP(C23,'Anexo_GR '!$C$9:$I$34,5,FALSE) -> 1076.04123 | L23: =VLOOKUP(C23,'Anexo_GR '!$C$9:$I$34,6,FALSE) -> 23.61872231 | N23: =VLOOKUP(C23,'Anexo_GR '!$C$9:$I$34,7,FALSE) -> Cumple | P23: =VLOOKUP(C23,'Anexo_GR '!$C$9:$N$34,9,FALSE) -> 1615408.158 | Q23: =VLOOKUP(C23,'Anexo_GR '!$C$9:$N$34,10,FALSE) -> 1411357.335 | R23: =VLOOKUP(C23,'Anexo_GR '!$C$9:$N$34,11,FALSE) -> 204050.8231 | S23: =VLOOKUP(C23,'Anexo_GR '!$C$9:$N$34,12,FALSE) -> Cumple
A24: 230000 : GOBIERNO REGIONAL DE TACNA | B24: 23 | C24: 230000 | D24: TACNA | E24: GOBIERNO REGIONAL TACNA | F24: =VLOOKUP(C24,'Anexo_GR '!$C$9:$E$34,3,FALSE) -> 82737.60595 | H24: =VLOOKUP(C24,'Anexo_GR '!$C$9:$I$34,4,FALSE) -> 593131.5178 | I24: =VLOOKUP(C24,'Anexo_GR '!$C$9:$I$34,5,FALSE) -> 177092.0959 | L24: =VLOOKUP(C24,'Anexo_GR '!$C$9:$I$34,6,FALSE) -> 13.94928502 | N24: =VLOOKUP(C24,'Anexo_GR '!$C$9:$I$34,7,FALSE) -> Cumple | P24: =VLOOKUP(C24,'Anexo_GR '!$C$9:$N$34,9,FALSE) -> 750336.9898 | Q24: =VLOOKUP(C24,'Anexo_GR '!$C$9:$N$34,10,FALSE) -> 615373.1774 | R24: =VLOOKUP(C24,'Anexo_GR '!$C$9:$N$34,11,FALSE) -> 134963.8124 | S24: =VLOOKUP(C24,'Anexo_GR '!$C$9:$N$34,12,FALSE) -> Cumple
A25: 240000 : GOBIERNO REGIONAL DE TUMBES | B25: 24 | C25: 240000 | D25: TUMBES | E25: GOBIERNO REGIONAL TUMBES | F25: =VLOOKUP(C25,'Anexo_GR '!$C$9:$E$34,3,FALSE) -> 191018.5558 | H25: =VLOOKUP(C25,'Anexo_GR '!$C$9:$I$34,4,FALSE) -> 434457.397 | I25: =VLOOKUP(C25,'Anexo_GR '!$C$9:$I$34,5,FALSE) -> 64031.9301 | L25: =VLOOKUP(C25,'Anexo_GR '!$C$9:$I$34,6,FALSE) -> 43.96715469 | N25: =VLOOKUP(C25,'Anexo_GR '!$C$9:$I$34,7,FALSE) -> Cumple | P25: =VLOOKUP(C25,'Anexo_GR '!$C$9:$N$34,9,FALSE) -> 463714.9691 | Q25: =VLOOKUP(C25,'Anexo_GR '!$C$9:$N$34,10,FALSE) -> 444816.9583 | R25: =VLOOKUP(C25,'Anexo_GR '!$C$9:$N$34,11,FALSE) -> 18898.01074 | S25: =VLOOKUP(C25,'Anexo_GR '!$C$9:$N$34,12,FALSE) -> Cumple
A26: 250000 : GOBIERNO REGIONAL DE UCAYALI | B26: 25 | C26: 250000 | D26: UCAYALI | E26: GOBIERNO REGIONAL UCAYALI | F26: =VLOOKUP(C26,'Anexo_GR '!$C$9:$E$34,3,FALSE) -> 351676.648 | H26: =VLOOKUP(C26,'Anexo_GR '!$C$9:$I$34,4,FALSE) -> 802887.4099 | I26: =VLOOKUP(C26,'Anexo_GR '!$C$9:$I$34,5,FALSE) -> 68786.66583 | L26: =VLOOKUP(C26,'Anexo_GR '!$C$9:$I$34,6,FALSE) -> 43.80148992 | N26: =VLOOKUP(C26,'Anexo_GR '!$C$9:$I$34,7,FALSE) -> Cumple | P26: =VLOOKUP(C26,'Anexo_GR '!$C$9:$N$34,9,FALSE) -> 953276.7624 | Q26: =VLOOKUP(C26,'Anexo_GR '!$C$9:$N$34,10,FALSE) -> 850695.0571 | R26: =VLOOKUP(C26,'Anexo_GR '!$C$9:$N$34,11,FALSE) -> 102581.7053 | S26: =VLOOKUP(C26,'Anexo_GR '!$C$9:$N$34,12,FALSE) -> Cumple
A27: 260000 : REGION LIMA METROPOLITANA | B27: 26 | C27: 260000 | D27: MM LIMA | E27: REGION LIMA METROPOLITANA | F27: =VLOOKUP(C27,'Anexo_GR '!$C$9:$E$34,3,FALSE) -> 4943.05618 | H27: =VLOOKUP(C27,'Anexo_GR '!$C$9:$I$34,4,FALSE) -> 22145.33897 | I27: =VLOOKUP(C27,'Anexo_GR '!$C$9:$I$34,5,FALSE) -> 12442.3687 | L27: =VLOOKUP(C27,'Anexo_GR '!$C$9:$I$34,6,FALSE) -> 22.32097773 | N27: =VLOOKUP(C27,'Anexo_GR '!$C$9:$I$34,7,FALSE) -> Cumple | P27: =VLOOKUP(C27,'Anexo_GR '!$C$9:$N$34,9,FALSE) -> 26404.60025 | Q27: =VLOOKUP(C27,'Anexo_GR '!$C$9:$N$34,10,FALSE) -> 15598.15679 | R27: =VLOOKUP(C27,'Anexo_GR '!$C$9:$N$34,11,FALSE) -> 10806.44346 | S27: =VLOOKUP(C27,'Anexo_GR '!$C$9:$N$34,12,FALSE) -> Cumple
A28: 010101 : MP DE CHACHAPOYAS | B28: 1 | C28: 010101 | D28: AMAZONAS | E28: MP DE CHACHAPOYAS | F28: =VLOOKUP(C28,'Anexo_GL '!$B$9:$N$1882,4,FALSE) -> 12832.29379 | H28: =VLOOKUP(C28,'Anexo_GL '!$B$9:$N$1882,5,FALSE) -> 24321.60982 | I28: =VLOOKUP(C28,'Anexo_GL '!$B$9:$N$1882,6,FALSE) -> 0.94496 | L28: =VLOOKUP(C28,'Anexo_GL '!$B$9:$N$1882,7,FALSE) -> 52.7608735 | N28: =VLOOKUP(C28,'Anexo_GL '!$B$9:$N$1882,8,FALSE) -> Cumple | P28: =VLOOKUP(C28,'Anexo_GL '!$B$9:$N$1882,10,FALSE) -> 26439.72627 | Q28: =VLOOKUP(C28,'Anexo_GL '!$B$9:$N$1882,11,FALSE) -> 23099.47814 | R28: =VLOOKUP(C28,'Anexo_GL '!$B$9:$N$1882,12,FALSE) -> 3340.24813 | S28: =VLOOKUP(C28,'Anexo_GL '!$B$9:$N$1882,13,FALSE) -> Cumple
A29: 010102 : MD DE ASUNCION | B29: 2 | C29: 010102 | D29: AMAZONAS | E29: MD DE ASUNCION | F29: =VLOOKUP(C29,'Anexo_GL '!$B$9:$N$1882,4,FALSE) -> 40.04744 | H29: =VLOOKUP(C29,'Anexo_GL '!$B$9:$N$1882,5,FALSE) -> 706.4662675 | I29: =VLOOKUP(C29,'Anexo_GL '!$B$9:$N$1882,6,FALSE) -> 0.00095 | L29: =VLOOKUP(C29,'Anexo_GL '!$B$9:$N$1882,7,FALSE) -> 5.668698117 | N29: =VLOOKUP(C29,'Anexo_GL '!$B$9:$N$1882,8,FALSE) -> Cumple | P29: =VLOOKUP(C29,'Anexo_GL '!$B$9:$N$1882,10,FALSE) -> 960.5969 | Q29: =VLOOKUP(C29,'Anexo_GL '!$B$9:$N$1882,11,FALSE) -> 679.26441 | R29: =VLOOKUP(C29,'Anexo_GL '!$B$9:$N$1882,12,FALSE) -> 281.33249 | S29: =VLOOKUP(C29,'Anexo_GL '!$B$9:$N$1882,13,FALSE) -> Cumple
A30: 010103 : MD DE BALSAS | B30: 3 | C30: 010103 | D30: AMAZONAS | E30: MD DE BALSAS | F30: =VLOOKUP(C30,'Anexo_GL '!$B$9:$N$1882,4,FALSE) -> 49.28207 | H30: =VLOOKUP(C30,'Anexo_GL '!$B$9:$N$1882,5,FALSE) -> 719.98516 | I30: =VLOOKUP(C30,'Anexo_GL '!$B$9:$N$1882,6,FALSE) -> 0.0028 | L30: =VLOOKUP(C30,'Anexo_GL '!$B$9:$N$1882,7,FALSE) -> 6.844873025 | N30: =VLOOKUP(C30,'Anexo_GL '!$B$9:$N$1882,8,FALSE) -> Cumple | P30: =VLOOKUP(C30,'Anexo_GL '!$B$9:$N$1882,10,FALSE) -> 710.14247 | Q30: =VLOOKUP(C30,'Anexo_GL '!$B$9:$N$1882,11,FALSE) -> 716.55132 | R30: =VLOOKUP(C30,'Anexo_GL '!$B$9:$N$1882,12,FALSE) -> -6.40885 | S30: =VLOOKUP(C30,'Anexo_GL '!$B$9:$N$1882,13,FALSE) -> No Cumple
A31: 010104 : MD DE CHETO | B31: 4 | C31: 010104 | D31: AMAZONAS | E31: MD DE CHETO | F31: =VLOOKUP(C31,'Anexo_GL '!$B$9:$N$1882,4,FALSE) -> 109.46808 | H31: =VLOOKUP(C31,'Anexo_GL '!$B$9:$N$1882,5,FALSE) -> 757.0123225 | I31: =VLOOKUP(C31,'Anexo_GL '!$B$9:$N$1882,6,FALSE) -> 0.0011 | L31: =VLOOKUP(C31,'Anexo_GL '!$B$9:$N$1882,7,FALSE) -> 14.46054136 | N31: =VLOOKUP(C31,'Anexo_GL '!$B$9:$N$1882,8,FALSE) -> Cumple | P31: =VLOOKUP(C31,'Anexo_GL '!$B$9:$N$1882,10,FALSE) -> 1214.2364 | Q31: =VLOOKUP(C31,'Anexo_GL '!$B$9:$N$1882,11,FALSE) -> 852.17864 | R31: =VLOOKUP(C31,'Anexo_GL '!$B$9:$N$1882,12,FALSE) -> 362.05776 | S31: =VLOOKUP(C31,'Anexo_GL '!$B$9:$N$1882,13,FALSE) -> Cumple
A32: 010105 : MD DE CHILIQUIN | B32: 5 | C32: 010105 | D32: AMAZONAS | E32: MD DE CHILIQUIN | F32: =VLOOKUP(C32,'Anexo_GL '!$B$9:$N$1882,4,FALSE) -> 26.67945 | H32: =VLOOKUP(C32,'Anexo_GL '!$B$9:$N$1882,5,FALSE) -> 950.3218025 | I32: =VLOOKUP(C32,'Anexo_GL '!$B$9:$N$1882,6,FALSE) -> 0.00192 | L32: =VLOOKUP(C32,'Anexo_GL '!$B$9:$N$1882,7,FALSE) -> 2.807412177 | N32: =VLOOKUP(C32,'Anexo_GL '!$B$9:$N$1882,8,FALSE) -> Cumple | P32: =VLOOKUP(C32,'Anexo_GL '!$B$9:$N$1882,10,FALSE) -> 1318.76309 | Q32: =VLOOKUP(C32,'Anexo_GL '!$B$9:$N$1882,11,FALSE) -> 989.99545 | R32: =VLOOKUP(C32,'Anexo_GL '!$B$9:$N$1882,12,FALSE) -> 328.76764 | S32: =VLOOKUP(C32,'Anexo_GL '!$B$9:$N$1882,13,FALSE) -> Cumple
A33: 010106 : MD DE CHUQUIBAMBA | B33: 6 | C33: 010106 | D33: AMAZONAS | E33: MD DE CHUQUIBAMBA | F33: =VLOOKUP(C33,'Anexo_GL '!$B$9:$N$1882,4,FALSE) -> 175.93202 | H33: =VLOOKUP(C33,'Anexo_GL '!$B$9:$N$1882,5,FALSE) -> 1445.249045 | I33: =VLOOKUP(C33,'Anexo_GL '!$B$9:$N$1882,6,FALSE) -> 0.00357 | L33: =VLOOKUP(C33,'Anexo_GL '!$B$9:$N$1882,7,FALSE) -> 12.17312827 | N33: =VLOOKUP(C33,'Anexo_GL '!$B$9:$N$1882,8,FALSE) -> Cumple | P33: =VLOOKUP(C33,'Anexo_GL '!$B$9:$N$1882,10,FALSE) -> 1815.51363 | Q33: =VLOOKUP(C33,'Anexo_GL '!$B$9:$N$1882,11,FALSE) -> 1365.48713 | R33: =VLOOKUP(C33,'Anexo_GL '!$B$9:$N$1882,12,FALSE) -> 450.0265 | S33: =VLOOKUP(C33,'Anexo_GL '!$B$9:$N$1882,13,FALSE) -> Cumple
A34: 010107 : MD DE GRANADA | B34: 7 | C34: 010107 | D34: AMAZONAS | E34: MD DE GRANADA | F34: =VLOOKUP(C34,'Anexo_GL '!$B$9:$N$1882,4,FALSE) -> 173.21727 | H34: =VLOOKUP(C34,'Anexo_GL '!$B$9:$N$1882,5,FALSE) -> 780.3176375 | I34: =VLOOKUP(C34,'Anexo_GL '!$B$9:$N$1882,6,FALSE) -> 0.00101 | L34: =VLOOKUP(C34,'Anexo_GL '!$B$9:$N$1882,7,FALSE) -> 22.19830255 | N34: =VLOOKUP(C34,'Anexo_GL '!$B$9:$N$1882,8,FALSE) -> Cumple | P34: =VLOOKUP(C34,'Anexo_GL '!$B$9:$N$1882,10,FALSE) -> 1215.07143 | Q34: =VLOOKUP(C34,'Anexo_GL '!$B$9:$N$1882,11,FALSE) -> 861.40997 | R34: =VLOOKUP(C34,'Anexo_GL '!$B$9:$N$1882,12,FALSE) -> 353.66146 | S34: =VLOOKUP(C34,'Anexo_GL '!$B$9:$N$1882,13,FALSE) -> Cumple
A35: 010108 : MD DE HUANCAS | B35: 8 | C35: 010108 | D35: AMAZONAS | E35: MD DE HUANCAS | F35: =VLOOKUP(C35,'Anexo_GL '!$B$9:$N$1882,4,FALSE) -> 98.67336 | H35: =VLOOKUP(C35,'Anexo_GL '!$B$9:$N$1882,5,FALSE) -> 822.52867 | I35: =VLOOKUP(C35,'Anexo_GL '!$B$9:$N$1882,6,FALSE) -> 0.00183 | L35: =VLOOKUP(C35,'Anexo_GL '!$B$9:$N$1882,7,FALSE) -> 11.99634294 | N35: =VLOOKUP(C35,'Anexo_GL '!$B$9:$N$1882,8,FALSE) -> Cumple | P35: =VLOOKUP(C35,'Anexo_GL '!$B$9:$N$1882,10,FALSE) -> 996.75127 | Q35: =VLOOKUP(C35,'Anexo_GL '!$B$9:$N$1882,11,FALSE) -> 641.54612 | R35: =VLOOKUP(C35,'Anexo_GL '!$B$9:$N$1882,12,FALSE) -> 355.20515 | S35: =VLOOKUP(C35,'Anexo_GL '!$B$9:$N$1882,13,FALSE) -> Cumple
A36: 010109 : MD DE JALCA GRANDE | B36: 9 | C36: 010109 | D36: AMAZONAS | E36: MD DE JALCA GRANDE | F36: =VLOOKUP(C36,'Anexo_GL '!$B$9:$N$1882,4,FALSE) -> 46.00879 | H36: =VLOOKUP(C36,'Anexo_GL '!$B$9:$N$1882,5,FALSE) -> 1659.949082 | I36: =VLOOKUP(C36,'Anexo_GL '!$B$9:$N$1882,6,FALSE) -> 0.98139 | L36: =VLOOKUP(C36,'Anexo_GL '!$B$9:$N$1882,7,FALSE) -> 2.771698872 | N36: =VLOOKUP(C36,'Anexo_GL '!$B$9:$N$1882,8,FALSE) -> Cumple | P36: =VLOOKUP(C36,'Anexo_GL '!$B$9:$N$1882,10,FALSE) -> 2264.38579 | Q36: =VLOOKUP(C36,'Anexo_GL '!$B$9:$N$1882,11,FALSE) -> 1706.84449 | R36: =VLOOKUP(C36,'Anexo_GL '!$B$9:$N$1882,12,FALSE) -> 557.5413 | S36: =VLOOKUP(C36,'Anexo_GL '!$B$9:$N$1882,13,FALSE) -> Cumple
A37: 010110 : MD DE LEIMEBAMBA | B37: 10 | C37: 010110 | D37: AMAZONAS | E37: MD DE LEIMEBAMBA | F37: =VLOOKUP(C37,'Anexo_GL '!$B$9:$N$1882,4,FALSE) -> 58.11699 | H37: =VLOOKUP(C37,'Anexo_GL '!$B$9:$N$1882,5,FALSE) -> 2453.160915 | I37: =VLOOKUP(C37,'Anexo_GL '!$B$9:$N$1882,6,FALSE) -> 0.00575 | L37: =VLOOKUP(C37,'Anexo_GL '!$B$9:$N$1882,7,FALSE) -> 2.369065545 | N37: =VLOOKUP(C37,'Anexo_GL '!$B$9:$N$1882,8,FALSE) -> Cumple | P37: =VLOOKUP(C37,'Anexo_GL '!$B$9:$N$1882,10,FALSE) -> 3459.84935 | Q37: =VLOOKUP(C37,'Anexo_GL '!$B$9:$N$1882,11,FALSE) -> 759.17556 | R37: =VLOOKUP(C37,'Anexo_GL '!$B$9:$N$1882,12,FALSE) -> 2700.67379 | S37: =VLOOKUP(C37,'Anexo_GL '!$B$9:$N$1882,13,FALSE) -> Cumple
A38: 010111 : MD DE LEVANTO | B38: 11 | C38: 010111 | D38: AMAZONAS | E38: MD DE LEVANTO | F38: =VLOOKUP(C38,'Anexo_GL '!$B$9:$N$1882,4,FALSE) -> 96.59103 | H38: =VLOOKUP(C38,'Anexo_GL '!$B$9:$N$1882,5,FALSE) -> 789.0545325 | I38: =VLOOKUP(C38,'Anexo_GL '!$B$9:$N$1882,6,FALSE) -> 0.00155 | L38: =VLOOKUP(C38,'Anexo_GL '!$B$9:$N$1882,7,FALSE) -> 12.24136305 | N38: =VLOOKUP(C38,'Anexo_GL '!$B$9:$N$1882,8,FALSE) -> Cumple | P38: =VLOOKUP(C38,'Anexo_GL '!$B$9:$N$1882,10,FALSE) -> 1318.00514 | Q38: =VLOOKUP(C38,'Anexo_GL '!$B$9:$N$1882,11,FALSE) -> 1314.53398 | R38: =VLOOKUP(C38,'Anexo_GL '!$B$9:$N$1882,12,FALSE) -> 3.47116 | S38: =VLOOKUP(C38,'Anexo_GL '!$B$9:$N$1882,13,FALSE) -> Cumple
A39: 010112 : MD DE MAGDALENA | B39: 12 | C39: 010112 | D39: AMAZONAS | E39: MD DE MAGDALENA | F39: =VLOOKUP(C39,'Anexo_GL '!$B$9:$N$1882,4,FALSE) -> 10.43184 | H39: =VLOOKUP(C39,'Anexo_GL '!$B$9:$N$1882,5,FALSE) -> 661.2473975 | I39: =VLOOKUP(C39,'Anexo_GL '!$B$9:$N$1882,6,FALSE) -> 0.00123 | L39: =VLOOKUP(C39,'Anexo_GL '!$B$9:$N$1882,7,FALSE) -> 1.57760016 | N39: =VLOOKUP(C39,'Anexo_GL '!$B$9:$N$1882,8,FALSE) -> Cumple | P39: =VLOOKUP(C39,'Anexo_GL '!$B$9:$N$1882,10,FALSE) -> 858.03513 | Q39: =VLOOKUP(C39,'Anexo_GL '!$B$9:$N$1882,11,FALSE) -> 550.17264 | R39: =VLOOKUP(C39,'Anexo_GL '!$B$9:$N$1882,12,FALSE) -> 307.86249 | S39: =VLOOKUP(C39,'Anexo_GL '!$B$9:$N$1882,13,FALSE) -> Cumple
A40: 010113 : MD DE MARISCAL CASTILLA | B40: 13 | C40: 010113 | D40: AMAZONAS | E40: MD DE MARISCAL CASTILLA | F40: =VLOOKUP(C40,'Anexo_GL '!$B$9:$N$1882,4,FALSE) -> 21.19811 | H40: =VLOOKUP(C40,'Anexo_GL '!$B$9:$N$1882,5,FALSE) -> 817.684215 | I40: =VLOOKUP(C40,'Anexo_GL '!$B$9:$N$1882,6,FALSE) -> 0.00179 | L40: =VLOOKUP(C40,'Anexo_GL '!$B$9:$N$1882,7,FALSE) -> 2.592456796 | N40: =VLOOKUP(C40,'Anexo_GL '!$B$9:$N$1882,8,FALSE) -> Cumple | P40: =VLOOKUP(C40,'Anexo_GL '!$B$9:$N$1882,10,FALSE) -> 1264.20366 | Q40: =VLOOKUP(C40,'Anexo_GL '!$B$9:$N$1882,11,FALSE) -> 933.4197 | R40: =VLOOKUP(C40,'Anexo_GL '!$B$9:$N$1882,12,FALSE) -> 330.78396 | S40: =VLOOKUP(C40,'Anexo_GL '!$B$9:$N$1882,13,FALSE) -> Cumple
A41: 010114 : MD DE MOLINOPAMPA | B41: 14 | C41: 010114 | D41: AMAZONAS | E41: MD DE MOLINOPAMPA | F41: =VLOOKUP(C41,'Anexo_GL '!$B$9:$N$1882,4,FALSE) -> 210.27046 | H41: =VLOOKUP(C41,'Anexo_GL '!$B$9:$N$1882,5,FALSE) -> 914.972025 | I41: =VLOOKUP(C41,'Anexo_GL '!$B$9:$N$1882,6,FALSE) -> 0.00479 | L41: =VLOOKUP(C41,'Anexo_GL '!$B$9:$N$1882,7,FALSE) -> 22.98108076 | N41: =VLOOKUP(C41,'Anexo_GL '!$B$9:$N$1882,8,FALSE) -> Cumple | P41: =VLOOKUP(C41,'Anexo_GL '!$B$9:$N$1882,10,FALSE) -> 771.20076 | Q41: =VLOOKUP(C41,'Anexo_GL '!$B$9:$N$1882,11,FALSE) -> 675.60171 | R41: =VLOOKUP(C41,'Anexo_GL '!$B$9:$N$1882,12,FALSE) -> 95.59905 | S41: =VLOOKUP(C41,'Anexo_GL '!$B$9:$N$1882,13,FALSE) -> Cumple
A42: 010115 : MD DE MONTEVIDEO | B42: 15 | C42: 010115 | D42: AMAZONAS | E42: MD DE MONTEVIDEO | F42: =VLOOKUP(C42,'Anexo_GL '!$B$9:$N$1882,4,FALSE) -> 169.4653 | H42: =VLOOKUP(C42,'Anexo_GL '!$B$9:$N$1882,5,FALSE) -> 741.41374 | I42: =VLOOKUP(C42,'Anexo_GL '!$B$9:$N$1882,6,FALSE) -> 0.00083 | L42: =VLOOKUP(C42,'Anexo_GL '!$B$9:$N$1882,7,FALSE) -> 22.85704875 | N42: =VLOOKUP(C42,'Anexo_GL '!$B$9:$N$1882,8,FALSE) -> Cumple | P42: =VLOOKUP(C42,'Anexo_GL '!$B$9:$N$1882,10,FALSE) -> 951.76838 | Q42: =VLOOKUP(C42,'Anexo_GL '!$B$9:$N$1882,11,FALSE) -> 796.80527 | R42: =VLOOKUP(C42,'Anexo_GL '!$B$9:$N$1882,12,FALSE) -> 154.96311 | S42: =VLOOKUP(C42,'Anexo_GL '!$B$9:$N$1882,13,FALSE) -> Cumple
A43: 010116 : MD DE OLLEROS | B43: 16 | C43: 010116 | D43: AMAZONAS | E43: MD DE OLLEROS | F43: =VLOOKUP(C43,'Anexo_GL '!$B$9:$N$1882,4,FALSE) -> 71.81512 | H43: =VLOOKUP(C43,'Anexo_GL '!$B$9:$N$1882,5,FALSE) -> 621.34966 | I43: =VLOOKUP(C43,'Anexo_GL '!$B$9:$N$1882,6,FALSE) -> 0.00176 | L43: =VLOOKUP(C43,'Anexo_GL '!$B$9:$N$1882,7,FALSE) -> 11.55792376 | N43: =VLOOKUP(C43,'Anexo_GL '!$B$9:$N$1882,8,FALSE) -> Cumple | P43: =VLOOKUP(C43,'Anexo_GL '!$B$9:$N$1882,10,FALSE) -> 667.60992 | Q43: =VLOOKUP(C43,'Anexo_GL '!$B$9:$N$1882,11,FALSE) -> 400.92338 | R43: =VLOOKUP(C43,'Anexo_GL '!$B$9:$N$1882,12,FALSE) -> 266.68654 | S43: =VLOOKUP(C43,'Anexo_GL '!$B$9:$N$1882,13,FALSE) -> Cumple
A44: 010117 : MD DE QUINJALCA | B44: 17 | C44: 010117 | D44: AMAZONAS | E44: MD DE QUINJALCA | F44: =VLOOKUP(C44,'Anexo_GL '!$B$9:$N$1882,4,FALSE) -> 23.86425 | H44: =VLOOKUP(C44,'Anexo_GL '!$B$9:$N$1882,5,FALSE) -> 628.9637875 | I44: =VLOOKUP(C44,'Anexo_GL '!$B$9:$N$1882,6,FALSE) -> 0.00332 | L44: =VLOOKUP(C44,'Anexo_GL '!$B$9:$N$1882,7,FALSE) -> 3.794216849 | N44: =VLOOKUP(C44,'Anexo_GL '!$B$9:$N$1882,8,FALSE) -> Cumple | P44: =VLOOKUP(C44,'Anexo_GL '!$B$9:$N$1882,10,FALSE) -> 639.64191 | Q44: =VLOOKUP(C44,'Anexo_GL '!$B$9:$N$1882,11,FALSE) -> 577.06076 | R44: =VLOOKUP(C44,'Anexo_GL '!$B$9:$N$1882,12,FALSE) -> 62.58115 | S44: =VLOOKUP(C44,'Anexo_GL '!$B$9:$N$1882,13,FALSE) -> Cumple
A45: 010118 : MD DE SAN FRANCISCO DE DAGUAS | B45: 18 | C45: 010118 | D45: AMAZONAS | E45: MD DE SAN FRANCISCO DE DAGUAS | F45: =VLOOKUP(C45,'Anexo_GL '!$B$9:$N$1882,4,FALSE) -> 47.64733 | H45: =VLOOKUP(C45,'Anexo_GL '!$B$9:$N$1882,5,FALSE) -> 637.052715 | I45: =VLOOKUP(C45,'Anexo_GL '!$B$9:$N$1882,6,FALSE) -> 0.00045 | L45: =VLOOKUP(C45,'Anexo_GL '!$B$9:$N$1882,7,FALSE) -> 7.47933866 | N45: =VLOOKUP(C45,'Anexo_GL '!$B$9:$N$1882,8,FALSE) -> Cumple | P45: =VLOOKUP(C45,'Anexo_GL '!$B$9:$N$1882,10,FALSE) -> 688.45524 | Q45: =VLOOKUP(C45,'Anexo_GL '!$B$9:$N$1882,11,FALSE) -> 277.99361 | R45: =VLOOKUP(C45,'Anexo_GL '!$B$9:$N$1882,12,FALSE) -> 410.46163 | S45: =VLOOKUP(C45,'Anexo_GL '!$B$9:$N$1882,13,FALSE) -> Cumple
A46: 010119 : MD DE SAN ISIDRO DE MAYNO | B46: 19 | C46: 010119 | D46: AMAZONAS | E46: MD DE SAN ISIDRO DE MAYNO | F46: =VLOOKUP(C46,'Anexo_GL '!$B$9:$N$1882,4,FALSE) -> 277.21582 | H46: =VLOOKUP(C46,'Anexo_GL '!$B$9:$N$1882,5,FALSE) -> 811.4865575 | I46: =VLOOKUP(C46,'Anexo_GL '!$B$9:$N$1882,6,FALSE) -> 0.0012 | L46: =VLOOKUP(C46,'Anexo_GL '!$B$9:$N$1882,7,FALSE) -> 34.16148024 | N46: =VLOOKUP(C46,'Anexo_GL '!$B$9:$N$1882,8,FALSE) -> Cumple | P46: =VLOOKUP(C46,'Anexo_GL '!$B$9:$N$1882,10,FALSE) -> 692.53205 | Q46: =VLOOKUP(C46,'Anexo_GL '!$B$9:$N$1882,11,FALSE) -> 434.36078 | R46: =VLOOKUP(C46,'Anexo_GL '!$B$9:$N$1882,12,FALSE) -> 258.17127 | S46: =VLOOKUP(C46,'Anexo_GL '!$B$9:$N$1882,13,FALSE) -> Cumple
A47: 010120 : MD DE SOLOCO | B47: 20 | C47: 010120 | D47: AMAZONAS | E47: MD DE SOLOCO | F47: =VLOOKUP(C47,'Anexo_GL '!$B$9:$N$1882,4,FALSE) -> 944.35088 | H47: =VLOOKUP(C47,'Anexo_GL '!$B$9:$N$1882,5,FALSE) -> 876.86805 | I47: =VLOOKUP(C47,'Anexo_GL '!$B$9:$N$1882,6,FALSE) -> 0.00221 | L47: =VLOOKUP(C47,'Anexo_GL '!$B$9:$N$1882,7,FALSE) -> 107.6958934 | N47: =VLOOKUP(C47,'Anexo_GL '!$B$9:$N$1882,8,FALSE) -> No Cumple | P47: =VLOOKUP(C47,'Anexo_GL '!$B$9:$N$1882,10,FALSE) -> 729.75959 | Q47: =VLOOKUP(C47,'Anexo_GL '!$B$9:$N$1882,11,FALSE) -> 433.06141 | R47: =VLOOKUP(C47,'Anexo_GL '!$B$9:$N$1882,12,FALSE) -> 296.69818 | S47: =VLOOKUP(C47,'Anexo_GL '!$B$9:$N$1882,13,FALSE) -> Cumple
A48: 010121 : MD DE SONCHE | B48: 21 | C48: 010121 | D48: AMAZONAS | E48: MD DE SONCHE | F48: =VLOOKUP(C48,'Anexo_GL '!$B$9:$N$1882,4,FALSE) -> 156.49106 | H48: =VLOOKUP(C48,'Anexo_GL '!$B$9:$N$1882,5,FALSE) -> 776.920905 | I48: =VLOOKUP(C48,'Anexo_GL '!$B$9:$N$1882,6,FALSE) -> 0.00092 | L48: =VLOOKUP(C48,'Anexo_GL '!$B$9:$N$1882,7,FALSE) -> 20.14246997 | N48: =VLOOKUP(C48,'Anexo_GL '!$B$9:$N$1882,8,FALSE) -> Cumple | P48: =VLOOKUP(C48,'Anexo_GL '!$B$9:$N$1882,10,FALSE) -> 1087.53278 | Q48: =VLOOKUP(C48,'Anexo_GL '!$B$9:$N$1882,11,FALSE) -> 806.41149 | R48: =VLOOKUP(C48,'Anexo_GL '!$B$9:$N$1882,12,FALSE) -> 281.12129 | S48: =VLOOKUP(C48,'Anexo_GL '!$B$9:$N$1882,13,FALSE) -> Cumple
A49: 010201 : MP DE BAGUA - LA PECA | B49: 22 | C49: 010201 | D49: AMAZONAS | E49: MP DE BAGUA - LA PECA | F49: =VLOOKUP(C49,'Anexo_GL '!$B$9:$N$1882,4,FALSE) -> 4652.16559 | H49: =VLOOKUP(C49,'Anexo_GL '!$B$9:$N$1882,5,FALSE) -> 21942.21698 | I49: =VLOOKUP(C49,'Anexo_GL '!$B$9:$N$1882,6,FALSE) -> 0.83526 | L49: =VLOOKUP(C49,'Anexo_GL '!$B$9:$N$1882,7,FALSE) -> 21.20189402 | N49: =VLOOKUP(C49,'Anexo_GL '!$B$9:$N$1882,8,FALSE) -> Cumple | P49: =VLOOKUP(C49,'Anexo_GL '!$B$9:$N$1882,10,FALSE) -> 27712.62171 | Q49: =VLOOKUP(C49,'Anexo_GL '!$B$9:$N$1882,11,FALSE) -> 19223.08897 | R49: =VLOOKUP(C49,'Anexo_GL '!$B$9:$N$1882,12,FALSE) -> 8489.53274 | S49: =VLOOKUP(C49,'Anexo_GL '!$B$9:$N$1882,13,FALSE) -> Cumple
A50: 010202 : MD DE ARAMANGO | B50: 23 | C50: 010202 | D50: AMAZONAS | E50: MD DE ARAMANGO | F50: =VLOOKUP(C50,'Anexo_GL '!$B$9:$N$1882,4,FALSE) -> 936.3044 | H50: =VLOOKUP(C50,'Anexo_GL '!$B$9:$N$1882,5,FALSE) -> 4698.069698 | I50: =VLOOKUP(C50,'Anexo_GL '!$B$9:$N$1882,6,FALSE) -> 1.13562 | L50: =VLOOKUP(C50,'Anexo_GL '!$B$9:$N$1882,7,FALSE) -> 19.92955533 | N50: =VLOOKUP(C50,'Anexo_GL '!$B$9:$N$1882,8,FALSE) -> Cumple | P50: =VLOOKUP(C50,'Anexo_GL '!$B$9:$N$1882,10,FALSE) -> 6312.79864 | Q50: =VLOOKUP(C50,'Anexo_GL '!$B$9:$N$1882,11,FALSE) -> 3865.5009 | R50: =VLOOKUP(C50,'Anexo_GL '!$B$9:$N$1882,12,FALSE) -> 2447.29774 | S50: =VLOOKUP(C50,'Anexo_GL '!$B$9:$N$1882,13,FALSE) -> Cumple
A51: 010203 : MD DE COPALLIN | B51: 24 | C51: 010203 | D51: AMAZONAS | E51: MD DE COPALLIN | F51: =VLOOKUP(C51,'Anexo_GL '!$B$9:$N$1882,4,FALSE) -> 673.62649 | H51: =VLOOKUP(C51,'Anexo_GL '!$B$9:$N$1882,5,FALSE) -> 2644.797785 | I51: =VLOOKUP(C51,'Anexo_GL '!$B$9:$N$1882,6,FALSE) -> 0.01166 | L51: =VLOOKUP(C51,'Anexo_GL '!$B$9:$N$1882,7,FALSE) -> 25.46986744 | N51: =VLOOKUP(C51,'Anexo_GL '!$B$9:$N$1882,8,FALSE) -> Cumple | P51: =VLOOKUP(C51,'Anexo_GL '!$B$9:$N$1882,10,FALSE) -> 2232.12048 | Q51: =VLOOKUP(C51,'Anexo_GL '!$B$9:$N$1882,11,FALSE) -> 1891.21112 | R51: =VLOOKUP(C51,'Anexo_GL '!$B$9:$N$1882,12,FALSE) -> 340.90936 | S51: =VLOOKUP(C51,'Anexo_GL '!$B$9:$N$1882,13,FALSE) -> Cumple
A52: 010204 : MD DE EL PARCO | B52: 25 | C52: 010204 | D52: AMAZONAS | E52: MD DE EL PARCO | F52: =VLOOKUP(C52,'Anexo_GL '!$B$9:$N$1882,4,FALSE) -> 264.47518 | H52: =VLOOKUP(C52,'Anexo_GL '!$B$9:$N$1882,5,FALSE) -> 5453.15399 | I52: =VLOOKUP(C52,'Anexo_GL '!$B$9:$N$1882,6,FALSE) -> 0.00402 | L52: =VLOOKUP(C52,'Anexo_GL '!$B$9:$N$1882,7,FALSE) -> 4.849948864 | N52: =VLOOKUP(C52,'Anexo_GL '!$B$9:$N$1882,8,FALSE) -> Cumple | P52: =VLOOKUP(C52,'Anexo_GL '!$B$9:$N$1882,10,FALSE) -> 6565.57675 | Q52: =VLOOKUP(C52,'Anexo_GL '!$B$9:$N$1882,11,FALSE) -> 1397.23753 | R52: =VLOOKUP(C52,'Anexo_GL '!$B$9:$N$1882,12,FALSE) -> 5168.33922 | S52: =VLOOKUP(C52,'Anexo_GL '!$B$9:$N$1882,13,FALSE) -> Cumple
A53: 010205 : MD DE IMAZA | B53: 26 | C53: 010205 | D53: AMAZONAS | E53: MD DE IMAZA | F53: =VLOOKUP(C53,'Anexo_GL '!$B$9:$N$1882,4,FALSE) -> 7738.80486 | H53: =VLOOKUP(C53,'Anexo_GL '!$B$9:$N$1882,5,FALSE) -> 10024.63327 | I53: =VLOOKUP(C53,'Anexo_GL '!$B$9:$N$1882,6,FALSE) -> 2.32133 | L53: =VLOOKUP(C53,'Anexo_GL '!$B$9:$N$1882,7,FALSE) -> 77.19788498 | N53: =VLOOKUP(C53,'Anexo_GL '!$B$9:$N$1882,8,FALSE) -> Cumple | P53: =VLOOKUP(C53,'Anexo_GL '!$B$9:$N$1882,10,FALSE) -> 11810.92656 | Q53: =VLOOKUP(C53,'Anexo_GL '!$B$9:$N$1882,11,FALSE) -> 8076.38503 | R53: =VLOOKUP(C53,'Anexo_GL '!$B$9:$N$1882,12,FALSE) -> 3734.54153 | S53: =VLOOKUP(C53,'Anexo_GL '!$B$9:$N$1882,13,FALSE) -> Cumple
A54: 010206 : MD DE LA PECA | B54: 27 | C54: 010206 | D54: AMAZONAS | E54: MD DE LA PECA | F54: =VLOOKUP(C54,'Anexo_GL '!$B$9:$N$1882,4,FALSE) -> 343.86002 | H54: =VLOOKUP(C54,'Anexo_GL '!$B$9:$N$1882,5,FALSE) -> 3068.481657 | I54: =VLOOKUP(C54,'Anexo_GL '!$B$9:$N$1882,6,FALSE) -> 0.01576 | L54: =VLOOKUP(C54,'Anexo_GL '!$B$9:$N$1882,7,FALSE) -> 11.20619441 | N54: =VLOOKUP(C54,'Anexo_GL '!$B$9:$N$1882,8,FALSE) -> Cumple | P54: =VLOOKUP(C54,'Anexo_GL '!$B$9:$N$1882,10,FALSE) -> 3910.62989 | Q54: =VLOOKUP(C54,'Anexo_GL '!$B$9:$N$1882,11,FALSE) -> 3028.8709 | R54: =VLOOKUP(C54,'Anexo_GL '!$B$9:$N$1882,12,FALSE) -> 881.75899 | S54: =VLOOKUP(C54,'Anexo_GL '!$B$9:$N$1882,13,FALSE) -> Cumple
A55: 010301 : MP DE BONGARA - JUMBILLA | B55: 28 | C55: 010301 | D55: AMAZONAS | E55: MP DE BONGARA - JUMBILLA | F55: =VLOOKUP(C55,'Anexo_GL '!$B$9:$N$1882,4,FALSE) -> 2685.34057 | H55: =VLOOKUP(C55,'Anexo_GL '!$B$9:$N$1882,5,FALSE) -> 6276.021463 | I55: =VLOOKUP(C55,'Anexo_GL '!$B$9:$N$1882,6,FALSE) -> 0.00235 | L55: =VLOOKUP(C55,'Anexo_GL '!$B$9:$N$1882,7,FALSE) -> 42.78730699 | N55: =VLOOKUP(C55,'Anexo_GL '!$B$9:$N$1882,8,FALSE) -> Cumple | P55: =VLOOKUP(C55,'Anexo_GL '!$B$9:$N$1882,10,FALSE) -> 6535.28728 | Q55: =VLOOKUP(C55,'Anexo_GL '!$B$9:$N$1882,11,FALSE) -> 4427.84933 | R55: =VLOOKUP(C55,'Anexo_GL '!$B$9:$N$1882,12,FALSE) -> 2107.43795 | S55: =VLOOKUP(C55,'Anexo_GL '!$B$9:$N$1882,13,FALSE) -> Cumple
A56: 010302 : MD DE CHISQUILLA | B56: 29 | C56: 010302 | D56: AMAZONAS | E56: MD DE CHISQUILLA | F56: =VLOOKUP(C56,'Anexo_GL '!$B$9:$N$1882,4,FALSE) -> 52.01281 | H56: =VLOOKUP(C56,'Anexo_GL '!$B$9:$N$1882,5,FALSE) -> 684.0064325 | I56: =VLOOKUP(C56,'Anexo_GL '!$B$9:$N$1882,6,FALSE) -> 0.00098 | L56: =VLOOKUP(C56,'Anexo_GL '!$B$9:$N$1882,7,FALSE) -> 7.604140477 | N56: =VLOOKUP(C56,'Anexo_GL '!$B$9:$N$1882,8,FALSE) -> Cumple | P56: =VLOOKUP(C56,'Anexo_GL '!$B$9:$N$1882,10,FALSE) -> 1098.13001 | Q56: =VLOOKUP(C56,'Anexo_GL '!$B$9:$N$1882,11,FALSE) -> 765.86651 | R56: =VLOOKUP(C56,'Anexo_GL '!$B$9:$N$1882,12,FALSE) -> 332.2635 | S56: =VLOOKUP(C56,'Anexo_GL '!$B$9:$N$1882,13,FALSE) -> Cumple
A57: 010303 : MD DE CHURUJA | B57: 30 | C57: 010303 | D57: AMAZONAS | E57: MD DE CHURUJA | F57: =VLOOKUP(C57,'Anexo_GL '!$B$9:$N$1882,4,FALSE) -> 31.63187 | H57: =VLOOKUP(C57,'Anexo_GL '!$B$9:$N$1882,5,FALSE) -> 535.5532525 | I57: =VLOOKUP(C57,'Anexo_GL '!$B$9:$N$1882,6,FALSE) -> 0.00068 | L57: =VLOOKUP(C57,'Anexo_GL '!$B$9:$N$1882,7,FALSE) -> 5.906391167 | N57: =VLOOKUP(C57,'Anexo_GL '!$B$9:$N$1882,8,FALSE) -> Cumple | P57: =VLOOKUP(C57,'Anexo_GL '!$B$9:$N$1882,10,FALSE) -> 506.15396 | Q57: =VLOOKUP(C57,'Anexo_GL '!$B$9:$N$1882,11,FALSE) -> 411.51777 | R57: =VLOOKUP(C57,'Anexo_GL '!$B$9:$N$1882,12,FALSE) -> 94.63619 | S57: =VLOOKUP(C57,'Anexo_GL '!$B$9:$N$1882,13,FALSE) -> Cumple
A58: 010304 : MD DE COROSHA | B58: 31 | C58: 010304 | D58: AMAZONAS | E58: MD DE COROSHA | F58: =VLOOKUP(C58,'Anexo_GL '!$B$9:$N$1882,4,FALSE) -> 44.06302 | H58: =VLOOKUP(C58,'Anexo_GL '!$B$9:$N$1882,5,FALSE) -> 912.4923375 | I58: =VLOOKUP(C58,'Anexo_GL '!$B$9:$N$1882,6,FALSE) -> 0.00351 | L58: =VLOOKUP(C58,'Anexo_GL '!$B$9:$N$1882,7,FALSE) -> 4.828864659 | N58: =VLOOKUP(C58,'Anexo_GL '!$B$9:$N$1882,8,FALSE) -> Cumple | P58: =VLOOKUP(C58,'Anexo_GL '!$B$9:$N$1882,10,FALSE) -> 1941.01844 | Q58: =VLOOKUP(C58,'Anexo_GL '!$B$9:$N$1882,11,FALSE) -> 1194.47314 | R58: =VLOOKUP(C58,'Anexo_GL '!$B$9:$N$1882,12,FALSE) -> 746.5453 | S58: =VLOOKUP(C58,'Anexo_GL '!$B$9:$N$1882,13,FALSE) -> Cumple
A59: 010305 : MD DE CUISPES | B59: 32 | C59: 010305 | D59: AMAZONAS | E59: MD DE CUISPES | F59: =VLOOKUP(C59,'Anexo_GL '!$B$9:$N$1882,4,FALSE) -> 43.34059 | H59: =VLOOKUP(C59,'Anexo_GL '!$B$9:$N$1882,5,FALSE) -> 649.051765 | I59: =VLOOKUP(C59,'Anexo_GL '!$B$9:$N$1882,6,FALSE) -> 0.00172 | L59: =VLOOKUP(C59,'Anexo_GL '!$B$9:$N$1882,7,FALSE) -> 6.677524404 | N59: =VLOOKUP(C59,'Anexo_GL '!$B$9:$N$1882,8,FALSE) -> Cumple | P59: =VLOOKUP(C59,'Anexo_GL '!$B$9:$N$1882,10,FALSE) -> 727.49719 | Q59: =VLOOKUP(C59,'Anexo_GL '!$B$9:$N$1882,11,FALSE) -> 477.7363 | R59: =VLOOKUP(C59,'Anexo_GL '!$B$9:$N$1882,12,FALSE) -> 249.76089 | S59: =VLOOKUP(C59,'Anexo_GL '!$B$9:$N$1882,13,FALSE) -> Cumple
A60: 010306 : MD DE FLORIDA | B60: 33 | C60: 010306 | D60: AMAZONAS | E60: MD DE FLORIDA | F60: =VLOOKUP(C60,'Anexo_GL '!$B$9:$N$1882,4,FALSE) -> 338.29673 | H60: =VLOOKUP(C60,'Anexo_GL '!$B$9:$N$1882,5,FALSE) -> 3064.121985 | I60: =VLOOKUP(C60,'Anexo_GL '!$B$9:$N$1882,6,FALSE) -> 0.01757 | L60: =VLOOKUP(C60,'Anexo_GL '!$B$9:$N$1882,7,FALSE) -> 11.04057644 | N60: =VLOOKUP(C60,'Anexo_GL '!$B$9:$N$1882,8,FALSE) -> Cumple | P60: =VLOOKUP(C60,'Anexo_GL '!$B$9:$N$1882,10,FALSE) -> 4226.21507 | Q60: =VLOOKUP(C60,'Anexo_GL '!$B$9:$N$1882,11,FALSE) -> 2696.50097 | R60: =VLOOKUP(C60,'Anexo_GL '!$B$9:$N$1882,12,FALSE) -> 1529.7141 | S60: =VLOOKUP(C60,'Anexo_GL '!$B$9:$N$1882,13,FALSE) -> Cumple
A61: 010307 : MD DE JAZAN | B61: 34 | C61: 010307 | D61: AMAZONAS | E61: MD DE JAZAN | F61: =VLOOKUP(C61,'Anexo_GL '!$B$9:$N$1882,4,FALSE) -> 1460.7744 | H61: =VLOOKUP(C61,'Anexo_GL '!$B$9:$N$1882,5,FALSE) -> 3577.70185 | I61: =VLOOKUP(C61,'Anexo_GL '!$B$9:$N$1882,6,FALSE) -> 0.01073 | L61: =VLOOKUP(C61,'Anexo_GL '!$B$9:$N$1882,7,FALSE) -> 40.82996463 | N61: =VLOOKUP(C61,'Anexo_GL '!$B$9:$N$1882,8,FALSE) -> Cumple | P61: =VLOOKUP(C61,'Anexo_GL '!$B$9:$N$1882,10,FALSE) -> 3714.15479 | Q61: =VLOOKUP(C61,'Anexo_GL '!$B$9:$N$1882,11,FALSE) -> 2991.51965 | R61: =VLOOKUP(C61,'Anexo_GL '!$B$9:$N$1882,12,FALSE) -> 722.63514 | S61: =VLOOKUP(C61,'Anexo_GL '!$B$9:$N$1882,13,FALSE) -> Cumple
A62: 010308 : MD DE RECTA | B62: 35 | C62: 010308 | D62: AMAZONAS | E62: MD DE RECTA | F62: =VLOOKUP(C62,'Anexo_GL '!$B$9:$N$1882,4,FALSE) -> 175.43579 | H62: =VLOOKUP(C62,'Anexo_GL '!$B$9:$N$1882,5,FALSE) -> 751.93611 | I62: =VLOOKUP(C62,'Anexo_GL '!$B$9:$N$1882,6,FALSE) -> 0.00061 | L62: =VLOOKUP(C62,'Anexo_GL '!$B$9:$N$1882,7,FALSE) -> 23.33120962 | N62: =VLOOKUP(C62,'Anexo_GL '!$B$9:$N$1882,8,FALSE) -> Cumple | P62: =VLOOKUP(C62,'Anexo_GL '!$B$9:$N$1882,10,FALSE) -> 1282.71208 | Q62: =VLOOKUP(C62,'Anexo_GL '!$B$9:$N$1882,11,FALSE) -> 1023.1513 | R62: =VLOOKUP(C62,'Anexo_GL '!$B$9:$N$1882,12,FALSE) -> 259.56078 | S62: =VLOOKUP(C62,'Anexo_GL '!$B$9:$N$1882,13,FALSE) -> Cumple
A63: 010309 : MD DE SAN CARLOS | B63: 36 | C63: 010309 | D63: AMAZONAS | E63: MD DE SAN CARLOS | F63: =VLOOKUP(C63,'Anexo_GL '!$B$9:$N$1882,4,FALSE) -> 62.81451 | H63: =VLOOKUP(C63,'Anexo_GL '!$B$9:$N$1882,5,FALSE) -> 615.2424125 | I63: =VLOOKUP(C63,'Anexo_GL '!$B$9:$N$1882,6,FALSE) -> 0.00114 | L63: =VLOOKUP(C63,'Anexo_GL '!$B$9:$N$1882,7,FALSE) -> 10.20971713 | N63: =VLOOKUP(C63,'Anexo_GL '!$B$9:$N$1882,8,FALSE) -> Cumple | P63: =VLOOKUP(C63,'Anexo_GL '!$B$9:$N$1882,10,FALSE) -> 692.30242 | Q63: =VLOOKUP(C63,'Anexo_GL '!$B$9:$N$1882,11,FALSE) -> 474.02503 | R63: =VLOOKUP(C63,'Anexo_GL '!$B$9:$N$1882,12,FALSE) -> 218.27739 | S63: =VLOOKUP(C63,'Anexo_GL '!$B$9:$N$1882,13,FALSE) -> Cumple
A64: 010310 : MD DE SHIPASBAMBA | B64: 37 | C64: 010310 | D64: AMAZONAS | E64: MD DE SHIPASBAMBA | F64: =VLOOKUP(C64,'Anexo_GL '!$B$9:$N$1882,4,FALSE) -> 26.19509 | H64: =VLOOKUP(C64,'Anexo_GL '!$B$9:$N$1882,5,FALSE) -> 1041.433218 | I64: =VLOOKUP(C64,'Anexo_GL '!$B$9:$N$1882,6,FALSE) -> 0.00447 | L64: =VLOOKUP(C64,'Anexo_GL '!$B$9:$N$1882,7,FALSE) -> 2.515292345 | N64: =VLOOKUP(C64,'Anexo_GL '!$B$9:$N$1882,8,FALSE) -> Cumple | P64: =VLOOKUP(C64,'Anexo_GL '!$B$9:$N$1882,10,FALSE) -> 1414.14834 | Q64: =VLOOKUP(C64,'Anexo_GL '!$B$9:$N$1882,11,FALSE) -> 570.51269 | R64: =VLOOKUP(C64,'Anexo_GL '!$B$9:$N$1882,12,FALSE) -> 843.63565 | S64: =VLOOKUP(C64,'Anexo_GL '!$B$9:$N$1882,13,FALSE) -> Cumple
A65: 010311 : MD DE VALERA | B65: 38 | C65: 010311 | D65: AMAZONAS | E65: MD DE VALERA | F65: =VLOOKUP(C65,'Anexo_GL '!$B$9:$N$1882,4,FALSE) -> 52.33664 | H65: =VLOOKUP(C65,'Anexo_GL '!$B$9:$N$1882,5,FALSE) -> 691.20874 | I65: =VLOOKUP(C65,'Anexo_GL '!$B$9:$N$1882,6,FALSE) -> 0.0018 | L65: =VLOOKUP(C65,'Anexo_GL '!$B$9:$N$1882,7,FALSE) -> 7.571756109 | N65: =VLOOKUP(C65,'Anexo_GL '!$B$9:$N$1882,8,FALSE) -> Cumple | P65: =VLOOKUP(C65,'Anexo_GL '!$B$9:$N$1882,10,FALSE) -> 784.1392 | Q65: =VLOOKUP(C65,'Anexo_GL '!$B$9:$N$1882,11,FALSE) -> 399.12661 | R65: =VLOOKUP(C65,'Anexo_GL '!$B$9:$N$1882,12,FALSE) -> 385.01259 | S65: =VLOOKUP(C65,'Anexo_GL '!$B$9:$N$1882,13,FALSE) -> Cumple
A66: 010312 : MD DE YAMBRASBAMBA | B66: 39 | C66: 010312 | D66: AMAZONAS | E66: MD DE YAMBRASBAMBA | F66: =VLOOKUP(C66,'Anexo_GL '!$B$9:$N$1882,4,FALSE) -> 1260.86869 | H66: =VLOOKUP(C66,'Anexo_GL '!$B$9:$N$1882,5,FALSE) -> 3447.792652 | I66: =VLOOKUP(C66,'Anexo_GL '!$B$9:$N$1882,6,FALSE) -> 0.02096 | L66: =VLOOKUP(C66,'Anexo_GL '!$B$9:$N$1882,7,FALSE) -> 36.57031664 | N66: =VLOOKUP(C66,'Anexo_GL '!$B$9:$N$1882,8,FALSE) -> Cumple | P66: =VLOOKUP(C66,'Anexo_GL '!$B$9:$N$1882,10,FALSE) -> 4502.07069 | Q66: =VLOOKUP(C66,'Anexo_GL '!$B$9:$N$1882,11,FALSE) -> 2411.47365 | R66: =VLOOKUP(C66,'Anexo_GL '!$B$9:$N$1882,12,FALSE) -> 2090.59704 | S66: =VLOOKUP(C66,'Anexo_GL '!$B$9:$N$1882,13,FALSE) -> Cumple
A67: 010401 : MP DE CONDORCANQUI - NIEVA | B67: 40 | C67: 010401 | D67: AMAZONAS | E67: MP DE CONDORCANQUI - NIEVA | F67: =VLOOKUP(C67,'Anexo_GL '!$B$9:$N$1882,4,FALSE) -> 2527.33984 | H67: =VLOOKUP(C67,'Anexo_GL '!$B$9:$N$1882,5,FALSE) -> 22308.95432 | I67: =VLOOKUP(C67,'Anexo_GL '!$B$9:$N$1882,6,FALSE) -> 2.47299 | L67: =VLOOKUP(C67,'Anexo_GL '!$B$9:$N$1882,7,FALSE) -> 11.32881355 | N67: =VLOOKUP(C67,'Anexo_GL '!$B$9:$N$1882,8,FALSE) -> Cumple | P67: =VLOOKUP(C67,'Anexo_GL '!$B$9:$N$1882,10,FALSE) -> 26459.55479 | Q67: =VLOOKUP(C67,'Anexo_GL '!$B$9:$N$1882,11,FALSE) -> 20004.91075 | R67: =VLOOKUP(C67,'Anexo_GL '!$B$9:$N$1882,12,FALSE) -> 6454.64404 | S67: =VLOOKUP(C67,'Anexo_GL '!$B$9:$N$1882,13,FALSE) -> Cumple
A68: 010402 : MD DE EL CENEPA | B68: 41 | C68: 010402 | D68: AMAZONAS | E68: MD DE EL CENEPA | F68: =VLOOKUP(C68,'Anexo_GL '!$B$9:$N$1882,4,FALSE) -> 199.19693 | H68: =VLOOKUP(C68,'Anexo_GL '!$B$9:$N$1882,5,FALSE) -> 5816.12856 | I68: =VLOOKUP(C68,'Anexo_GL '!$B$9:$N$1882,6,FALSE) -> 0.65616 | L68: =VLOOKUP(C68,'Anexo_GL '!$B$9:$N$1882,7,FALSE) -> 3.424905897 | N68: =VLOOKUP(C68,'Anexo_GL '!$B$9:$N$1882,8,FALSE) -> Cumple | P68: =VLOOKUP(C68,'Anexo_GL '!$B$9:$N$1882,10,FALSE) -> 8000.08199 | Q68: =VLOOKUP(C68,'Anexo_GL '!$B$9:$N$1882,11,FALSE) -> 6343.21088 | R68: =VLOOKUP(C68,'Anexo_GL '!$B$9:$N$1882,12,FALSE) -> 1656.87111 | S68: =VLOOKUP(C68,'Anexo_GL '!$B$9:$N$1882,13,FALSE) -> Cumple
A69: 010403 : MD DE RIO SANTIAGO | B69: 42 | C69: 010403 | D69: AMAZONAS | E69: MD DE RIO SANTIAGO | F69: =VLOOKUP(C69,'Anexo_GL '!$B$9:$N$1882,4,FALSE) -> 2289.65015 | H69: =VLOOKUP(C69,'Anexo_GL '!$B$9:$N$1882,5,FALSE) -> 8973.549933 | I69: =VLOOKUP(C69,'Anexo_GL '!$B$9:$N$1882,6,FALSE) -> 1.11271 | L69: =VLOOKUP(C69,'Anexo_GL '!$B$9:$N$1882,7,FALSE) -> 25.51554476 | N69: =VLOOKUP(C69,'Anexo_GL '!$B$9:$N$1882,8,FALSE) -> Cumple | P69: =VLOOKUP(C69,'Anexo_GL '!$B$9:$N$1882,10,FALSE) -> 11913.80409 | Q69: =VLOOKUP(C69,'Anexo_GL '!$B$9:$N$1882,11,FALSE) -> 9820.87033 | R69: =VLOOKUP(C69,'Anexo_GL '!$B$9:$N$1882,12,FALSE) -> 2092.93376 | S69: =VLOOKUP(C69,'Anexo_GL '!$B$9:$N$1882,13,FALSE) -> Cumple
A70: 010501 : MP DE LUYA - LAMUD | B70: 43 | C70: 010501 | D70: AMAZONAS | E70: MP DE LUYA - LAMUD | F70: =VLOOKUP(C70,'Anexo_GL '!$B$9:$N$1882,4,FALSE) -> 4604.31971 | H70: =VLOOKUP(C70,'Anexo_GL '!$B$9:$N$1882,5,FALSE) -> 21924.3909 | I70: =VLOOKUP(C70,'Anexo_GL '!$B$9:$N$1882,6,FALSE) -> 0.00203 | L70: =VLOOKUP(C70,'Anexo_GL '!$B$9:$N$1882,7,FALSE) -> 21.00090138 | N70: =VLOOKUP(C70,'Anexo_GL '!$B$9:$N$1882,8,FALSE) -> Cumple | P70: =VLOOKUP(C70,'Anexo_GL '!$B$9:$N$1882,10,FALSE) -> 26303.8942 | Q70: =VLOOKUP(C70,'Anexo_GL '!$B$9:$N$1882,11,FALSE) -> 22779.12443 | R70: =VLOOKUP(C70,'Anexo_GL '!$B$9:$N$1882,12,FALSE) -> 3524.76977 | S70: =VLOOKUP(C70,'Anexo_GL '!$B$9:$N$1882,13,FALSE) -> Cumple
A71: 010502 : MD DE CAMPORREDONDO | B71: 44 | C71: 010502 | D71: AMAZONAS | E71: MD DE CAMPORREDONDO | F71: =VLOOKUP(C71,'Anexo_GL '!$B$9:$N$1882,4,FALSE) -> 53.74434 | H71: =VLOOKUP(C71,'Anexo_GL '!$B$9:$N$1882,5,FALSE) -> 3402.525547 | I71: =VLOOKUP(C71,'Anexo_GL '!$B$9:$N$1882,6,FALSE) -> 0.01262 | L71: =VLOOKUP(C71,'Anexo_GL '!$B$9:$N$1882,7,FALSE) -> 1.579542585 | N71: =VLOOKUP(C71,'Anexo_GL '!$B$9:$N$1882,8,FALSE) -> Cumple | P71: =VLOOKUP(C71,'Anexo_GL '!$B$9:$N$1882,10,FALSE) -> 2537.33597 | Q71: =VLOOKUP(C71,'Anexo_GL '!$B$9:$N$1882,11,FALSE) -> 2714.42099 | R71: =VLOOKUP(C71,'Anexo_GL '!$B$9:$N$1882,12,FALSE) -> -177.08502 | S71: =VLOOKUP(C71,'Anexo_GL '!$B$9:$N$1882,13,FALSE) -> No Cumple
A72: 010503 : MD DE COCABAMBA | B72: 45 | C72: 010503 | D72: AMAZONAS | E72: MD DE COCABAMBA | F72: =VLOOKUP(C72,'Anexo_GL '!$B$9:$N$1882,4,FALSE) -> 1550.48623 | H72: =VLOOKUP(C72,'Anexo_GL '!$B$9:$N$1882,5,FALSE) -> 1056.6067 | I72: =VLOOKUP(C72,'Anexo_GL '!$B$9:$N$1882,6,FALSE) -> 0.00387 | L72: =VLOOKUP(C72,'Anexo_GL '!$B$9:$N$1882,7,FALSE) -> 146.7420403 | N72: =VLOOKUP(C72,'Anexo_GL '!$B$9:$N$1882,8,FALSE) -> No Cumple | P72: =VLOOKUP(C72,'Anexo_GL '!$B$9:$N$1882,10,FALSE) -> 1005.0887 | Q72: =VLOOKUP(C72,'Anexo_GL '!$B$9:$N$1882,11,FALSE) -> 596.74032 | R72: =VLOOKUP(C72,'Anexo_GL '!$B$9:$N$1882,12,FALSE) -> 408.34838 | S72: =VLOOKUP(C72,'Anexo_GL '!$B$9:$N$1882,13,FALSE) -> Cumple
A73: 010504 : MD DE COLCAMAR | B73: 46 | C73: 010504 | D73: AMAZONAS | E73: MD DE COLCAMAR | F73: =VLOOKUP(C73,'Anexo_GL '!$B$9:$N$1882,4,FALSE) -> 15.81006 | H73: =VLOOKUP(C73,'Anexo_GL '!$B$9:$N$1882,5,FALSE) -> 891.695285 | I73: =VLOOKUP(C73,'Anexo_GL '!$B$9:$N$1882,6,FALSE) -> 0.00225 | L73: =VLOOKUP(C73,'Anexo_GL '!$B$9:$N$1882,7,FALSE) -> 1.773033935 | N73: =VLOOKUP(C73,'Anexo_GL '!$B$9:$N$1882,8,FALSE) -> Cumple | P73: =VLOOKUP(C73,'Anexo_GL '!$B$9:$N$1882,10,FALSE) -> 661.8523 | Q73: =VLOOKUP(C73,'Anexo_GL '!$B$9:$N$1882,11,FALSE) -> 619.93863 | R73: =VLOOKUP(C73,'Anexo_GL '!$B$9:$N$1882,12,FALSE) -> 41.91367 | S73: =VLOOKUP(C73,'Anexo_GL '!$B$9:$N$1882,13,FALSE) -> Cumple
A74: 010505 : MD DE CONILA | B74: 47 | C74: 010505 | D74: AMAZONAS | E74: MD DE CONILA | F74: =VLOOKUP(C74,'Anexo_GL '!$B$9:$N$1882,4,FALSE) -> 380.41041 | H74: =VLOOKUP(C74,'Anexo_GL '!$B$9:$N$1882,5,FALSE) -> 733.7241275 | I74: =VLOOKUP(C74,'Anexo_GL '!$B$9:$N$1882,6,FALSE) -> 0.00253 | L74: =VLOOKUP(C74,'Anexo_GL '!$B$9:$N$1882,7,FALSE) -> 51.84651775 | N74: =VLOOKUP(C74,'Anexo_GL '!$B$9:$N$1882,8,FALSE) -> Cumple | P74: =VLOOKUP(C74,'Anexo_GL '!$B$9:$N$1882,10,FALSE) -> 669.4049 | Q74: =VLOOKUP(C74,'Anexo_GL '!$B$9:$N$1882,11,FALSE) -> 651.9435 | R74: =VLOOKUP(C74,'Anexo_GL '!$B$9:$N$1882,12,FALSE) -> 17.4614 | S74: =VLOOKUP(C74,'Anexo_GL '!$B$9:$N$1882,13,FALSE) -> Cumple
A75: 010506 : MD DE INGUILPATA | B75: 48 | C75: 010506 | D75: AMAZONAS | E75: MD DE INGUILPATA | F75: =VLOOKUP(C75,'Anexo_GL '!$B$9:$N$1882,4,FALSE) -> 28.81971 | H75: =VLOOKUP(C75,'Anexo_GL '!$B$9:$N$1882,5,FALSE) -> 809.7606675 | I75: =VLOOKUP(C75,'Anexo_GL '!$B$9:$N$1882,6,FALSE) -> 0.00071 | L75: =VLOOKUP(C75,'Anexo_GL '!$B$9:$N$1882,7,FALSE) -> 3.559040486 | N75: =VLOOKUP(C75,'Anexo_GL '!$B$9:$N$1882,8,FALSE) -> Cumple | P75: =VLOOKUP(C75,'Anexo_GL '!$B$9:$N$1882,10,FALSE) -> 1319.72916 | Q75: =VLOOKUP(C75,'Anexo_GL '!$B$9:$N$1882,11,FALSE) -> 889.66666 | R75: =VLOOKUP(C75,'Anexo_GL '!$B$9:$N$1882,12,FALSE) -> 430.0625 | S75: =VLOOKUP(C75,'Anexo_GL '!$B$9:$N$1882,13,FALSE) -> Cumple
A76: 010507 : MD DE LONGUITA | B76: 49 | C76: 010507 | D76: AMAZONAS | E76: MD DE LONGUITA | F76: =VLOOKUP(C76,'Anexo_GL '!$B$9:$N$1882,4,FALSE) -> 20.38375 | H76: =VLOOKUP(C76,'Anexo_GL '!$B$9:$N$1882,5,FALSE) -> 1905.951307 | I76: =VLOOKUP(C76,'Anexo_GL '!$B$9:$N$1882,6,FALSE) -> 0.00148 | L76: =VLOOKUP(C76,'Anexo_GL '!$B$9:$N$1882,7,FALSE) -> 1.069479053 | N76: =VLOOKUP(C76,'Anexo_GL '!$B$9:$N$1882,8,FALSE) -> Cumple | P76: =VLOOKUP(C76,'Anexo_GL '!$B$9:$N$1882,10,FALSE) -> 2968.60366 | Q76: =VLOOKUP(C76,'Anexo_GL '!$B$9:$N$1882,11,FALSE) -> 1116.72375 | R76: =VLOOKUP(C76,'Anexo_GL '!$B$9:$N$1882,12,FALSE) -> 1851.87991 | S76: =VLOOKUP(C76,'Anexo_GL '!$B$9:$N$1882,13,FALSE) -> Cumple
A77: 010508 : MD DE LONYA CHICO | B77: 50 | C77: 010508 | D77: AMAZONAS | E77: MD DE LONYA CHICO | F77: =VLOOKUP(C77,'Anexo_GL '!$B$9:$N$1882,4,FALSE) -> 33.25301 | H77: =VLOOKUP(C77,'Anexo_GL '!$B$9:$N$1882,5,FALSE) -> 956.0093475 | I77: =VLOOKUP(C77,'Anexo_GL '!$B$9:$N$1882,6,FALSE) -> 0.00159 | L77: =VLOOKUP(C77,'Anexo_GL '!$B$9:$N$1882,7,FALSE) -> 3.478314316 | N77: =VLOOKUP(C77,'Anexo_GL '!$B$9:$N$1882,8,FALSE) -> Cumple | P77: =VLOOKUP(C77,'Anexo_GL '!$B$9:$N$1882,10,FALSE) -> 786.90643 | Q77: =VLOOKUP(C77,'Anexo_GL '!$B$9:$N$1882,11,FALSE) -> 490.7648 | R77: =VLOOKUP(C77,'Anexo_GL '!$B$9:$N$1882,12,FALSE) -> 296.14163 | S77: =VLOOKUP(C77,'Anexo_GL '!$B$9:$N$1882,13,FALSE) -> Cumple
A78: 010509 : MD DE LUYA | B78: 51 | C78: 010509 | D78: AMAZONAS | E78: MD DE LUYA | F78: =VLOOKUP(C78,'Anexo_GL '!$B$9:$N$1882,4,FALSE) -> 44.04769 | H78: =VLOOKUP(C78,'Anexo_GL '!$B$9:$N$1882,5,FALSE) -> 1808.544322 | I78: =VLOOKUP(C78,'Anexo_GL '!$B$9:$N$1882,6,FALSE) -> 0.00416 | L78: =VLOOKUP(C78,'Anexo_GL '!$B$9:$N$1882,7,FALSE) -> 2.43553279 | N78: =VLOOKUP(C78,'Anexo_GL '!$B$9:$N$1882,8,FALSE) -> Cumple | P78: =VLOOKUP(C78,'Anexo_GL '!$B$9:$N$1882,10,FALSE) -> 1167.22746 | Q78: =VLOOKUP(C78,'Anexo_GL '!$B$9:$N$1882,11,FALSE) -> 1190.05731 | R78: =VLOOKUP(C78,'Anexo_GL '!$B$9:$N$1882,12,FALSE) -> -22.82985 | S78: =VLOOKUP(C78,'Anexo_GL '!$B$9:$N$1882,13,FALSE) -> No Cumple
A79: 010510 : MD DE LUYA VIEJO | B79: 52 | C79: 010510 | D79: AMAZONAS | E79: MD DE LUYA VIEJO | F79: =VLOOKUP(C79,'Anexo_GL '!$B$9:$N$1882,4,FALSE) -> 86.54146 | H79: =VLOOKUP(C79,'Anexo_GL '!$B$9:$N$1882,5,FALSE) -> 752.612055 | I79: =VLOOKUP(C79,'Anexo_GL '!$B$9:$N$1882,6,FALSE) -> 0.00054 | L79: =VLOOKUP(C79,'Anexo_GL '!$B$9:$N$1882,7,FALSE) -> 11.49881395 | N79: =VLOOKUP(C79,'Anexo_GL '!$B$9:$N$1882,8,FALSE) -> Cumple | P79: =VLOOKUP(C79,'Anexo_GL '!$B$9:$N$1882,10,FALSE) -> 1243.12488 | Q79: =VLOOKUP(C79,'Anexo_GL '!$B$9:$N$1882,11,FALSE) -> 966.74957 | R79: =VLOOKUP(C79,'Anexo_GL '!$B$9:$N$1882,12,FALSE) -> 276.37531 | S79: =VLOOKUP(C79,'Anexo_GL '!$B$9:$N$1882,13,FALSE) -> Cumple
A80: 010511 : MD DE MARIA | B80: 53 | C80: 010511 | D80: AMAZONAS | E80: MD DE MARIA | F80: =VLOOKUP(C80,'Anexo_GL '!$B$9:$N$1882,4,FALSE) -> 100.75457 | H80: =VLOOKUP(C80,'Anexo_GL '!$B$9:$N$1882,5,FALSE) -> 1001.294668 | I80: =VLOOKUP(C80,'Anexo_GL '!$B$9:$N$1882,6,FALSE) -> 0.00104 | L80: =VLOOKUP(C80,'Anexo_GL '!$B$9:$N$1882,7,FALSE) -> 10.0624295 | N80: =VLOOKUP(C80,'Anexo_GL '!$B$9:$N$1882,8,FALSE) -> Cumple | P80: =VLOOKUP(C80,'Anexo_GL '!$B$9:$N$1882,10,FALSE) -> 1225.1762 | Q80: =VLOOKUP(C80,'Anexo_GL '!$B$9:$N$1882,11,FALSE) -> 913.04221 | R80: =VLOOKUP(C80,'Anexo_GL '!$B$9:$N$1882,12,FALSE) -> 312.13399 | S80: =VLOOKUP(C80,'Anexo_GL '!$B$9:$N$1882,13,FALSE) -> Cumple
A81: 010512 : MD DE OCALLI | B81: 54 | C81: 010512 | D81: AMAZONAS | E81: MD DE OCALLI | F81: =VLOOKUP(C81,'Anexo_GL '!$B$9:$N$1882,4,FALSE) -> 83.04341 | H81: =VLOOKUP(C81,'Anexo_GL '!$B$9:$N$1882,5,FALSE) -> 2219.50189 | I81: =VLOOKUP(C81,'Anexo_GL '!$B$9:$N$1882,6,FALSE) -> 0.00565 | L81: =VLOOKUP(C81,'Anexo_GL '!$B$9:$N$1882,7,FALSE) -> 3.741533647 | N81: =VLOOKUP(C81,'Anexo_GL '!$B$9:$N$1882,8,FALSE) -> Cumple | P81: =VLOOKUP(C81,'Anexo_GL '!$B$9:$N$1882,10,FALSE) -> 2224.41868 | Q81: =VLOOKUP(C81,'Anexo_GL '!$B$9:$N$1882,11,FALSE) -> 1652.27979 | R81: =VLOOKUP(C81,'Anexo_GL '!$B$9:$N$1882,12,FALSE) -> 572.13889 | S81: =VLOOKUP(C81,'Anexo_GL '!$B$9:$N$1882,13,FALSE) -> Cumple
A82: 010513 : MD DE OCUMAL | B82: 55 | C82: 010513 | D82: AMAZONAS | E82: MD DE OCUMAL | F82: =VLOOKUP(C82,'Anexo_GL '!$B$9:$N$1882,4,FALSE) -> 86.49624 | H82: =VLOOKUP(C82,'Anexo_GL '!$B$9:$N$1882,5,FALSE) -> 1689.379737 | I82: =VLOOKUP(C82,'Anexo_GL '!$B$9:$N$1882,6,FALSE) -> 0.00661 | L82: =VLOOKUP(C82,'Anexo_GL '!$B$9:$N$1882,7,FALSE) -> 5.119999848 | N82: =VLOOKUP(C82,'Anexo_GL '!$B$9:$N$1882,8,FALSE) -> Cumple | P82: =VLOOKUP(C82,'Anexo_GL '!$B$9:$N$1882,10,FALSE) -> 2083.94068 | Q82: =VLOOKUP(C82,'Anexo_GL '!$B$9:$N$1882,11,FALSE) -> 1661.06021 | R82: =VLOOKUP(C82,'Anexo_GL '!$B$9:$N$1882,12,FALSE) -> 422.88047 | S82: =VLOOKUP(C82,'Anexo_GL '!$B$9:$N$1882,13,FALSE) -> Cumple
A83: 010514 : MD DE PIZUQUIA | B83: 56 | C83: 010514 | D83: AMAZONAS | E83: MD DE PIZUQUIA | F83: =VLOOKUP(C83,'Anexo_GL '!$B$9:$N$1882,4,FALSE) -> 218.96379 | H83: =VLOOKUP(C83,'Anexo_GL '!$B$9:$N$1882,5,FALSE) -> 3086.347183 | I83: =VLOOKUP(C83,'Anexo_GL '!$B$9:$N$1882,6,FALSE) -> 0.00798 | L83: =VLOOKUP(C83,'Anexo_GL '!$B$9:$N$1882,7,FALSE) -> 7.09459361 | N83: =VLOOKUP(C83,'Anexo_GL '!$B$9:$N$1882,8,FALSE) -> Cumple | P83: =VLOOKUP(C83,'Anexo_GL '!$B$9:$N$1882,10,FALSE) -> 3604.6473 | Q83: =VLOOKUP(C83,'Anexo_GL '!$B$9:$N$1882,11,FALSE) -> 2195.89831 | R83: =VLOOKUP(C83,'Anexo_GL '!$B$9:$N$1882,12,FALSE) -> 1408.74899 | S83: =VLOOKUP(C83,'Anexo_GL '!$B$9:$N$1882,13,FALSE) -> Cumple
A84: 010515 : MD DE PROVIDENCIA | B84: 57 | C84: 010515 | D84: AMAZONAS | E84: MD DE PROVIDENCIA | F84: =VLOOKUP(C84,'Anexo_GL '!$B$9:$N$1882,4,FALSE) -> 100.09096 | H84: =VLOOKUP(C84,'Anexo_GL '!$B$9:$N$1882,5,FALSE) -> 975.2834825 | I84: =VLOOKUP(C84,'Anexo_GL '!$B$9:$N$1882,6,FALSE) -> 0.00248 | L84: =VLOOKUP(C84,'Anexo_GL '!$B$9:$N$1882,7,FALSE) -> 10.26275558 | N84: =VLOOKUP(C84,'Anexo_GL '!$B$9:$N$1882,8,FALSE) -> Cumple | P84: =VLOOKUP(C84,'Anexo_GL '!$B$9:$N$1882,10,FALSE) -> 1469.37965 | Q84: =VLOOKUP(C84,'Anexo_GL '!$B$9:$N$1882,11,FALSE) -> 1156.26291 | R84: =VLOOKUP(C84,'Anexo_GL '!$B$9:$N$1882,12,FALSE) -> 313.11674 | S84: =VLOOKUP(C84,'Anexo_GL '!$B$9:$N$1882,13,FALSE) -> Cumple
A85: 010516 : MD DE SAN CRISTOBAL DE OLTO | B85: 58 | C85: 010516 | D85: AMAZONAS | E85: MD DE SAN CRISTOBAL DE OLTO | F85: =VLOOKUP(C85,'Anexo_GL '!$B$9:$N$1882,4,FALSE) -> 25.32005 | H85: =VLOOKUP(C85,'Anexo_GL '!$B$9:$N$1882,5,FALSE) -> 841.45924 | I85: =VLOOKUP(C85,'Anexo_GL '!$B$9:$N$1882,6,FALSE) -> 0.00093 | L85: =VLOOKUP(C85,'Anexo_GL '!$B$9:$N$1882,7,FALSE) -> 3.009064349 | N85: =VLOOKUP(C85,'Anexo_GL '!$B$9:$N$1882,8,FALSE) -> Cumple | P85: =VLOOKUP(C85,'Anexo_GL '!$B$9:$N$1882,10,FALSE) -> 1507.36023 | Q85: =VLOOKUP(C85,'Anexo_GL '!$B$9:$N$1882,11,FALSE) -> 1028.8616 | R85: =VLOOKUP(C85,'Anexo_GL '!$B$9:$N$1882,12,FALSE) -> 478.49863 | S85: =VLOOKUP(C85,'Anexo_GL '!$B$9:$N$1882,13,FALSE) -> Cumple
A86: 010517 : MD DE SAN FRANCISCO DE YESO | B86: 59 | C86: 010517 | D86: AMAZONAS | E86: MD DE SAN FRANCISCO DE YESO | F86: =VLOOKUP(C86,'Anexo_GL '!$B$9:$N$1882,4,FALSE) -> 31.30882 | H86: =VLOOKUP(C86,'Anexo_GL '!$B$9:$N$1882,5,FALSE) -> 623.3764225 | I86: =VLOOKUP(C86,'Anexo_GL '!$B$9:$N$1882,6,FALSE) -> 0.00152 | L86: =VLOOKUP(C86,'Anexo_GL '!$B$9:$N$1882,7,FALSE) -> 5.02245816 | N86: =VLOOKUP(C86,'Anexo_GL '!$B$9:$N$1882,8,FALSE) -> Cumple | P86: =VLOOKUP(C86,'Anexo_GL '!$B$9:$N$1882,10,FALSE) -> 809.04432 | Q86: =VLOOKUP(C86,'Anexo_GL '!$B$9:$N$1882,11,FALSE) -> 467.2927 | R86: =VLOOKUP(C86,'Anexo_GL '!$B$9:$N$1882,12,FALSE) -> 341.75162 | S86: =VLOOKUP(C86,'Anexo_GL '!$B$9:$N$1882,13,FALSE) -> Cumple
A87: 010518 : MD DE SAN JERONIMO DE PACLAS | B87: 60 | C87: 010518 | D87: AMAZONAS | E87: MD DE SAN JERONIMO DE PACLAS | F87: =VLOOKUP(C87,'Anexo_GL '!$B$9:$N$1882,4,FALSE) -> 27.73148 | H87: =VLOOKUP(C87,'Anexo_GL '!$B$9:$N$1882,5,FALSE) -> 929.8211675 | I87: =VLOOKUP(C87,'Anexo_GL '!$B$9:$N$1882,6,FALSE) -> 0.00129 | L87: =VLOOKUP(C87,'Anexo_GL '!$B$9:$N$1882,7,FALSE) -> 2.982453075 | N87: =VLOOKUP(C87,'Anexo_GL '!$B$9:$N$1882,8,FALSE) -> Cumple | P87: =VLOOKUP(C87,'Anexo_GL '!$B$9:$N$1882,10,FALSE) -> 1464.56519 | Q87: =VLOOKUP(C87,'Anexo_GL '!$B$9:$N$1882,11,FALSE) -> 1183.25651 | R87: =VLOOKUP(C87,'Anexo_GL '!$B$9:$N$1882,12,FALSE) -> 281.30868 | S87: =VLOOKUP(C87,'Anexo_GL '!$B$9:$N$1882,13,FALSE) -> Cumple
A88: 010519 : MD DE SAN JUAN DE LOPECANCHA | B88: 61 | C88: 010519 | D88: AMAZONAS | E88: MD DE SAN JUAN DE LOPECANCHA | F88: =VLOOKUP(C88,'Anexo_GL '!$B$9:$N$1882,4,FALSE) -> 92.02078 | H88: =VLOOKUP(C88,'Anexo_GL '!$B$9:$N$1882,5,FALSE) -> 935.796335 | I88: =VLOOKUP(C88,'Anexo_GL '!$B$9:$N$1882,6,FALSE) -> 0.00159 | L88: =VLOOKUP(C88,'Anexo_GL '!$B$9:$N$1882,7,FALSE) -> 9.833419576 | N88: =VLOOKUP(C88,'Anexo_GL '!$B$9:$N$1882,8,FALSE) -> Cumple | P88: =VLOOKUP(C88,'Anexo_GL '!$B$9:$N$1882,10,FALSE) -> 1156.58014 | Q88: =VLOOKUP(C88,'Anexo_GL '!$B$9:$N$1882,11,FALSE) -> 1057.39003 | R88: =VLOOKUP(C88,'Anexo_GL '!$B$9:$N$1882,12,FALSE) -> 99.19011 | S88: =VLOOKUP(C88,'Anexo_GL '!$B$9:$N$1882,13,FALSE) -> Cumple
A89: 010520 : MD DE SANTA CATALINA | B89: 62 | C89: 010520 | D89: AMAZONAS | E89: MD DE SANTA CATALINA | F89: =VLOOKUP(C89,'Anexo_GL '!$B$9:$N$1882,4,FALSE) -> 79.42376 | H89: =VLOOKUP(C89,'Anexo_GL '!$B$9:$N$1882,5,FALSE) -> 961.1966375 | I89: =VLOOKUP(C89,'Anexo_GL '!$B$9:$N$1882,6,FALSE) -> 0.00484 | L89: =VLOOKUP(C89,'Anexo_GL '!$B$9:$N$1882,7,FALSE) -> 8.263008515 | N89: =VLOOKUP(C89,'Anexo_GL '!$B$9:$N$1882,8,FALSE) -> Cumple | P89: =VLOOKUP(C89,'Anexo_GL '!$B$9:$N$1882,10,FALSE) -> 1422.59587 | Q89: =VLOOKUP(C89,'Anexo_GL '!$B$9:$N$1882,11,FALSE) -> 1418.07801 | R89: =VLOOKUP(C89,'Anexo_GL '!$B$9:$N$1882,12,FALSE) -> 4.51786 | S89: =VLOOKUP(C89,'Anexo_GL '!$B$9:$N$1882,13,FALSE) -> Cumple
A90: 010521 : MD DE SANTO TOMAS | B90: 63 | C90: 010521 | D90: AMAZONAS | E90: MD DE SANTO TOMAS | F90: =VLOOKUP(C90,'Anexo_GL '!$B$9:$N$1882,4,FALSE) -> 104.01231 | H90: =VLOOKUP(C90,'Anexo_GL '!$B$9:$N$1882,5,FALSE) -> 1410.900875 | I90: =VLOOKUP(C90,'Anexo_GL '!$B$9:$N$1882,6,FALSE) -> 0.00917 | L90: =VLOOKUP(C90,'Anexo_GL '!$B$9:$N$1882,7,FALSE) -> 7.372049436 | N90: =VLOOKUP(C90,'Anexo_GL '!$B$9:$N$1882,8,FALSE) -> Cumple | P90: =VLOOKUP(C90,'Anexo_GL '!$B$9:$N$1882,10,FALSE) -> 1247.0943 | Q90: =VLOOKUP(C90,'Anexo_GL '!$B$9:$N$1882,11,FALSE) -> 947.836 | R90: =VLOOKUP(C90,'Anexo_GL '!$B$9:$N$1882,12,FALSE) -> 299.2583 | S90: =VLOOKUP(C90,'Anexo_GL '!$B$9:$N$1882,13,FALSE) -> Cumple
A91: 010522 : MD DE TINGO | B91: 64 | C91: 010522 | D91: AMAZONAS | E91: MD DE TINGO | F91: =VLOOKUP(C91,'Anexo_GL '!$B$9:$N$1882,4,FALSE) -> 84.25011 | H91: =VLOOKUP(C91,'Anexo_GL '!$B$9:$N$1882,5,FALSE) -> 597.827925 | I91: =VLOOKUP(C91,'Anexo_GL '!$B$9:$N$1882,6,FALSE) -> 0.0021 | L91: =VLOOKUP(C91,'Anexo_GL '!$B$9:$N$1882,7,FALSE) -> 14.09270234 | N91: =VLOOKUP(C91,'Anexo_GL '!$B$9:$N$1882,8,FALSE) -> Cumple | P91: =VLOOKUP(C91,'Anexo_GL '!$B$9:$N$1882,10,FALSE) -> 538.99277 | Q91: =VLOOKUP(C91,'Anexo_GL '!$B$9:$N$1882,11,FALSE) -> 502.70445 | R91: =VLOOKUP(C91,'Anexo_GL '!$B$9:$N$1882,12,FALSE) -> 36.28832 | S91: =VLOOKUP(C91,'Anexo_GL '!$B$9:$N$1882,13,FALSE) -> Cumple
A92: 010523 : MD DE TRITA | B92: 65 | C92: 010523 | D92: AMAZONAS | E92: MD DE TRITA | F92: =VLOOKUP(C92,'Anexo_GL '!$B$9:$N$1882,4,FALSE) -> 12.35 | H92: =VLOOKUP(C92,'Anexo_GL '!$B$9:$N$1882,5,FALSE) -> 819.47322 | I92: =VLOOKUP(C92,'Anexo_GL '!$B$9:$N$1882,6,FALSE) -> 0.00187 | L92: =VLOOKUP(C92,'Anexo_GL '!$B$9:$N$1882,7,FALSE) -> 1.507065722 | N92: =VLOOKUP(C92,'Anexo_GL '!$B$9:$N$1882,8,FALSE) -> Cumple | P92: =VLOOKUP(C92,'Anexo_GL '!$B$9:$N$1882,10,FALSE) -> 1483.11857 | Q92: =VLOOKUP(C92,'Anexo_GL '!$B$9:$N$1882,11,FALSE) -> 1118.3601 | R92: =VLOOKUP(C92,'Anexo_GL '!$B$9:$N$1882,12,FALSE) -> 364.75847 | S92: =VLOOKUP(C92,'Anexo_GL '!$B$9:$N$1882,13,FALSE) -> Cumple
A93: 010601 : MP DE RODRIGUEZ DE MENDOZA - SAN NICOLAS | B93: 66 | C93: 010601 | D93: AMAZONAS | E93: MP DE RODRIGUEZ DE MENDOZA - SAN NICOLAS | F93: =VLOOKUP(C93,'Anexo_GL '!$B$9:$N$1882,4,FALSE) -> 6511.19973 | H93: =VLOOKUP(C93,'Anexo_GL '!$B$9:$N$1882,5,FALSE) -> 8692.765622 | I93: =VLOOKUP(C93,'Anexo_GL '!$B$9:$N$1882,6,FALSE) -> 0.00872 | L93: =VLOOKUP(C93,'Anexo_GL '!$B$9:$N$1882,7,FALSE) -> 74.90366142 | N93: =VLOOKUP(C93,'Anexo_GL '!$B$9:$N$1882,8,FALSE) -> Cumple | P93: =VLOOKUP(C93,'Anexo_GL '!$B$9:$N$1882,10,FALSE) -> 9356.05191 | Q93: =VLOOKUP(C93,'Anexo_GL '!$B$9:$N$1882,11,FALSE) -> 9215.36557 | R93: =VLOOKUP(C93,'Anexo_GL '!$B$9:$N$1882,12,FALSE) -> 140.68634 | S93: =VLOOKUP(C93,'Anexo_GL '!$B$9:$N$1882,13,FALSE) -> Cumple
A94: 010602 : MD DE CHIRIMOTO | B94: 67 | C94: 010602 | D94: AMAZONAS | E94: MD DE CHIRIMOTO | F94: =VLOOKUP(C94,'Anexo_GL '!$B$9:$N$1882,4,FALSE) -> 45.82903 | H94: =VLOOKUP(C94,'Anexo_GL '!$B$9:$N$1882,5,FALSE) -> 1266.462027 | I94: =VLOOKUP(C94,'Anexo_GL '!$B$9:$N$1882,6,FALSE) -> 0.01407 | L94: =VLOOKUP(C94,'Anexo_GL '!$B$9:$N$1882,7,FALSE) -> 3.618665937 | N94: =VLOOKUP(C94,'Anexo_GL '!$B$9:$N$1882,8,FALSE) -> Cumple | P94: =VLOOKUP(C94,'Anexo_GL '!$B$9:$N$1882,10,FALSE) -> 1534.09692 | Q94: =VLOOKUP(C94,'Anexo_GL '!$B$9:$N$1882,11,FALSE) -> 1348.21422 | R94: =VLOOKUP(C94,'Anexo_GL '!$B$9:$N$1882,12,FALSE) -> 185.8827 | S94: =VLOOKUP(C94,'Anexo_GL '!$B$9:$N$1882,13,FALSE) -> Cumple
A95: 010603 : MD DE COCHAMAL | B95: 68 | C95: 010603 | D95: AMAZONAS | E95: MD DE COCHAMAL | F95: =VLOOKUP(C95,'Anexo_GL '!$B$9:$N$1882,4,FALSE) -> 134.41194 | H95: =VLOOKUP(C95,'Anexo_GL '!$B$9:$N$1882,5,FALSE) -> 577.69142 | I95: =VLOOKUP(C95,'Anexo_GL '!$B$9:$N$1882,6,FALSE) -> 0.00185 | L95: =VLOOKUP(C95,'Anexo_GL '!$B$9:$N$1882,7,FALSE) -> 23.26708262 | N95: =VLOOKUP(C95,'Anexo_GL '!$B$9:$N$1882,8,FALSE) -> Cumple | P95: =VLOOKUP(C95,'Anexo_GL '!$B$9:$N$1882,10,FALSE) -> 679.95633 | Q95: =VLOOKUP(C95,'Anexo_GL '!$B$9:$N$1882,11,FALSE) -> 548.59286 | R95: =VLOOKUP(C95,'Anexo_GL '!$B$9:$N$1882,12,FALSE) -> 131.36347 | S95: =VLOOKUP(C95,'Anexo_GL '!$B$9:$N$1882,13,FALSE) -> Cumple
A96: 010604 : MD DE HUAMBO | B96: 69 | C96: 010604 | D96: AMAZONAS | E96: MD DE HUAMBO | F96: =VLOOKUP(C96,'Anexo_GL '!$B$9:$N$1882,4,FALSE) -> 254.38344 | H96: =VLOOKUP(C96,'Anexo_GL '!$B$9:$N$1882,5,FALSE) -> 1953.155715 | I96: =VLOOKUP(C96,'Anexo_GL '!$B$9:$N$1882,6,FALSE) -> 0.01122 | L96: =VLOOKUP(C96,'Anexo_GL '!$B$9:$N$1882,7,FALSE) -> 13.02422731 | N96: =VLOOKUP(C96,'Anexo_GL '!$B$9:$N$1882,8,FALSE) -> Cumple | P96: =VLOOKUP(C96,'Anexo_GL '!$B$9:$N$1882,10,FALSE) -> 1716.95613 | Q96: =VLOOKUP(C96,'Anexo_GL '!$B$9:$N$1882,11,FALSE) -> 761.4442 | R96: =VLOOKUP(C96,'Anexo_GL '!$B$9:$N$1882,12,FALSE) -> 955.51193 | S96: =VLOOKUP(C96,'Anexo_GL '!$B$9:$N$1882,13,FALSE) -> Cumple
A97: 010605 : MD DE LIMABAMBA | B97: 70 | C97: 010605 | D97: AMAZONAS | E97: MD DE LIMABAMBA | F97: =VLOOKUP(C97,'Anexo_GL '!$B$9:$N$1882,4,FALSE) -> 2268.67396 | H97: =VLOOKUP(C97,'Anexo_GL '!$B$9:$N$1882,5,FALSE) -> 1109.673593 | I97: =VLOOKUP(C97,'Anexo_GL '!$B$9:$N$1882,6,FALSE) -> 0.01098 | L97: =VLOOKUP(C97,'Anexo_GL '!$B$9:$N$1882,7,FALSE) -> 204.4451608 | N97: =VLOOKUP(C97,'Anexo_GL '!$B$9:$N$1882,8,FALSE) -> No Cumple | P97: =VLOOKUP(C97,'Anexo_GL '!$B$9:$N$1882,10,FALSE) -> 1181.2606 | Q97: =VLOOKUP(C97,'Anexo_GL '!$B$9:$N$1882,11,FALSE) -> 875.4439 | R97: =VLOOKUP(C97,'Anexo_GL '!$B$9:$N$1882,12,FALSE) -> 305.8167 | S97: =VLOOKUP(C97,'Anexo_GL '!$B$9:$N$1882,13,FALSE) -> Cumple
A98: 010606 : MD DE LONGAR | B98: 71 | C98: 010606 | D98: AMAZONAS | E98: MD DE LONGAR | F98: =VLOOKUP(C98,'Anexo_GL '!$B$9:$N$1882,4,FALSE) -> 94.40569 | H98: =VLOOKUP(C98,'Anexo_GL '!$B$9:$N$1882,5,FALSE) -> 646.055395 | I98: =VLOOKUP(C98,'Anexo_GL '!$B$9:$N$1882,6,FALSE) -> 0.00508 | L98: =VLOOKUP(C98,'Anexo_GL '!$B$9:$N$1882,7,FALSE) -> 14.61263086 | N98: =VLOOKUP(C98,'Anexo_GL '!$B$9:$N$1882,8,FALSE) -> Cumple | P98: =VLOOKUP(C98,'Anexo_GL '!$B$9:$N$1882,10,FALSE) -> 704.81408 | Q98: =VLOOKUP(C98,'Anexo_GL '!$B$9:$N$1882,11,FALSE) -> 589.13187 | R98: =VLOOKUP(C98,'Anexo_GL '!$B$9:$N$1882,12,FALSE) -> 115.68221 | S98: =VLOOKUP(C98,'Anexo_GL '!$B$9:$N$1882,13,FALSE) -> Cumple
A99: 010607 : MD DE MARISCAL BENAVIDES | B99: 72 | C99: 010607 | D99: AMAZONAS | E99: MD DE MARISCAL BENAVIDES | F99: =VLOOKUP(C99,'Anexo_GL '!$B$9:$N$1882,4,FALSE) -> 875.84547 | H99: =VLOOKUP(C99,'Anexo_GL '!$B$9:$N$1882,5,FALSE) -> 862.25708 | I99: =VLOOKUP(C99,'Anexo_GL '!$B$9:$N$1882,6,FALSE) -> 0.0024 | L99: =VLOOKUP(C99,'Anexo_GL '!$B$9:$N$1882,7,FALSE) -> 101.5759094 | N99: =VLOOKUP(C99,'Anexo_GL '!$B$9:$N$1882,8,FALSE) -> No Cumple | P99: =VLOOKUP(C99,'Anexo_GL '!$B$9:$N$1882,10,FALSE) -> 600.14882 | Q99: =VLOOKUP(C99,'Anexo_GL '!$B$9:$N$1882,11,FALSE) -> 639.76668 | R99: =VLOOKUP(C99,'Anexo_GL '!$B$9:$N$1882,12,FALSE) -> -39.61786 | S99: =VLOOKUP(C99,'Anexo_GL '!$B$9:$N$1882,13,FALSE) -> No Cumple
A100: 010608 : MD DE MILPUC | B100: 73 | C100: 010608 | D100: AMAZONAS | E100: MD DE MILPUC | F100: =VLOOKUP(C100,'Anexo_GL '!$B$9:$N$1882,4,FALSE) -> 102.14843 | H100: =VLOOKUP(C100,'Anexo_GL '!$B$9:$N$1882,5,FALSE) -> 645.942175 | I100: =VLOOKUP(C100,'Anexo_GL '!$B$9:$N$1882,6,FALSE) -> 0.01606 | L100: =VLOOKUP(C100,'Anexo_GL '!$B$9:$N$1882,7,FALSE) -> 15.813866 | N100: =VLOOKUP(C100,'Anexo_GL '!$B$9:$N$1882,8,FALSE) -> Cumple | P100: =VLOOKUP(C100,'Anexo_GL '!$B$9:$N$1882,10,FALSE) -> 678.11003 | Q100: =VLOOKUP(C100,'Anexo_GL '!$B$9:$N$1882,11,FALSE) -> 619.59059 | R100: =VLOOKUP(C100,'Anexo_GL '!$B$9:$N$1882,12,FALSE) -> 58.51944 | S100: =VLOOKUP(C100,'Anexo_GL '!$B$9:$N$1882,13,FALSE) -> Cumple
A101: 010609 : MD DE OMIA | B101: 74 | C101: 010609 | D101: AMAZONAS | E101: MD DE OMIA | F101: =VLOOKUP(C101,'Anexo_GL '!$B$9:$N$1882,4,FALSE) -> 168.2069 | H101: =VLOOKUP(C101,'Anexo_GL '!$B$9:$N$1882,5,FALSE) -> 3570.785957 | I101: =VLOOKUP(C101,'Anexo_GL '!$B$9:$N$1882,6,FALSE) -> 0.04947 | L101: =VLOOKUP(C101,'Anexo_GL '!$B$9:$N$1882,7,FALSE) -> 4.710640795 | N101: =VLOOKUP(C101,'Anexo_GL '!$B$9:$N$1882,8,FALSE) -> Cumple | P101: =VLOOKUP(C101,'Anexo_GL '!$B$9:$N$1882,10,FALSE) -> 4357.46214 | Q101: =VLOOKUP(C101,'Anexo_GL '!$B$9:$N$1882,11,FALSE) -> 3447.87247 | R101: =VLOOKUP(C101,'Anexo_GL '!$B$9:$N$1882,12,FALSE) -> 909.58967 | S101: =VLOOKUP(C101,'Anexo_GL '!$B$9:$N$1882,13,FALSE) -> Cumple
A102: 010610 : MD DE SANTA ROSA | B102: 75 | C102: 010610 | D102: AMAZONAS | E102: MD DE SANTA ROSA | F102: =VLOOKUP(C102,'Anexo_GL '!$B$9:$N$1882,4,FALSE) -> 188.60458 | H102: =VLOOKUP(C102,'Anexo_GL '!$B$9:$N$1882,5,FALSE) -> 937.2434275 | I102: =VLOOKUP(C102,'Anexo_GL '!$B$9:$N$1882,6,FALSE) -> 0.00205 | L102: =VLOOKUP(C102,'Anexo_GL '!$B$9:$N$1882,7,FALSE) -> 20.12332917 | N102: =VLOOKUP(C102,'Anexo_GL '!$B$9:$N$1882,8,FALSE) -> Cumple | P102: =VLOOKUP(C102,'Anexo_GL '!$B$9:$N$1882,10,FALSE) -> 1113.84434 | Q102: =VLOOKUP(C102,'Anexo_GL '!$B$9:$N$1882,11,FALSE) -> 468.26284 | R102: =VLOOKUP(C102,'Anexo_GL '!$B$9:$N$1882,12,FALSE) -> 645.5815 | S102: =VLOOKUP(C102,'Anexo_GL '!$B$9:$N$1882,13,FALSE) -> Cumple
A103: 010611 : MD DE TOTORA | B103: 76 | C103: 010611 | D103: AMAZONAS | E103: MD DE TOTORA | F103: =VLOOKUP(C103,'Anexo_GL '!$B$9:$N$1882,4,FALSE) -> 11.08138 | H103: =VLOOKUP(C103,'Anexo_GL '!$B$9:$N$1882,5,FALSE) -> 638.664745 | I103: =VLOOKUP(C103,'Anexo_GL '!$B$9:$N$1882,6,FALSE) -> 0.00077 | L103: =VLOOKUP(C103,'Anexo_GL '!$B$9:$N$1882,7,FALSE) -> 1.735085596 | N103: =VLOOKUP(C103,'Anexo_GL '!$B$9:$N$1882,8,FALSE) -> Cumple | P103: =VLOOKUP(C103,'Anexo_GL '!$B$9:$N$1882,10,FALSE) -> 719.08389 | Q103: =VLOOKUP(C103,'Anexo_GL '!$B$9:$N$1882,11,FALSE) -> 465.97304 | R103: =VLOOKUP(C103,'Anexo_GL '!$B$9:$N$1882,12,FALSE) -> 253.11085 | S103: =VLOOKUP(C103,'Anexo_GL '!$B$9:$N$1882,13,FALSE) -> Cumple
A104: 010612 : MD DE VISTA ALEGRE | B104: 77 | C104: 010612 | D104: AMAZONAS | E104: MD DE VISTA ALEGRE | F104: =VLOOKUP(C104,'Anexo_GL '!$B$9:$N$1882,4,FALSE) -> 174.31283 | H104: =VLOOKUP(C104,'Anexo_GL '!$B$9:$N$1882,5,FALSE) -> 1472.015945 | I104: =VLOOKUP(C104,'Anexo_GL '!$B$9:$N$1882,6,FALSE) -> 0.02457 | L104: =VLOOKUP(C104,'Anexo_GL '!$B$9:$N$1882,7,FALSE) -> 11.84177594 | N104: =VLOOKUP(C104,'Anexo_GL '!$B$9:$N$1882,8,FALSE) -> Cumple | P104: =VLOOKUP(C104,'Anexo_GL '!$B$9:$N$1882,10,FALSE) -> 2287.99624 | Q104: =VLOOKUP(C104,'Anexo_GL '!$B$9:$N$1882,11,FALSE) -> 2282.53944 | R104: =VLOOKUP(C104,'Anexo_GL '!$B$9:$N$1882,12,FALSE) -> 5.4568 | S104: =VLOOKUP(C104,'Anexo_GL '!$B$9:$N$1882,13,FALSE) -> Cumple
A105: 010701 : MUNICIPALIDAD PROVINCIA DE UTCUBAMBA - BAGUA GRANDE | B105: 78 | C105: 010701 | D105: AMAZONAS | E105: MUNICIPALIDAD PROVINCIA DE UTCUBAMBA - BAGUA GRANDE | F105: =VLOOKUP(C105,'Anexo_GL '!$B$9:$N$1882,4,FALSE) -> 13214.56214 | H105: =VLOOKUP(C105,'Anexo_GL '!$B$9:$N$1882,5,FALSE) -> 39441.90783 | I105: =VLOOKUP(C105,'Anexo_GL '!$B$9:$N$1882,6,FALSE) -> 1.59528 | L105: =VLOOKUP(C105,'Anexo_GL '!$B$9:$N$1882,7,FALSE) -> 33.50386142 | N105: =VLOOKUP(C105,'Anexo_GL '!$B$9:$N$1882,8,FALSE) -> Cumple | P105: =VLOOKUP(C105,'Anexo_GL '!$B$9:$N$1882,10,FALSE) -> 47603.64112 | Q105: =VLOOKUP(C105,'Anexo_GL '!$B$9:$N$1882,11,FALSE) -> 31485.02916 | R105: =VLOOKUP(C105,'Anexo_GL '!$B$9:$N$1882,12,FALSE) -> 16118.61196 | S105: =VLOOKUP(C105,'Anexo_GL '!$B$9:$N$1882,13,FALSE) -> Cumple
A106: 010702 : MD DE CAJARURO | B106: 79 | C106: 010702 | D106: AMAZONAS | E106: MD DE CAJARURO | F106: =VLOOKUP(C106,'Anexo_GL '!$B$9:$N$1882,4,FALSE) -> 1993.01398 | H106: =VLOOKUP(C106,'Anexo_GL '!$B$9:$N$1882,5,FALSE) -> 12592.05702 | I106: =VLOOKUP(C106,'Anexo_GL '!$B$9:$N$1882,6,FALSE) -> 1.00327 | L106: =VLOOKUP(C106,'Anexo_GL '!$B$9:$N$1882,7,FALSE) -> 15.82754888 | N106: =VLOOKUP(C106,'Anexo_GL '!$B$9:$N$1882,8,FALSE) -> Cumple | P106: =VLOOKUP(C106,'Anexo_GL '!$B$9:$N$1882,10,FALSE) -> 14013.06817 | Q106: =VLOOKUP(C106,'Anexo_GL '!$B$9:$N$1882,11,FALSE) -> 9267.609 | R106: =VLOOKUP(C106,'Anexo_GL '!$B$9:$N$1882,12,FALSE) -> 4745.45917 | S106: =VLOOKUP(C106,'Anexo_GL '!$B$9:$N$1882,13,FALSE) -> Cumple
A107: 010703 : MD DE CUMBA | B107: 80 | C107: 010703 | D107: AMAZONAS | E107: MD DE CUMBA | F107: =VLOOKUP(C107,'Anexo_GL '!$B$9:$N$1882,4,FALSE) -> 465.33946 | H107: =VLOOKUP(C107,'Anexo_GL '!$B$9:$N$1882,5,FALSE) -> 3704.673255 | I107: =VLOOKUP(C107,'Anexo_GL '!$B$9:$N$1882,6,FALSE) -> 0.08367 | L107: =VLOOKUP(C107,'Anexo_GL '!$B$9:$N$1882,7,FALSE) -> 12.56087725 | N107: =VLOOKUP(C107,'Anexo_GL '!$B$9:$N$1882,8,FALSE) -> Cumple | P107: =VLOOKUP(C107,'Anexo_GL '!$B$9:$N$1882,10,FALSE) -> 4732.18539 | Q107: =VLOOKUP(C107,'Anexo_GL '!$B$9:$N$1882,11,FALSE) -> 4009.57134 | R107: =VLOOKUP(C107,'Anexo_GL '!$B$9:$N$1882,12,FALSE) -> 722.61405 | S107: =VLOOKUP(C107,'Anexo_GL '!$B$9:$N$1882,13,FALSE) -> Cumple
A108: 010704 : MD DE EL MILAGRO | B108: 81 | C108: 010704 | D108: AMAZONAS | E108: MD DE EL MILAGRO | F108: =VLOOKUP(C108,'Anexo_GL '!$B$9:$N$1882,4,FALSE) -> 270.59651 | H108: =VLOOKUP(C108,'Anexo_GL '!$B$9:$N$1882,5,FALSE) -> 3119.44746 | I108: =VLOOKUP(C108,'Anexo_GL '!$B$9:$N$1882,6,FALSE) -> 0.04466 | L108: =VLOOKUP(C108,'Anexo_GL '!$B$9:$N$1882,7,FALSE) -> 8.674501285 | N108: =VLOOKUP(C108,'Anexo_GL '!$B$9:$N$1882,8,FALSE) -> Cumple | P108: =VLOOKUP(C108,'Anexo_GL '!$B$9:$N$1882,10,FALSE) -> 3658.81858 | Q108: =VLOOKUP(C108,'Anexo_GL '!$B$9:$N$1882,11,FALSE) -> 3510.1631 | R108: =VLOOKUP(C108,'Anexo_GL '!$B$9:$N$1882,12,FALSE) -> 148.65548 | S108: =VLOOKUP(C108,'Anexo_GL '!$B$9:$N$1882,13,FALSE) -> Cumple
A109: 010705 : MD DE JAMALCA | B109: 82 | C109: 010705 | D109: AMAZONAS | E109: MD DE JAMALCA | F109: =VLOOKUP(C109,'Anexo_GL '!$B$9:$N$1882,4,FALSE) -> 872.85247 | H109: =VLOOKUP(C109,'Anexo_GL '!$B$9:$N$1882,5,FALSE) -> 4181.285993 | I109: =VLOOKUP(C109,'Anexo_GL '!$B$9:$N$1882,6,FALSE) -> 0.06341 | L109: =VLOOKUP(C109,'Anexo_GL '!$B$9:$N$1882,7,FALSE) -> 20.8752157 | N109: =VLOOKUP(C109,'Anexo_GL '!$B$9:$N$1882,8,FALSE) -> Cumple | P109: =VLOOKUP(C109,'Anexo_GL '!$B$9:$N$1882,10,FALSE) -> 4417.87997 | Q109: =VLOOKUP(C109,'Anexo_GL '!$B$9:$N$1882,11,FALSE) -> 3655.99047 | R109: =VLOOKUP(C109,'Anexo_GL '!$B$9:$N$1882,12,FALSE) -> 761.8895 | S109: =VLOOKUP(C109,'Anexo_GL '!$B$9:$N$1882,13,FALSE) -> Cumple
A110: 010706 : MD DE LONYA GRANDE | B110: 83 | C110: 010706 | D110: AMAZONAS | E110: MD DE LONYA GRANDE | F110: =VLOOKUP(C110,'Anexo_GL '!$B$9:$N$1882,4,FALSE) -> 1011.37821 | H110: =VLOOKUP(C110,'Anexo_GL '!$B$9:$N$1882,5,FALSE) -> 4322.18344 | I110: =VLOOKUP(C110,'Anexo_GL '!$B$9:$N$1882,6,FALSE) -> 0.06753 | L110: =VLOOKUP(C110,'Anexo_GL '!$B$9:$N$1882,7,FALSE) -> 23.39970582 | N110: =VLOOKUP(C110,'Anexo_GL '!$B$9:$N$1882,8,FALSE) -> Cumple | P110: =VLOOKUP(C110,'Anexo_GL '!$B$9:$N$1882,10,FALSE) -> 5583.54948 | Q110: =VLOOKUP(C110,'Anexo_GL '!$B$9:$N$1882,11,FALSE) -> 3532.12696 | R110: =VLOOKUP(C110,'Anexo_GL '!$B$9:$N$1882,12,FALSE) -> 2051.42252 | S110: =VLOOKUP(C110,'Anexo_GL '!$B$9:$N$1882,13,FALSE) -> Cumple
A111: 010707 : MD DE YAMON | B111: 84 | C111: 010707 | D111: AMAZONAS | E111: MD DE YAMON | F111: =VLOOKUP(C111,'Anexo_GL '!$B$9:$N$1882,4,FALSE) -> 712.97358 | H111: =VLOOKUP(C111,'Anexo_GL '!$B$9:$N$1882,5,FALSE) -> 2060.99136 | I111: =VLOOKUP(C111,'Anexo_GL '!$B$9:$N$1882,6,FALSE) -> 0.03324 | L111: =VLOOKUP(C111,'Anexo_GL '!$B$9:$N$1882,7,FALSE) -> 34.59371999 | N111: =VLOOKUP(C111,'Anexo_GL '!$B$9:$N$1882,8,FALSE) -> Cumple | P111: =VLOOKUP(C111,'Anexo_GL '!$B$9:$N$1882,10,FALSE) -> 1799.45243 | Q111: =VLOOKUP(C111,'Anexo_GL '!$B$9:$N$1882,11,FALSE) -> 961.77781 | R111: =VLOOKUP(C111,'Anexo_GL '!$B$9:$N$1882,12,FALSE) -> 837.67462 | S111: =VLOOKUP(C111,'Anexo_GL '!$B$9:$N$1882,13,FALSE) -> Cumple
A112: 020101 : MP DE HUARAZ | B112: 85 | C112: 020101 | D112: ANCASH | E112: MP DE HUARAZ | F112: =VLOOKUP(C112,'Anexo_GL '!$B$9:$N$1882,4,FALSE) -> 16984.77635 | H112: =VLOOKUP(C112,'Anexo_GL '!$B$9:$N$1882,5,FALSE) -> 55498.32417 | I112: =VLOOKUP(C112,'Anexo_GL '!$B$9:$N$1882,6,FALSE) -> 48440.65366 | L112: =VLOOKUP(C112,'Anexo_GL '!$B$9:$N$1882,7,FALSE) -> 30.60412472 | N112: =VLOOKUP(C112,'Anexo_GL '!$B$9:$N$1882,8,FALSE) -> Cumple | P112: =VLOOKUP(C112,'Anexo_GL '!$B$9:$N$1882,10,FALSE) -> 67089.33297 | Q112: =VLOOKUP(C112,'Anexo_GL '!$B$9:$N$1882,11,FALSE) -> 42504.17586 | R112: =VLOOKUP(C112,'Anexo_GL '!$B$9:$N$1882,12,FALSE) -> 24585.15711 | S112: =VLOOKUP(C112,'Anexo_GL '!$B$9:$N$1882,13,FALSE) -> Cumple
A113: 020102 : MD DE COCHABAMBA | B113: 86 | C113: 020102 | D113: ANCASH | E113: MD DE COCHABAMBA | F113: =VLOOKUP(C113,'Anexo_GL '!$B$9:$N$1882,4,FALSE) -> 172.70562 | H113: =VLOOKUP(C113,'Anexo_GL '!$B$9:$N$1882,5,FALSE) -> 2781.707482 | I113: =VLOOKUP(C113,'Anexo_GL '!$B$9:$N$1882,6,FALSE) -> 3879.26531 | L113: =VLOOKUP(C113,'Anexo_GL '!$B$9:$N$1882,7,FALSE) -> 4.452018777 | N113: =VLOOKUP(C113,'Anexo_GL '!$B$9:$N$1882,8,FALSE) -> Cumple | P113: =VLOOKUP(C113,'Anexo_GL '!$B$9:$N$1882,10,FALSE) -> 3221.91947 | Q113: =VLOOKUP(C113,'Anexo_GL '!$B$9:$N$1882,11,FALSE) -> 1895.49534 | R113: =VLOOKUP(C113,'Anexo_GL '!$B$9:$N$1882,12,FALSE) -> 1326.42413 | S113: =VLOOKUP(C113,'Anexo_GL '!$B$9:$N$1882,13,FALSE) -> Cumple
A114: 020103 : MD DE COLCABAMBA | B114: 87 | C114: 020103 | D114: ANCASH | E114: MD DE COLCABAMBA | F114: =VLOOKUP(C114,'Anexo_GL '!$B$9:$N$1882,4,FALSE) -> 639.51513 | H114: =VLOOKUP(C114,'Anexo_GL '!$B$9:$N$1882,5,FALSE) -> 1809.437285 | I114: =VLOOKUP(C114,'Anexo_GL '!$B$9:$N$1882,6,FALSE) -> 748.12275 | L114: =VLOOKUP(C114,'Anexo_GL '!$B$9:$N$1882,7,FALSE) -> 35.34331559 | N114: =VLOOKUP(C114,'Anexo_GL '!$B$9:$N$1882,8,FALSE) -> Cumple | P114: =VLOOKUP(C114,'Anexo_GL '!$B$9:$N$1882,10,FALSE) -> 2403.72367 | Q114: =VLOOKUP(C114,'Anexo_GL '!$B$9:$N$1882,11,FALSE) -> 690.02742 | R114: =VLOOKUP(C114,'Anexo_GL '!$B$9:$N$1882,12,FALSE) -> 1713.69625 | S114: =VLOOKUP(C114,'Anexo_GL '!$B$9:$N$1882,13,FALSE) -> Cumple
A115: 020104 : MD DE HUANCHAY | B115: 88 | C115: 020104 | D115: ANCASH | E115: MD DE HUANCHAY | F115: =VLOOKUP(C115,'Anexo_GL '!$B$9:$N$1882,4,FALSE) -> 184.48416 | H115: =VLOOKUP(C115,'Anexo_GL '!$B$9:$N$1882,5,FALSE) -> 2279.558347 | I115: =VLOOKUP(C115,'Anexo_GL '!$B$9:$N$1882,6,FALSE) -> 3367.04352 | L115: =VLOOKUP(C115,'Anexo_GL '!$B$9:$N$1882,7,FALSE) -> 5.479114211 | N115: =VLOOKUP(C115,'Anexo_GL '!$B$9:$N$1882,8,FALSE) -> Cumple | P115: =VLOOKUP(C115,'Anexo_GL '!$B$9:$N$1882,10,FALSE) -> 2218.962 | Q115: =VLOOKUP(C115,'Anexo_GL '!$B$9:$N$1882,11,FALSE) -> 1035.19529 | R115: =VLOOKUP(C115,'Anexo_GL '!$B$9:$N$1882,12,FALSE) -> 1183.76671 | S115: =VLOOKUP(C115,'Anexo_GL '!$B$9:$N$1882,13,FALSE) -> Cumple
A116: 020105 : MD DE INDEPENDENCIA | B116: 89 | C116: 020105 | D116: ANCASH | E116: MD DE INDEPENDENCIA | F116: =VLOOKUP(C116,'Anexo_GL '!$B$9:$N$1882,4,FALSE) -> 7120.77339 | H116: =VLOOKUP(C116,'Anexo_GL '!$B$9:$N$1882,5,FALSE) -> 45839.42382 | I116: =VLOOKUP(C116,'Anexo_GL '!$B$9:$N$1882,6,FALSE) -> 65944.77317 | L116: =VLOOKUP(C116,'Anexo_GL '!$B$9:$N$1882,7,FALSE) -> 10.79808611 | N116: =VLOOKUP(C116,'Anexo_GL '!$B$9:$N$1882,8,FALSE) -> Cumple | P116: =VLOOKUP(C116,'Anexo_GL '!$B$9:$N$1882,10,FALSE) -> 51382.24226 | Q116: =VLOOKUP(C116,'Anexo_GL '!$B$9:$N$1882,11,FALSE) -> 23006.71458 | R116: =VLOOKUP(C116,'Anexo_GL '!$B$9:$N$1882,12,FALSE) -> 28375.52768 | S116: =VLOOKUP(C116,'Anexo_GL '!$B$9:$N$1882,13,FALSE) -> Cumple
A117: 020106 : MD DE JANGAS | B117: 90 | C117: 020106 | D117: ANCASH | E117: MD DE JANGAS | F117: =VLOOKUP(C117,'Anexo_GL '!$B$9:$N$1882,4,FALSE) -> 386.09725 | H117: =VLOOKUP(C117,'Anexo_GL '!$B$9:$N$1882,5,FALSE) -> 4511.003097 | I117: =VLOOKUP(C117,'Anexo_GL '!$B$9:$N$1882,6,FALSE) -> 8125.77036 | L117: =VLOOKUP(C117,'Anexo_GL '!$B$9:$N$1882,7,FALSE) -> 4.751515646 | N117: =VLOOKUP(C117,'Anexo_GL '!$B$9:$N$1882,8,FALSE) -> Cumple | P117: =VLOOKUP(C117,'Anexo_GL '!$B$9:$N$1882,10,FALSE) -> 3938.04803 | Q117: =VLOOKUP(C117,'Anexo_GL '!$B$9:$N$1882,11,FALSE) -> 2751.98566 | R117: =VLOOKUP(C117,'Anexo_GL '!$B$9:$N$1882,12,FALSE) -> 1186.06237 | S117: =VLOOKUP(C117,'Anexo_GL '!$B$9:$N$1882,13,FALSE) -> Cumple
A118: 020107 : MD DE LA LIBERTAD | B118: 91 | C118: 020107 | D118: ANCASH | E118: MD DE LA LIBERTAD | F118: =VLOOKUP(C118,'Anexo_GL '!$B$9:$N$1882,4,FALSE) -> 82.70782 | H118: =VLOOKUP(C118,'Anexo_GL '!$B$9:$N$1882,5,FALSE) -> 2213.933697 | I118: =VLOOKUP(C118,'Anexo_GL '!$B$9:$N$1882,6,FALSE) -> 2016.19674 | L118: =VLOOKUP(C118,'Anexo_GL '!$B$9:$N$1882,7,FALSE) -> 3.735785769 | N118: =VLOOKUP(C118,'Anexo_GL '!$B$9:$N$1882,8,FALSE) -> Cumple | P118: =VLOOKUP(C118,'Anexo_GL '!$B$9:$N$1882,10,FALSE) -> 1877.12648 | Q118: =VLOOKUP(C118,'Anexo_GL '!$B$9:$N$1882,11,FALSE) -> 1048.69579 | R118: =VLOOKUP(C118,'Anexo_GL '!$B$9:$N$1882,12,FALSE) -> 828.43069 | S118: =VLOOKUP(C118,'Anexo_GL '!$B$9:$N$1882,13,FALSE) -> Cumple
A119: 020108 : MD DE OLLEROS | B119: 92 | C119: 020108 | D119: ANCASH | E119: MD DE OLLEROS | F119: =VLOOKUP(C119,'Anexo_GL '!$B$9:$N$1882,4,FALSE) -> 1070.69014 | H119: =VLOOKUP(C119,'Anexo_GL '!$B$9:$N$1882,5,FALSE) -> 2109.582783 | I119: =VLOOKUP(C119,'Anexo_GL '!$B$9:$N$1882,6,FALSE) -> 3273.4827 | L119: =VLOOKUP(C119,'Anexo_GL '!$B$9:$N$1882,7,FALSE) -> 32.70798224 | N119: =VLOOKUP(C119,'Anexo_GL '!$B$9:$N$1882,8,FALSE) -> Cumple | P119: =VLOOKUP(C119,'Anexo_GL '!$B$9:$N$1882,10,FALSE) -> 2487.28435 | Q119: =VLOOKUP(C119,'Anexo_GL '!$B$9:$N$1882,11,FALSE) -> 1050.26467 | R119: =VLOOKUP(C119,'Anexo_GL '!$B$9:$N$1882,12,FALSE) -> 1437.01968 | S119: =VLOOKUP(C119,'Anexo_GL '!$B$9:$N$1882,13,FALSE) -> Cumple
A120: 020109 : MD DE PAMPAS | B120: 93 | C120: 020109 | D120: ANCASH | E120: MD DE PAMPAS | F120: =VLOOKUP(C120,'Anexo_GL '!$B$9:$N$1882,4,FALSE) -> 79.5521 | H120: =VLOOKUP(C120,'Anexo_GL '!$B$9:$N$1882,5,FALSE) -> 1711.326853 | I120: =VLOOKUP(C120,'Anexo_GL '!$B$9:$N$1882,6,FALSE) -> 1904.30811 | L120: =VLOOKUP(C120,'Anexo_GL '!$B$9:$N$1882,7,FALSE) -> 4.177480502 | N120: =VLOOKUP(C120,'Anexo_GL '!$B$9:$N$1882,8,FALSE) -> Cumple | P120: =VLOOKUP(C120,'Anexo_GL '!$B$9:$N$1882,10,FALSE) -> 1967.31338 | Q120: =VLOOKUP(C120,'Anexo_GL '!$B$9:$N$1882,11,FALSE) -> 1441.87223 | R120: =VLOOKUP(C120,'Anexo_GL '!$B$9:$N$1882,12,FALSE) -> 525.44115 | S120: =VLOOKUP(C120,'Anexo_GL '!$B$9:$N$1882,13,FALSE) -> Cumple
A121: 020110 : MD DE PARIACOTO | B121: 94 | C121: 020110 | D121: ANCASH | E121: MD DE PARIACOTO | F121: =VLOOKUP(C121,'Anexo_GL '!$B$9:$N$1882,4,FALSE) -> 1012.94031 | H121: =VLOOKUP(C121,'Anexo_GL '!$B$9:$N$1882,5,FALSE) -> 3881.402312 | I121: =VLOOKUP(C121,'Anexo_GL '!$B$9:$N$1882,6,FALSE) -> 5812.00863 | L121: =VLOOKUP(C121,'Anexo_GL '!$B$9:$N$1882,7,FALSE) -> 17.42840341 | N121: =VLOOKUP(C121,'Anexo_GL '!$B$9:$N$1882,8,FALSE) -> Cumple | P121: =VLOOKUP(C121,'Anexo_GL '!$B$9:$N$1882,10,FALSE) -> 3452.1543 | Q121: =VLOOKUP(C121,'Anexo_GL '!$B$9:$N$1882,11,FALSE) -> 2273.18877 | R121: =VLOOKUP(C121,'Anexo_GL '!$B$9:$N$1882,12,FALSE) -> 1178.96553 | S121: =VLOOKUP(C121,'Anexo_GL '!$B$9:$N$1882,13,FALSE) -> Cumple
A122: 020111 : MD DE PIRA | B122: 95 | C122: 020111 | D122: ANCASH | E122: MD DE PIRA | F122: =VLOOKUP(C122,'Anexo_GL '!$B$9:$N$1882,4,FALSE) -> 693.32928 | H122: =VLOOKUP(C122,'Anexo_GL '!$B$9:$N$1882,5,FALSE) -> 4367.286447 | I122: =VLOOKUP(C122,'Anexo_GL '!$B$9:$N$1882,6,FALSE) -> 6753.0497 | L122: =VLOOKUP(C122,'Anexo_GL '!$B$9:$N$1882,7,FALSE) -> 10.26690622 | N122: =VLOOKUP(C122,'Anexo_GL '!$B$9:$N$1882,8,FALSE) -> Cumple | P122: =VLOOKUP(C122,'Anexo_GL '!$B$9:$N$1882,10,FALSE) -> 3424.21741 | Q122: =VLOOKUP(C122,'Anexo_GL '!$B$9:$N$1882,11,FALSE) -> 2154.68493 | R122: =VLOOKUP(C122,'Anexo_GL '!$B$9:$N$1882,12,FALSE) -> 1269.53248 | S122: =VLOOKUP(C122,'Anexo_GL '!$B$9:$N$1882,13,FALSE) -> Cumple
A123: 020112 : MD DE TARICA | B123: 96 | C123: 020112 | D123: ANCASH | E123: MD DE TARICA | F123: =VLOOKUP(C123,'Anexo_GL '!$B$9:$N$1882,4,FALSE) -> 334.5656 | H123: =VLOOKUP(C123,'Anexo_GL '!$B$9:$N$1882,5,FALSE) -> 5209.237018 | I123: =VLOOKUP(C123,'Anexo_GL '!$B$9:$N$1882,6,FALSE) -> 8544.14768 | L123: =VLOOKUP(C123,'Anexo_GL '!$B$9:$N$1882,7,FALSE) -> 3.915728198 | N123: =VLOOKUP(C123,'Anexo_GL '!$B$9:$N$1882,8,FALSE) -> Cumple | P123: =VLOOKUP(C123,'Anexo_GL '!$B$9:$N$1882,10,FALSE) -> 6599.51703 | Q123: =VLOOKUP(C123,'Anexo_GL '!$B$9:$N$1882,11,FALSE) -> 2443.99871 | R123: =VLOOKUP(C123,'Anexo_GL '!$B$9:$N$1882,12,FALSE) -> 4155.51832 | S123: =VLOOKUP(C123,'Anexo_GL '!$B$9:$N$1882,13,FALSE) -> Cumple
A124: 020201 : MP DE AIJA | B124: 97 | C124: 020201 | D124: ANCASH | E124: MP DE AIJA | F124: =VLOOKUP(C124,'Anexo_GL '!$B$9:$N$1882,4,FALSE) -> 292.13392 | H124: =VLOOKUP(C124,'Anexo_GL '!$B$9:$N$1882,5,FALSE) -> 9011.311335 | I124: =VLOOKUP(C124,'Anexo_GL '!$B$9:$N$1882,6,FALSE) -> 3658.54973 | L124: =VLOOKUP(C124,'Anexo_GL '!$B$9:$N$1882,7,FALSE) -> 3.241858029 | N124: =VLOOKUP(C124,'Anexo_GL '!$B$9:$N$1882,8,FALSE) -> Cumple | P124: =VLOOKUP(C124,'Anexo_GL '!$B$9:$N$1882,10,FALSE) -> 12601.61778 | Q124: =VLOOKUP(C124,'Anexo_GL '!$B$9:$N$1882,11,FALSE) -> 13829.88396 | R124: =VLOOKUP(C124,'Anexo_GL '!$B$9:$N$1882,12,FALSE) -> -1228.26618 | S124: =VLOOKUP(C124,'Anexo_GL '!$B$9:$N$1882,13,FALSE) -> No Cumple
A125: 020202 : MD DE CORIS | B125: 98 | C125: 020202 | D125: ANCASH | E125: MD DE CORIS | F125: =VLOOKUP(C125,'Anexo_GL '!$B$9:$N$1882,4,FALSE) -> 152.28944 | H125: =VLOOKUP(C125,'Anexo_GL '!$B$9:$N$1882,5,FALSE) -> 3237.443452 | I125: =VLOOKUP(C125,'Anexo_GL '!$B$9:$N$1882,6,FALSE) -> 5701.65573 | L125: =VLOOKUP(C125,'Anexo_GL '!$B$9:$N$1882,7,FALSE) -> 2.670968701 | N125: =VLOOKUP(C125,'Anexo_GL '!$B$9:$N$1882,8,FALSE) -> Cumple | P125: =VLOOKUP(C125,'Anexo_GL '!$B$9:$N$1882,10,FALSE) -> 3469.37757 | Q125: =VLOOKUP(C125,'Anexo_GL '!$B$9:$N$1882,11,FALSE) -> 1197.75904 | R125: =VLOOKUP(C125,'Anexo_GL '!$B$9:$N$1882,12,FALSE) -> 2271.61853 | S125: =VLOOKUP(C125,'Anexo_GL '!$B$9:$N$1882,13,FALSE) -> Cumple
A126: 020203 : MD DE HUACLLAN | B126: 99 | C126: 020203 | D126: ANCASH | E126: MD DE HUACLLAN | F126: =VLOOKUP(C126,'Anexo_GL '!$B$9:$N$1882,4,FALSE) -> 107.83565 | H126: =VLOOKUP(C126,'Anexo_GL '!$B$9:$N$1882,5,FALSE) -> 1009.89421 | I126: =VLOOKUP(C126,'Anexo_GL '!$B$9:$N$1882,6,FALSE) -> 1176.18571 | L126: =VLOOKUP(C126,'Anexo_GL '!$B$9:$N$1882,7,FALSE) -> 9.16825031 | N126: =VLOOKUP(C126,'Anexo_GL '!$B$9:$N$1882,8,FALSE) -> Cumple | P126: =VLOOKUP(C126,'Anexo_GL '!$B$9:$N$1882,10,FALSE) -> 723.06864 | Q126: =VLOOKUP(C126,'Anexo_GL '!$B$9:$N$1882,11,FALSE) -> 556.4247 | R126: =VLOOKUP(C126,'Anexo_GL '!$B$9:$N$1882,12,FALSE) -> 166.64394 | S126: =VLOOKUP(C126,'Anexo_GL '!$B$9:$N$1882,13,FALSE) -> Cumple
A127: 020204 : MD DE LA MERCED | B127: 100 | C127: 020204 | D127: ANCASH | E127: MD DE LA MERCED | F127: =VLOOKUP(C127,'Anexo_GL '!$B$9:$N$1882,4,FALSE) -> 138.30578 | H127: =VLOOKUP(C127,'Anexo_GL '!$B$9:$N$1882,5,FALSE) -> 3006.049495 | I127: =VLOOKUP(C127,'Anexo_GL '!$B$9:$N$1882,6,FALSE) -> 4855.16015 | L127: =VLOOKUP(C127,'Anexo_GL '!$B$9:$N$1882,7,FALSE) -> 2.848634766 | N127: =VLOOKUP(C127,'Anexo_GL '!$B$9:$N$1882,8,FALSE) -> Cumple | P127: =VLOOKUP(C127,'Anexo_GL '!$B$9:$N$1882,10,FALSE) -> 2248.13101 | Q127: =VLOOKUP(C127,'Anexo_GL '!$B$9:$N$1882,11,FALSE) -> 1075.38035 | R127: =VLOOKUP(C127,'Anexo_GL '!$B$9:$N$1882,12,FALSE) -> 1172.75066 | S127: =VLOOKUP(C127,'Anexo_GL '!$B$9:$N$1882,13,FALSE) -> Cumple
A128: 020205 : MD DE SUCCHA | B128: 101 | C128: 020205 | D128: ANCASH | E128: MD DE SUCCHA | F128: =VLOOKUP(C128,'Anexo_GL '!$B$9:$N$1882,4,FALSE) -> 18.11551 | H128: =VLOOKUP(C128,'Anexo_GL '!$B$9:$N$1882,5,FALSE) -> 1325.78691 | I128: =VLOOKUP(C128,'Anexo_GL '!$B$9:$N$1882,6,FALSE) -> 1583.74957 | L128: =VLOOKUP(C128,'Anexo_GL '!$B$9:$N$1882,7,FALSE) -> 1.143836775 | N128: =VLOOKUP(C128,'Anexo_GL '!$B$9:$N$1882,8,FALSE) -> Cumple | P128: =VLOOKUP(C128,'Anexo_GL '!$B$9:$N$1882,10,FALSE) -> 1365.83607 | Q128: =VLOOKUP(C128,'Anexo_GL '!$B$9:$N$1882,11,FALSE) -> 670.00873 | R128: =VLOOKUP(C128,'Anexo_GL '!$B$9:$N$1882,12,FALSE) -> 695.82734 | S128: =VLOOKUP(C128,'Anexo_GL '!$B$9:$N$1882,13,FALSE) -> Cumple
A129: 020301 : MP DE ANTONIO RAYMONDI - LLAMELLIN | B129: 102 | C129: 020301 | D129: ANCASH | E129: MP DE ANTONIO RAYMONDI - LLAMELLIN | F129: =VLOOKUP(C129,'Anexo_GL '!$B$9:$N$1882,4,FALSE) -> 1768.4442 | H129: =VLOOKUP(C129,'Anexo_GL '!$B$9:$N$1882,5,FALSE) -> 7249.610085 | I129: =VLOOKUP(C129,'Anexo_GL '!$B$9:$N$1882,6,FALSE) -> 5000.56943 | L129: =VLOOKUP(C129,'Anexo_GL '!$B$9:$N$1882,7,FALSE) -> 24.39364572 | N129: =VLOOKUP(C129,'Anexo_GL '!$B$9:$N$1882,8,FALSE) -> Cumple | P129: =VLOOKUP(C129,'Anexo_GL '!$B$9:$N$1882,10,FALSE) -> 8635.19273 | Q129: =VLOOKUP(C129,'Anexo_GL '!$B$9:$N$1882,11,FALSE) -> 2913.48205 | R129: =VLOOKUP(C129,'Anexo_GL '!$B$9:$N$1882,12,FALSE) -> 5721.71068 | S129: =VLOOKUP(C129,'Anexo_GL '!$B$9:$N$1882,13,FALSE) -> Cumple
A130: 020302 : MD DE ACSO | B130: 103 | C130: 020302 | D130: ANCASH | E130: MD DE ACSO | F130: =VLOOKUP(C130,'Anexo_GL '!$B$9:$N$1882,4,FALSE) -> 36.37242 | H130: =VLOOKUP(C130,'Anexo_GL '!$B$9:$N$1882,5,FALSE) -> 1746.409525 | I130: =VLOOKUP(C130,'Anexo_GL '!$B$9:$N$1882,6,FALSE) -> 2471.71745 | L130: =VLOOKUP(C130,'Anexo_GL '!$B$9:$N$1882,7,FALSE) -> 1.471544411 | N130: =VLOOKUP(C130,'Anexo_GL '!$B$9:$N$1882,8,FALSE) -> Cumple | P130: =VLOOKUP(C130,'Anexo_GL '!$B$9:$N$1882,10,FALSE) -> 1613.93474 | Q130: =VLOOKUP(C130,'Anexo_GL '!$B$9:$N$1882,11,FALSE) -> 854.45873 | R130: =VLOOKUP(C130,'Anexo_GL '!$B$9:$N$1882,12,FALSE) -> 759.47601 | S130: =VLOOKUP(C130,'Anexo_GL '!$B$9:$N$1882,13,FALSE) -> Cumple
A131: 020303 : MD DE CHACCHO | B131: 104 | C131: 020303 | D131: ANCASH | E131: MD DE CHACCHO | F131: =VLOOKUP(C131,'Anexo_GL '!$B$9:$N$1882,4,FALSE) -> 463.68539 | H131: =VLOOKUP(C131,'Anexo_GL '!$B$9:$N$1882,5,FALSE) -> 2045.731145 | I131: =VLOOKUP(C131,'Anexo_GL '!$B$9:$N$1882,6,FALSE) -> 2786.86973 | L131: =VLOOKUP(C131,'Anexo_GL '!$B$9:$N$1882,7,FALSE) -> 16.63821545 | N131: =VLOOKUP(C131,'Anexo_GL '!$B$9:$N$1882,8,FALSE) -> Cumple | P131: =VLOOKUP(C131,'Anexo_GL '!$B$9:$N$1882,10,FALSE) -> 2936.28896 | Q131: =VLOOKUP(C131,'Anexo_GL '!$B$9:$N$1882,11,FALSE) -> 1641.92066 | R131: =VLOOKUP(C131,'Anexo_GL '!$B$9:$N$1882,12,FALSE) -> 1294.3683 | S131: =VLOOKUP(C131,'Anexo_GL '!$B$9:$N$1882,13,FALSE) -> Cumple
A132: 020304 : MD DE CHINGAS | B132: 105 | C132: 020304 | D132: ANCASH | E132: MD DE CHINGAS | F132: =VLOOKUP(C132,'Anexo_GL '!$B$9:$N$1882,4,FALSE) -> 132.60033 | H132: =VLOOKUP(C132,'Anexo_GL '!$B$9:$N$1882,5,FALSE) -> 1702.429295 | I132: =VLOOKUP(C132,'Anexo_GL '!$B$9:$N$1882,6,FALSE) -> 2736.93859 | L132: =VLOOKUP(C132,'Anexo_GL '!$B$9:$N$1882,7,FALSE) -> 4.844841257 | N132: =VLOOKUP(C132,'Anexo_GL '!$B$9:$N$1882,8,FALSE) -> Cumple | P132: =VLOOKUP(C132,'Anexo_GL '!$B$9:$N$1882,10,FALSE) -> 1569.43341 | Q132: =VLOOKUP(C132,'Anexo_GL '!$B$9:$N$1882,11,FALSE) -> 855.03704 | R132: =VLOOKUP(C132,'Anexo_GL '!$B$9:$N$1882,12,FALSE) -> 714.39637 | S132: =VLOOKUP(C132,'Anexo_GL '!$B$9:$N$1882,13,FALSE) -> Cumple
A133: 020305 : MD DE MIRGAS | B133: 106 | C133: 020305 | D133: ANCASH | E133: MD DE MIRGAS | F133: =VLOOKUP(C133,'Anexo_GL '!$B$9:$N$1882,4,FALSE) -> 333.45084 | H133: =VLOOKUP(C133,'Anexo_GL '!$B$9:$N$1882,5,FALSE) -> 5443.676645 | I133: =VLOOKUP(C133,'Anexo_GL '!$B$9:$N$1882,6,FALSE) -> 8707.37702 | L133: =VLOOKUP(C133,'Anexo_GL '!$B$9:$N$1882,7,FALSE) -> 3.829521097 | N133: =VLOOKUP(C133,'Anexo_GL '!$B$9:$N$1882,8,FALSE) -> Cumple | P133: =VLOOKUP(C133,'Anexo_GL '!$B$9:$N$1882,10,FALSE) -> 6370.77853 | Q133: =VLOOKUP(C133,'Anexo_GL '!$B$9:$N$1882,11,FALSE) -> 3195.52869 | R133: =VLOOKUP(C133,'Anexo_GL '!$B$9:$N$1882,12,FALSE) -> 3175.24984 | S133: =VLOOKUP(C133,'Anexo_GL '!$B$9:$N$1882,13,FALSE) -> Cumple
A134: 020306 : MD DE SAN JUAN DE RONTOY | B134: 107 | C134: 020306 | D134: ANCASH | E134: MD DE SAN JUAN DE RONTOY | F134: =VLOOKUP(C134,'Anexo_GL '!$B$9:$N$1882,4,FALSE) -> 49.86699 | H134: =VLOOKUP(C134,'Anexo_GL '!$B$9:$N$1882,5,FALSE) -> 1634.958302 | I134: =VLOOKUP(C134,'Anexo_GL '!$B$9:$N$1882,6,FALSE) -> 1789.27906 | L134: =VLOOKUP(C134,'Anexo_GL '!$B$9:$N$1882,7,FALSE) -> 2.78698785 | N134: =VLOOKUP(C134,'Anexo_GL '!$B$9:$N$1882,8,FALSE) -> Cumple | P134: =VLOOKUP(C134,'Anexo_GL '!$B$9:$N$1882,10,FALSE) -> 1901.7676 | Q134: =VLOOKUP(C134,'Anexo_GL '!$B$9:$N$1882,11,FALSE) -> 1540.71064 | R134: =VLOOKUP(C134,'Anexo_GL '!$B$9:$N$1882,12,FALSE) -> 361.05696 | S134: =VLOOKUP(C134,'Anexo_GL '!$B$9:$N$1882,13,FALSE) -> Cumple
A135: 020401 : MP DE ASUNCION - CHACAS | B135: 108 | C135: 020401 | D135: ANCASH | E135: MP DE ASUNCION - CHACAS | F135: =VLOOKUP(C135,'Anexo_GL '!$B$9:$N$1882,4,FALSE) -> 680.53776 | H135: =VLOOKUP(C135,'Anexo_GL '!$B$9:$N$1882,5,FALSE) -> 7424.95995 | I135: =VLOOKUP(C135,'Anexo_GL '!$B$9:$N$1882,6,FALSE) -> 6045.94582 | L135: =VLOOKUP(C135,'Anexo_GL '!$B$9:$N$1882,7,FALSE) -> 9.165541156 | N135: =VLOOKUP(C135,'Anexo_GL '!$B$9:$N$1882,8,FALSE) -> Cumple | P135: =VLOOKUP(C135,'Anexo_GL '!$B$9:$N$1882,10,FALSE) -> 9259.16138 | Q135: =VLOOKUP(C135,'Anexo_GL '!$B$9:$N$1882,11,FALSE) -> 5955.92227 | R135: =VLOOKUP(C135,'Anexo_GL '!$B$9:$N$1882,12,FALSE) -> 3303.23911 | S135: =VLOOKUP(C135,'Anexo_GL '!$B$9:$N$1882,13,FALSE) -> Cumple
A136: 020402 : MD DE ACOCHACA | B136: 109 | C136: 020402 | D136: ANCASH | E136: MD DE ACOCHACA | F136: =VLOOKUP(C136,'Anexo_GL '!$B$9:$N$1882,4,FALSE) -> 376.93217 | H136: =VLOOKUP(C136,'Anexo_GL '!$B$9:$N$1882,5,FALSE) -> 2827.564585 | I136: =VLOOKUP(C136,'Anexo_GL '!$B$9:$N$1882,6,FALSE) -> 4155.30895 | L136: =VLOOKUP(C136,'Anexo_GL '!$B$9:$N$1882,7,FALSE) -> 9.071098552 | N136: =VLOOKUP(C136,'Anexo_GL '!$B$9:$N$1882,8,FALSE) -> Cumple | P136: =VLOOKUP(C136,'Anexo_GL '!$B$9:$N$1882,10,FALSE) -> 2353.50907 | Q136: =VLOOKUP(C136,'Anexo_GL '!$B$9:$N$1882,11,FALSE) -> 1496.52132 | R136: =VLOOKUP(C136,'Anexo_GL '!$B$9:$N$1882,12,FALSE) -> 856.98775 | S136: =VLOOKUP(C136,'Anexo_GL '!$B$9:$N$1882,13,FALSE) -> Cumple
A137: 020501 : MP DE BOLOGNESI - CHIQUIAN | B137: 110 | C137: 020501 | D137: ANCASH | E137: MP DE BOLOGNESI - CHIQUIAN | F137: =VLOOKUP(C137,'Anexo_GL '!$B$9:$N$1882,4,FALSE) -> 5077.89471 | H137: =VLOOKUP(C137,'Anexo_GL '!$B$9:$N$1882,5,FALSE) -> 16010.87308 | I137: =VLOOKUP(C137,'Anexo_GL '!$B$9:$N$1882,6,FALSE) -> 3674.4027 | L137: =VLOOKUP(C137,'Anexo_GL '!$B$9:$N$1882,7,FALSE) -> 31.71528926 | N137: =VLOOKUP(C137,'Anexo_GL '!$B$9:$N$1882,8,FALSE) -> Cumple | P137: =VLOOKUP(C137,'Anexo_GL '!$B$9:$N$1882,10,FALSE) -> 19801.35602 | Q137: =VLOOKUP(C137,'Anexo_GL '!$B$9:$N$1882,11,FALSE) -> 17410.03731 | R137: =VLOOKUP(C137,'Anexo_GL '!$B$9:$N$1882,12,FALSE) -> 2391.31871 | S137: =VLOOKUP(C137,'Anexo_GL '!$B$9:$N$1882,13,FALSE) -> Cumple
A138: 020502 : MD DE ABELARDO PARDO LAZAMETA | B138: 111 | C138: 020502 | D138: ANCASH | E138: MD DE ABELARDO PARDO LAZAMETA | F138: =VLOOKUP(C138,'Anexo_GL '!$B$9:$N$1882,4,FALSE) -> 171.29623 | H138: =VLOOKUP(C138,'Anexo_GL '!$B$9:$N$1882,5,FALSE) -> 1457.258315 | I138: =VLOOKUP(C138,'Anexo_GL '!$B$9:$N$1882,6,FALSE) -> 1560.8729 | L138: =VLOOKUP(C138,'Anexo_GL '!$B$9:$N$1882,7,FALSE) -> 10.97438683 | N138: =VLOOKUP(C138,'Anexo_GL '!$B$9:$N$1882,8,FALSE) -> Cumple | P138: =VLOOKUP(C138,'Anexo_GL '!$B$9:$N$1882,10,FALSE) -> 817.03014 | Q138: =VLOOKUP(C138,'Anexo_GL '!$B$9:$N$1882,11,FALSE) -> 560.75877 | R138: =VLOOKUP(C138,'Anexo_GL '!$B$9:$N$1882,12,FALSE) -> 256.27137 | S138: =VLOOKUP(C138,'Anexo_GL '!$B$9:$N$1882,13,FALSE) -> Cumple
A139: 020503 : MD DE ANTONIO RAYMONDI | B139: 112 | C139: 020503 | D139: ANCASH | E139: MD DE ANTONIO RAYMONDI | F139: =VLOOKUP(C139,'Anexo_GL '!$B$9:$N$1882,4,FALSE) -> 124.31787 | H139: =VLOOKUP(C139,'Anexo_GL '!$B$9:$N$1882,5,FALSE) -> 2046.535065 | I139: =VLOOKUP(C139,'Anexo_GL '!$B$9:$N$1882,6,FALSE) -> 1965.3654 | L139: =VLOOKUP(C139,'Anexo_GL '!$B$9:$N$1882,7,FALSE) -> 6.074553626 | N139: =VLOOKUP(C139,'Anexo_GL '!$B$9:$N$1882,8,FALSE) -> Cumple | P139: =VLOOKUP(C139,'Anexo_GL '!$B$9:$N$1882,10,FALSE) -> 2346.92266 | Q139: =VLOOKUP(C139,'Anexo_GL '!$B$9:$N$1882,11,FALSE) -> 1567.28808 | R139: =VLOOKUP(C139,'Anexo_GL '!$B$9:$N$1882,12,FALSE) -> 779.63458 | S139: =VLOOKUP(C139,'Anexo_GL '!$B$9:$N$1882,13,FALSE) -> Cumple
A140: 020504 : MD DE AQUIA | B140: 113 | C140: 020504 | D140: ANCASH | E140: MD DE AQUIA | F140: =VLOOKUP(C140,'Anexo_GL '!$B$9:$N$1882,4,FALSE) -> 293.58963 | H140: =VLOOKUP(C140,'Anexo_GL '!$B$9:$N$1882,5,FALSE) -> 2965.114663 | I140: =VLOOKUP(C140,'Anexo_GL '!$B$9:$N$1882,6,FALSE) -> 4000.3959 | L140: =VLOOKUP(C140,'Anexo_GL '!$B$9:$N$1882,7,FALSE) -> 7.339014371 | N140: =VLOOKUP(C140,'Anexo_GL '!$B$9:$N$1882,8,FALSE) -> Cumple | P140: =VLOOKUP(C140,'Anexo_GL '!$B$9:$N$1882,10,FALSE) -> 2710.44328 | Q140: =VLOOKUP(C140,'Anexo_GL '!$B$9:$N$1882,11,FALSE) -> 981.37387 | R140: =VLOOKUP(C140,'Anexo_GL '!$B$9:$N$1882,12,FALSE) -> 1729.06941 | S140: =VLOOKUP(C140,'Anexo_GL '!$B$9:$N$1882,13,FALSE) -> Cumple
A141: 020505 : MD DE CAJACAY | B141: 114 | C141: 020505 | D141: ANCASH | E141: MD DE CAJACAY | F141: =VLOOKUP(C141,'Anexo_GL '!$B$9:$N$1882,4,FALSE) -> 185.37011 | H141: =VLOOKUP(C141,'Anexo_GL '!$B$9:$N$1882,5,FALSE) -> 1915.899392 | I141: =VLOOKUP(C141,'Anexo_GL '!$B$9:$N$1882,6,FALSE) -> 3136.50162 | L141: =VLOOKUP(C141,'Anexo_GL '!$B$9:$N$1882,7,FALSE) -> 5.91009132 | N141: =VLOOKUP(C141,'Anexo_GL '!$B$9:$N$1882,8,FALSE) -> Cumple | P141: =VLOOKUP(C141,'Anexo_GL '!$B$9:$N$1882,10,FALSE) -> 1728.97811 | Q141: =VLOOKUP(C141,'Anexo_GL '!$B$9:$N$1882,11,FALSE) -> 749.81142 | R141: =VLOOKUP(C141,'Anexo_GL '!$B$9:$N$1882,12,FALSE) -> 979.16669 | S141: =VLOOKUP(C141,'Anexo_GL '!$B$9:$N$1882,13,FALSE) -> Cumple
A142: 020506 : MD DE CANIS | B142: 115 | C142: 020506 | D142: ANCASH | E142: MD DE CANIS | F142: =VLOOKUP(C142,'Anexo_GL '!$B$9:$N$1882,4,FALSE) -> 228.07477 | H142: =VLOOKUP(C142,'Anexo_GL '!$B$9:$N$1882,5,FALSE) -> 1369.43782 | I142: =VLOOKUP(C142,'Anexo_GL '!$B$9:$N$1882,6,FALSE) -> 1610.61407 | L142: =VLOOKUP(C142,'Anexo_GL '!$B$9:$N$1882,7,FALSE) -> 14.16073374 | N142: =VLOOKUP(C142,'Anexo_GL '!$B$9:$N$1882,8,FALSE) -> Cumple | P142: =VLOOKUP(C142,'Anexo_GL '!$B$9:$N$1882,10,FALSE) -> 669.06035 | Q142: =VLOOKUP(C142,'Anexo_GL '!$B$9:$N$1882,11,FALSE) -> 483.78927 | R142: =VLOOKUP(C142,'Anexo_GL '!$B$9:$N$1882,12,FALSE) -> 185.27108 | S142: =VLOOKUP(C142,'Anexo_GL '!$B$9:$N$1882,13,FALSE) -> Cumple
A143: 020507 : MD DE COLQUIOC | B143: 116 | C143: 020507 | D143: ANCASH | E143: MD DE COLQUIOC | F143: =VLOOKUP(C143,'Anexo_GL '!$B$9:$N$1882,4,FALSE) -> 1318.31389 | H143: =VLOOKUP(C143,'Anexo_GL '!$B$9:$N$1882,5,FALSE) -> 3124.69287 | I143: =VLOOKUP(C143,'Anexo_GL '!$B$9:$N$1882,6,FALSE) -> 4496.81223 | L143: =VLOOKUP(C143,'Anexo_GL '!$B$9:$N$1882,7,FALSE) -> 29.31663193 | N143: =VLOOKUP(C143,'Anexo_GL '!$B$9:$N$1882,8,FALSE) -> Cumple | P143: =VLOOKUP(C143,'Anexo_GL '!$B$9:$N$1882,10,FALSE) -> 2288.55773 | Q143: =VLOOKUP(C143,'Anexo_GL '!$B$9:$N$1882,11,FALSE) -> 1185.07372 | R143: =VLOOKUP(C143,'Anexo_GL '!$B$9:$N$1882,12,FALSE) -> 1103.48401 | S143: =VLOOKUP(C143,'Anexo_GL '!$B$9:$N$1882,13,FALSE) -> Cumple
A144: 020508 : MD DE HUALLANCA | B144: 117 | C144: 020508 | D144: ANCASH | E144: MD DE HUALLANCA | F144: =VLOOKUP(C144,'Anexo_GL '!$B$9:$N$1882,4,FALSE) -> 1217.79652 | H144: =VLOOKUP(C144,'Anexo_GL '!$B$9:$N$1882,5,FALSE) -> 9803.96225 | I144: =VLOOKUP(C144,'Anexo_GL '!$B$9:$N$1882,6,FALSE) -> 14581.76216 | L144: =VLOOKUP(C144,'Anexo_GL '!$B$9:$N$1882,7,FALSE) -> 8.35150448 | N144: =VLOOKUP(C144,'Anexo_GL '!$B$9:$N$1882,8,FALSE) -> Cumple | P144: =VLOOKUP(C144,'Anexo_GL '!$B$9:$N$1882,10,FALSE) -> 9137.20684 | Q144: =VLOOKUP(C144,'Anexo_GL '!$B$9:$N$1882,11,FALSE) -> 4337.96308 | R144: =VLOOKUP(C144,'Anexo_GL '!$B$9:$N$1882,12,FALSE) -> 4799.24376 | S144: =VLOOKUP(C144,'Anexo_GL '!$B$9:$N$1882,13,FALSE) -> Cumple
A145: 020509 : MD DE HUASTA | B145: 118 | C145: 020509 | D145: ANCASH | E145: MD DE HUASTA | F145: =VLOOKUP(C145,'Anexo_GL '!$B$9:$N$1882,4,FALSE) -> 279.54931 | H145: =VLOOKUP(C145,'Anexo_GL '!$B$9:$N$1882,5,FALSE) -> 3136.955737 | I145: =VLOOKUP(C145,'Anexo_GL '!$B$9:$N$1882,6,FALSE) -> 3832.71342 | L145: =VLOOKUP(C145,'Anexo_GL '!$B$9:$N$1882,7,FALSE) -> 7.293770219 | N145: =VLOOKUP(C145,'Anexo_GL '!$B$9:$N$1882,8,FALSE) -> Cumple | P145: =VLOOKUP(C145,'Anexo_GL '!$B$9:$N$1882,10,FALSE) -> 2136.04307 | Q145: =VLOOKUP(C145,'Anexo_GL '!$B$9:$N$1882,11,FALSE) -> 1267.28531 | R145: =VLOOKUP(C145,'Anexo_GL '!$B$9:$N$1882,12,FALSE) -> 868.75776 | S145: =VLOOKUP(C145,'Anexo_GL '!$B$9:$N$1882,13,FALSE) -> Cumple
A146: 020510 : MD DE HUAYLLACAYAN | B146: 119 | C146: 020510 | D146: ANCASH | E146: MD DE HUAYLLACAYAN | F146: =VLOOKUP(C146,'Anexo_GL '!$B$9:$N$1882,4,FALSE) -> 836.20686 | H146: =VLOOKUP(C146,'Anexo_GL '!$B$9:$N$1882,5,FALSE) -> 1977.621303 | I146: =VLOOKUP(C146,'Anexo_GL '!$B$9:$N$1882,6,FALSE) -> 2623.52021 | L146: =VLOOKUP(C146,'Anexo_GL '!$B$9:$N$1882,7,FALSE) -> 31.87346744 | N146: =VLOOKUP(C146,'Anexo_GL '!$B$9:$N$1882,8,FALSE) -> Cumple | P146: =VLOOKUP(C146,'Anexo_GL '!$B$9:$N$1882,10,FALSE) -> 2628.87906 | Q146: =VLOOKUP(C146,'Anexo_GL '!$B$9:$N$1882,11,FALSE) -> 1304.51462 | R146: =VLOOKUP(C146,'Anexo_GL '!$B$9:$N$1882,12,FALSE) -> 1324.36444 | S146: =VLOOKUP(C146,'Anexo_GL '!$B$9:$N$1882,13,FALSE) -> Cumple
A147: 020511 : MD DE LA PRIMAVERA | B147: 120 | C147: 020511 | D147: ANCASH | E147: MD DE LA PRIMAVERA | F147: =VLOOKUP(C147,'Anexo_GL '!$B$9:$N$1882,4,FALSE) -> 189.32621 | H147: =VLOOKUP(C147,'Anexo_GL '!$B$9:$N$1882,5,FALSE) -> 3409.750695 | I147: =VLOOKUP(C147,'Anexo_GL '!$B$9:$N$1882,6,FALSE) -> 1540.55437 | L147: =VLOOKUP(C147,'Anexo_GL '!$B$9:$N$1882,7,FALSE) -> 5.552494212 | N147: =VLOOKUP(C147,'Anexo_GL '!$B$9:$N$1882,8,FALSE) -> Cumple | P147: =VLOOKUP(C147,'Anexo_GL '!$B$9:$N$1882,10,FALSE) -> 4717.7569 | Q147: =VLOOKUP(C147,'Anexo_GL '!$B$9:$N$1882,11,FALSE) -> 453.22653 | R147: =VLOOKUP(C147,'Anexo_GL '!$B$9:$N$1882,12,FALSE) -> 4264.53037 | S147: =VLOOKUP(C147,'Anexo_GL '!$B$9:$N$1882,13,FALSE) -> Cumple
A148: 020512 : MD DE MANGAS | B148: 121 | C148: 020512 | D148: ANCASH | E148: MD DE MANGAS | F148: =VLOOKUP(C148,'Anexo_GL '!$B$9:$N$1882,4,FALSE) -> 290.57691 | H148: =VLOOKUP(C148,'Anexo_GL '!$B$9:$N$1882,5,FALSE) -> 1186.648155 | I148: =VLOOKUP(C148,'Anexo_GL '!$B$9:$N$1882,6,FALSE) -> 1480.47634 | L148: =VLOOKUP(C148,'Anexo_GL '!$B$9:$N$1882,7,FALSE) -> 19.62725794 | N148: =VLOOKUP(C148,'Anexo_GL '!$B$9:$N$1882,8,FALSE) -> Cumple | P148: =VLOOKUP(C148,'Anexo_GL '!$B$9:$N$1882,10,FALSE) -> 1341.40593 | Q148: =VLOOKUP(C148,'Anexo_GL '!$B$9:$N$1882,11,FALSE) -> 733.80613 | R148: =VLOOKUP(C148,'Anexo_GL '!$B$9:$N$1882,12,FALSE) -> 607.5998 | S148: =VLOOKUP(C148,'Anexo_GL '!$B$9:$N$1882,13,FALSE) -> Cumple
A149: 020513 : MD DE PACLLON | B149: 122 | C149: 020513 | D149: ANCASH | E149: MD DE PACLLON | F149: =VLOOKUP(C149,'Anexo_GL '!$B$9:$N$1882,4,FALSE) -> 1559.2445 | H149: =VLOOKUP(C149,'Anexo_GL '!$B$9:$N$1882,5,FALSE) -> 2157.180805 | I149: =VLOOKUP(C149,'Anexo_GL '!$B$9:$N$1882,6,FALSE) -> 2943.81939 | L149: =VLOOKUP(C149,'Anexo_GL '!$B$9:$N$1882,7,FALSE) -> 52.9667175 | N149: =VLOOKUP(C149,'Anexo_GL '!$B$9:$N$1882,8,FALSE) -> Cumple | P149: =VLOOKUP(C149,'Anexo_GL '!$B$9:$N$1882,10,FALSE) -> 1266.85289 | Q149: =VLOOKUP(C149,'Anexo_GL '!$B$9:$N$1882,11,FALSE) -> 621.70842 | R149: =VLOOKUP(C149,'Anexo_GL '!$B$9:$N$1882,12,FALSE) -> 645.14447 | S149: =VLOOKUP(C149,'Anexo_GL '!$B$9:$N$1882,13,FALSE) -> Cumple
A150: 020514 : MD DE SAN MIGUEL DE CORPANQUI | B150: 123 | C150: 020514 | D150: ANCASH | E150: MD DE SAN MIGUEL DE CORPANQUI | F150: =VLOOKUP(C150,'Anexo_GL '!$B$9:$N$1882,4,FALSE) -> 152.478 | H150: =VLOOKUP(C150,'Anexo_GL '!$B$9:$N$1882,5,FALSE) -> 1441.907045 | I150: =VLOOKUP(C150,'Anexo_GL '!$B$9:$N$1882,6,FALSE) -> 1914.78141 | L150: =VLOOKUP(C150,'Anexo_GL '!$B$9:$N$1882,7,FALSE) -> 7.96320662 | N150: =VLOOKUP(C150,'Anexo_GL '!$B$9:$N$1882,8,FALSE) -> Cumple | P150: =VLOOKUP(C150,'Anexo_GL '!$B$9:$N$1882,10,FALSE) -> 1277.31158 | Q150: =VLOOKUP(C150,'Anexo_GL '!$B$9:$N$1882,11,FALSE) -> 781.30549 | R150: =VLOOKUP(C150,'Anexo_GL '!$B$9:$N$1882,12,FALSE) -> 496.00609 | S150: =VLOOKUP(C150,'Anexo_GL '!$B$9:$N$1882,13,FALSE) -> Cumple
A151: 020515 : MD DE TICLLOS | B151: 124 | C151: 020515 | D151: ANCASH | E151: MD DE TICLLOS | F151: =VLOOKUP(C151,'Anexo_GL '!$B$9:$N$1882,4,FALSE) -> 1779.95779 | H151: =VLOOKUP(C151,'Anexo_GL '!$B$9:$N$1882,5,FALSE) -> 1586.091748 | I151: =VLOOKUP(C151,'Anexo_GL '!$B$9:$N$1882,6,FALSE) -> 1946.74687 | L151: =VLOOKUP(C151,'Anexo_GL '!$B$9:$N$1882,7,FALSE) -> 91.4324208 | N151: =VLOOKUP(C151,'Anexo_GL '!$B$9:$N$1882,8,FALSE) -> Cumple | P151: =VLOOKUP(C151,'Anexo_GL '!$B$9:$N$1882,10,FALSE) -> 1643.58085 | Q151: =VLOOKUP(C151,'Anexo_GL '!$B$9:$N$1882,11,FALSE) -> 1328.55885 | R151: =VLOOKUP(C151,'Anexo_GL '!$B$9:$N$1882,12,FALSE) -> 315.022 | S151: =VLOOKUP(C151,'Anexo_GL '!$B$9:$N$1882,13,FALSE) -> Cumple
A152: 020601 : MP DE CARHUAZ | B152: 125 | C152: 020601 | D152: ANCASH | E152: MP DE CARHUAZ | F152: =VLOOKUP(C152,'Anexo_GL '!$B$9:$N$1882,4,FALSE) -> 2954.67067 | H152: =VLOOKUP(C152,'Anexo_GL '!$B$9:$N$1882,5,FALSE) -> 20552.76976 | I152: =VLOOKUP(C152,'Anexo_GL '!$B$9:$N$1882,6,FALSE) -> 19576.64152 | L152: =VLOOKUP(C152,'Anexo_GL '!$B$9:$N$1882,7,FALSE) -> 14.37602184 | N152: =VLOOKUP(C152,'Anexo_GL '!$B$9:$N$1882,8,FALSE) -> Cumple | P152: =VLOOKUP(C152,'Anexo_GL '!$B$9:$N$1882,10,FALSE) -> 22336.64963 | Q152: =VLOOKUP(C152,'Anexo_GL '!$B$9:$N$1882,11,FALSE) -> 11005.04659 | R152: =VLOOKUP(C152,'Anexo_GL '!$B$9:$N$1882,12,FALSE) -> 11331.60304 | S152: =VLOOKUP(C152,'Anexo_GL '!$B$9:$N$1882,13,FALSE) -> Cumple
A153: 020602 : MD DE ACOPAMPA | B153: 126 | C153: 020602 | D153: ANCASH | E153: MD DE ACOPAMPA | F153: =VLOOKUP(C153,'Anexo_GL '!$B$9:$N$1882,4,FALSE) -> 386.76179 | H153: =VLOOKUP(C153,'Anexo_GL '!$B$9:$N$1882,5,FALSE) -> 2009.106605 | I153: =VLOOKUP(C153,'Anexo_GL '!$B$9:$N$1882,6,FALSE) -> 2809.21683 | L153: =VLOOKUP(C153,'Anexo_GL '!$B$9:$N$1882,7,FALSE) -> 13.76760191 | N153: =VLOOKUP(C153,'Anexo_GL '!$B$9:$N$1882,8,FALSE) -> Cumple | P153: =VLOOKUP(C153,'Anexo_GL '!$B$9:$N$1882,10,FALSE) -> 1699.03376 | Q153: =VLOOKUP(C153,'Anexo_GL '!$B$9:$N$1882,11,FALSE) -> 884.56926 | R153: =VLOOKUP(C153,'Anexo_GL '!$B$9:$N$1882,12,FALSE) -> 814.4645 | S153: =VLOOKUP(C153,'Anexo_GL '!$B$9:$N$1882,13,FALSE) -> Cumple
A154: 020603 : MD DE AMASHCA | B154: 127 | C154: 020603 | D154: ANCASH | E154: MD DE AMASHCA | F154: =VLOOKUP(C154,'Anexo_GL '!$B$9:$N$1882,4,FALSE) -> 78.32666 | H154: =VLOOKUP(C154,'Anexo_GL '!$B$9:$N$1882,5,FALSE) -> 2030.451398 | I154: =VLOOKUP(C154,'Anexo_GL '!$B$9:$N$1882,6,FALSE) -> 2399.42256 | L154: =VLOOKUP(C154,'Anexo_GL '!$B$9:$N$1882,7,FALSE) -> 3.264396247 | N154: =VLOOKUP(C154,'Anexo_GL '!$B$9:$N$1882,8,FALSE) -> Cumple | P154: =VLOOKUP(C154,'Anexo_GL '!$B$9:$N$1882,10,FALSE) -> 2458.97688 | Q154: =VLOOKUP(C154,'Anexo_GL '!$B$9:$N$1882,11,FALSE) -> 1387.25907 | R154: =VLOOKUP(C154,'Anexo_GL '!$B$9:$N$1882,12,FALSE) -> 1071.71781 | S154: =VLOOKUP(C154,'Anexo_GL '!$B$9:$N$1882,13,FALSE) -> Cumple
A155: 020604 : MD DE ANTA | B155: 128 | C155: 020604 | D155: ANCASH | E155: MD DE ANTA | F155: =VLOOKUP(C155,'Anexo_GL '!$B$9:$N$1882,4,FALSE) -> 42.11362 | H155: =VLOOKUP(C155,'Anexo_GL '!$B$9:$N$1882,5,FALSE) -> 2798.948652 | I155: =VLOOKUP(C155,'Anexo_GL '!$B$9:$N$1882,6,FALSE) -> 3332.36126 | L155: =VLOOKUP(C155,'Anexo_GL '!$B$9:$N$1882,7,FALSE) -> 1.263777145 | N155: =VLOOKUP(C155,'Anexo_GL '!$B$9:$N$1882,8,FALSE) -> Cumple | P155: =VLOOKUP(C155,'Anexo_GL '!$B$9:$N$1882,10,FALSE) -> 2635.10455 | Q155: =VLOOKUP(C155,'Anexo_GL '!$B$9:$N$1882,11,FALSE) -> 1979.58037 | R155: =VLOOKUP(C155,'Anexo_GL '!$B$9:$N$1882,12,FALSE) -> 655.52418 | S155: =VLOOKUP(C155,'Anexo_GL '!$B$9:$N$1882,13,FALSE) -> Cumple
A156: 020605 : MD DE ATAQUERO | B156: 129 | C156: 020605 | D156: ANCASH | E156: MD DE ATAQUERO | F156: =VLOOKUP(C156,'Anexo_GL '!$B$9:$N$1882,4,FALSE) -> 218.44304 | H156: =VLOOKUP(C156,'Anexo_GL '!$B$9:$N$1882,5,FALSE) -> 1566.487642 | I156: =VLOOKUP(C156,'Anexo_GL '!$B$9:$N$1882,6,FALSE) -> 1646.84231 | L156: =VLOOKUP(C156,'Anexo_GL '!$B$9:$N$1882,7,FALSE) -> 13.2643568 | N156: =VLOOKUP(C156,'Anexo_GL '!$B$9:$N$1882,8,FALSE) -> Cumple | P156: =VLOOKUP(C156,'Anexo_GL '!$B$9:$N$1882,10,FALSE) -> 1976.00303 | Q156: =VLOOKUP(C156,'Anexo_GL '!$B$9:$N$1882,11,FALSE) -> 1346.98898 | R156: =VLOOKUP(C156,'Anexo_GL '!$B$9:$N$1882,12,FALSE) -> 629.01405 | S156: =VLOOKUP(C156,'Anexo_GL '!$B$9:$N$1882,13,FALSE) -> Cumple
A157: 020606 : MD DE MARCARA | B157: 130 | C157: 020606 | D157: ANCASH | E157: MD DE MARCARA | F157: =VLOOKUP(C157,'Anexo_GL '!$B$9:$N$1882,4,FALSE) -> 1010.91275 | H157: =VLOOKUP(C157,'Anexo_GL '!$B$9:$N$1882,5,FALSE) -> 8161.251157 | I157: =VLOOKUP(C157,'Anexo_GL '!$B$9:$N$1882,6,FALSE) -> 12609.3703 | L157: =VLOOKUP(C157,'Anexo_GL '!$B$9:$N$1882,7,FALSE) -> 8.017154909 | N157: =VLOOKUP(C157,'Anexo_GL '!$B$9:$N$1882,8,FALSE) -> Cumple | P157: =VLOOKUP(C157,'Anexo_GL '!$B$9:$N$1882,10,FALSE) -> 8493.8585 | Q157: =VLOOKUP(C157,'Anexo_GL '!$B$9:$N$1882,11,FALSE) -> 3720.64411 | R157: =VLOOKUP(C157,'Anexo_GL '!$B$9:$N$1882,12,FALSE) -> 4773.21439 | S157: =VLOOKUP(C157,'Anexo_GL '!$B$9:$N$1882,13,FALSE) -> Cumple
A158: 020607 : MD DE PARIAHUANCA | B158: 131 | C158: 020607 | D158: ANCASH | E158: MD DE PARIAHUANCA | F158: =VLOOKUP(C158,'Anexo_GL '!$B$9:$N$1882,4,FALSE) -> 78.53764 | H158: =VLOOKUP(C158,'Anexo_GL '!$B$9:$N$1882,5,FALSE) -> 1799.4119 | I158: =VLOOKUP(C158,'Anexo_GL '!$B$9:$N$1882,6,FALSE) -> 1958.37811 | L158: =VLOOKUP(C158,'Anexo_GL '!$B$9:$N$1882,7,FALSE) -> 4.010340986 | N158: =VLOOKUP(C158,'Anexo_GL '!$B$9:$N$1882,8,FALSE) -> Cumple | P158: =VLOOKUP(C158,'Anexo_GL '!$B$9:$N$1882,10,FALSE) -> 1684.09781 | Q158: =VLOOKUP(C158,'Anexo_GL '!$B$9:$N$1882,11,FALSE) -> 967.03282 | R158: =VLOOKUP(C158,'Anexo_GL '!$B$9:$N$1882,12,FALSE) -> 717.06499 | S158: =VLOOKUP(C158,'Anexo_GL '!$B$9:$N$1882,13,FALSE) -> Cumple
A159: 020608 : MD DE SAN MIGUEL DE ACO | B159: 132 | C159: 020608 | D159: ANCASH | E159: MD DE SAN MIGUEL DE ACO | F159: =VLOOKUP(C159,'Anexo_GL '!$B$9:$N$1882,4,FALSE) -> 193.92843 | H159: =VLOOKUP(C159,'Anexo_GL '!$B$9:$N$1882,5,FALSE) -> 2315.994878 | I159: =VLOOKUP(C159,'Anexo_GL '!$B$9:$N$1882,6,FALSE) -> 2654.07818 | L159: =VLOOKUP(C159,'Anexo_GL '!$B$9:$N$1882,7,FALSE) -> 7.306809252 | N159: =VLOOKUP(C159,'Anexo_GL '!$B$9:$N$1882,8,FALSE) -> Cumple | P159: =VLOOKUP(C159,'Anexo_GL '!$B$9:$N$1882,10,FALSE) -> 2470.78224 | Q159: =VLOOKUP(C159,'Anexo_GL '!$B$9:$N$1882,11,FALSE) -> 1809.0737 | R159: =VLOOKUP(C159,'Anexo_GL '!$B$9:$N$1882,12,FALSE) -> 661.70854 | S159: =VLOOKUP(C159,'Anexo_GL '!$B$9:$N$1882,13,FALSE) -> Cumple
A160: 020609 : MD DE SHILLA | B160: 133 | C160: 020609 | D160: ANCASH | E160: MD DE SHILLA | F160: =VLOOKUP(C160,'Anexo_GL '!$B$9:$N$1882,4,FALSE) -> 121.55435 | H160: =VLOOKUP(C160,'Anexo_GL '!$B$9:$N$1882,5,FALSE) -> 2193.347468 | I160: =VLOOKUP(C160,'Anexo_GL '!$B$9:$N$1882,6,FALSE) -> 3245.70277 | L160: =VLOOKUP(C160,'Anexo_GL '!$B$9:$N$1882,7,FALSE) -> 3.745085691 | N160: =VLOOKUP(C160,'Anexo_GL '!$B$9:$N$1882,8,FALSE) -> Cumple | P160: =VLOOKUP(C160,'Anexo_GL '!$B$9:$N$1882,10,FALSE) -> 1724.42855 | Q160: =VLOOKUP(C160,'Anexo_GL '!$B$9:$N$1882,11,FALSE) -> 1217.14942 | R160: =VLOOKUP(C160,'Anexo_GL '!$B$9:$N$1882,12,FALSE) -> 507.27913 | S160: =VLOOKUP(C160,'Anexo_GL '!$B$9:$N$1882,13,FALSE) -> Cumple
A161: 020610 : MD DE TINCO | B161: 134 | C161: 020610 | D161: ANCASH | E161: MD DE TINCO | F161: =VLOOKUP(C161,'Anexo_GL '!$B$9:$N$1882,4,FALSE) -> 63.69683 | H161: =VLOOKUP(C161,'Anexo_GL '!$B$9:$N$1882,5,FALSE) -> 2397.011452 | I161: =VLOOKUP(C161,'Anexo_GL '!$B$9:$N$1882,6,FALSE) -> 3313.07851 | L161: =VLOOKUP(C161,'Anexo_GL '!$B$9:$N$1882,7,FALSE) -> 1.9225874 | N161: =VLOOKUP(C161,'Anexo_GL '!$B$9:$N$1882,8,FALSE) -> Cumple | P161: =VLOOKUP(C161,'Anexo_GL '!$B$9:$N$1882,10,FALSE) -> 3208.25608 | Q161: =VLOOKUP(C161,'Anexo_GL '!$B$9:$N$1882,11,FALSE) -> 1655.76712 | R161: =VLOOKUP(C161,'Anexo_GL '!$B$9:$N$1882,12,FALSE) -> 1552.48896 | S161: =VLOOKUP(C161,'Anexo_GL '!$B$9:$N$1882,13,FALSE) -> Cumple
A162: 020611 : MD DE YUNGAR | B162: 135 | C162: 020611 | D162: ANCASH | E162: MD DE YUNGAR | F162: =VLOOKUP(C162,'Anexo_GL '!$B$9:$N$1882,4,FALSE) -> 334.39103 | H162: =VLOOKUP(C162,'Anexo_GL '!$B$9:$N$1882,5,FALSE) -> 2574.623332 | I162: =VLOOKUP(C162,'Anexo_GL '!$B$9:$N$1882,6,FALSE) -> 3327.6139 | L162: =VLOOKUP(C162,'Anexo_GL '!$B$9:$N$1882,7,FALSE) -> 10.04897323 | N162: =VLOOKUP(C162,'Anexo_GL '!$B$9:$N$1882,8,FALSE) -> Cumple | P162: =VLOOKUP(C162,'Anexo_GL '!$B$9:$N$1882,10,FALSE) -> 2753.53566 | Q162: =VLOOKUP(C162,'Anexo_GL '!$B$9:$N$1882,11,FALSE) -> 1565.37644 | R162: =VLOOKUP(C162,'Anexo_GL '!$B$9:$N$1882,12,FALSE) -> 1188.15922 | S162: =VLOOKUP(C162,'Anexo_GL '!$B$9:$N$1882,13,FALSE) -> Cumple
A163: 020701 : MP DE CARLOS FERMIN FITZCARRALD | B163: 136 | C163: 020701 | D163: ANCASH | E163: MP DE CARLOS FERMIN FITZCARRALD | F163: =VLOOKUP(C163,'Anexo_GL '!$B$9:$N$1882,4,FALSE) -> 5524.29017 | H163: =VLOOKUP(C163,'Anexo_GL '!$B$9:$N$1882,5,FALSE) -> 20020.03261 | I163: =VLOOKUP(C163,'Anexo_GL '!$B$9:$N$1882,6,FALSE) -> 22004.13764 | L163: =VLOOKUP(C163,'Anexo_GL '!$B$9:$N$1882,7,FALSE) -> 25.10568812 | N163: =VLOOKUP(C163,'Anexo_GL '!$B$9:$N$1882,8,FALSE) -> Cumple | P163: =VLOOKUP(C163,'Anexo_GL '!$B$9:$N$1882,10,FALSE) -> 19362.91232 | Q163: =VLOOKUP(C163,'Anexo_GL '!$B$9:$N$1882,11,FALSE) -> 13516.31098 | R163: =VLOOKUP(C163,'Anexo_GL '!$B$9:$N$1882,12,FALSE) -> 5846.60134 | S163: =VLOOKUP(C163,'Anexo_GL '!$B$9:$N$1882,13,FALSE) -> Cumple
A164: 020702 : MD DE SAN NICOLAS | B164: 137 | C164: 020702 | D164: ANCASH | E164: MD DE SAN NICOLAS | F164: =VLOOKUP(C164,'Anexo_GL '!$B$9:$N$1882,4,FALSE) -> 283.0617 | H164: =VLOOKUP(C164,'Anexo_GL '!$B$9:$N$1882,5,FALSE) -> 4302.418842 | I164: =VLOOKUP(C164,'Anexo_GL '!$B$9:$N$1882,6,FALSE) -> 5963.91758 | L164: =VLOOKUP(C164,'Anexo_GL '!$B$9:$N$1882,7,FALSE) -> 4.746237623 | N164: =VLOOKUP(C164,'Anexo_GL '!$B$9:$N$1882,8,FALSE) -> Cumple | P164: =VLOOKUP(C164,'Anexo_GL '!$B$9:$N$1882,10,FALSE) -> 3791.70267 | Q164: =VLOOKUP(C164,'Anexo_GL '!$B$9:$N$1882,11,FALSE) -> 1851.87621 | R164: =VLOOKUP(C164,'Anexo_GL '!$B$9:$N$1882,12,FALSE) -> 1939.82646 | S164: =VLOOKUP(C164,'Anexo_GL '!$B$9:$N$1882,13,FALSE) -> Cumple
A165: 020703 : MD DE YAUYA | B165: 138 | C165: 020703 | D165: ANCASH | E165: MD DE YAUYA | F165: =VLOOKUP(C165,'Anexo_GL '!$B$9:$N$1882,4,FALSE) -> 600.86547 | H165: =VLOOKUP(C165,'Anexo_GL '!$B$9:$N$1882,5,FALSE) -> 7172.37507 | I165: =VLOOKUP(C165,'Anexo_GL '!$B$9:$N$1882,6,FALSE) -> 10321.34484 | L165: =VLOOKUP(C165,'Anexo_GL '!$B$9:$N$1882,7,FALSE) -> 5.821581192 | N165: =VLOOKUP(C165,'Anexo_GL '!$B$9:$N$1882,8,FALSE) -> Cumple | P165: =VLOOKUP(C165,'Anexo_GL '!$B$9:$N$1882,10,FALSE) -> 8360.11165 | Q165: =VLOOKUP(C165,'Anexo_GL '!$B$9:$N$1882,11,FALSE) -> 3782.81006 | R165: =VLOOKUP(C165,'Anexo_GL '!$B$9:$N$1882,12,FALSE) -> 4577.30159 | S165: =VLOOKUP(C165,'Anexo_GL '!$B$9:$N$1882,13,FALSE) -> Cumple
A166: 020801 : MP DE CASMA | B166: 139 | C166: 020801 | D166: ANCASH | E166: MP DE CASMA | F166: =VLOOKUP(C166,'Anexo_GL '!$B$9:$N$1882,4,FALSE) -> 8678.71549 | H166: =VLOOKUP(C166,'Anexo_GL '!$B$9:$N$1882,5,FALSE) -> 31978.44326 | I166: =VLOOKUP(C166,'Anexo_GL '!$B$9:$N$1882,6,FALSE) -> 40130.01408 | L166: =VLOOKUP(C166,'Anexo_GL '!$B$9:$N$1882,7,FALSE) -> 21.626495 | N166: =VLOOKUP(C166,'Anexo_GL '!$B$9:$N$1882,8,FALSE) -> Cumple | P166: =VLOOKUP(C166,'Anexo_GL '!$B$9:$N$1882,10,FALSE) -> 38793.12997 | Q166: =VLOOKUP(C166,'Anexo_GL '!$B$9:$N$1882,11,FALSE) -> 19195.99616 | R166: =VLOOKUP(C166,'Anexo_GL '!$B$9:$N$1882,12,FALSE) -> 19597.13381 | S166: =VLOOKUP(C166,'Anexo_GL '!$B$9:$N$1882,13,FALSE) -> Cumple
A167: 020802 : MD DE BUENA VISTA ALTA | B167: 140 | C167: 020802 | D167: ANCASH | E167: MD DE BUENA VISTA ALTA | F167: =VLOOKUP(C167,'Anexo_GL '!$B$9:$N$1882,4,FALSE) -> 606.83778 | H167: =VLOOKUP(C167,'Anexo_GL '!$B$9:$N$1882,5,FALSE) -> 4853.709397 | I167: =VLOOKUP(C167,'Anexo_GL '!$B$9:$N$1882,6,FALSE) -> 7532.1582 | L167: =VLOOKUP(C167,'Anexo_GL '!$B$9:$N$1882,7,FALSE) -> 8.056625523 | N167: =VLOOKUP(C167,'Anexo_GL '!$B$9:$N$1882,8,FALSE) -> Cumple | P167: =VLOOKUP(C167,'Anexo_GL '!$B$9:$N$1882,10,FALSE) -> 5990.06175 | Q167: =VLOOKUP(C167,'Anexo_GL '!$B$9:$N$1882,11,FALSE) -> 2565.52245 | R167: =VLOOKUP(C167,'Anexo_GL '!$B$9:$N$1882,12,FALSE) -> 3424.5393 | S167: =VLOOKUP(C167,'Anexo_GL '!$B$9:$N$1882,13,FALSE) -> Cumple
A168: 020803 : MD DE COMANDANTE NOEL | B168: 141 | C168: 020803 | D168: ANCASH | E168: MD DE COMANDANTE NOEL | F168: =VLOOKUP(C168,'Anexo_GL '!$B$9:$N$1882,4,FALSE) -> 616.52004 | H168: =VLOOKUP(C168,'Anexo_GL '!$B$9:$N$1882,5,FALSE) -> 2826.211695 | I168: =VLOOKUP(C168,'Anexo_GL '!$B$9:$N$1882,6,FALSE) -> 3536.25366 | L168: =VLOOKUP(C168,'Anexo_GL '!$B$9:$N$1882,7,FALSE) -> 17.43427082 | N168: =VLOOKUP(C168,'Anexo_GL '!$B$9:$N$1882,8,FALSE) -> Cumple | P168: =VLOOKUP(C168,'Anexo_GL '!$B$9:$N$1882,10,FALSE) -> 2626.26716 | Q168: =VLOOKUP(C168,'Anexo_GL '!$B$9:$N$1882,11,FALSE) -> 1584.49394 | R168: =VLOOKUP(C168,'Anexo_GL '!$B$9:$N$1882,12,FALSE) -> 1041.77322 | S168: =VLOOKUP(C168,'Anexo_GL '!$B$9:$N$1882,13,FALSE) -> Cumple
A169: 020804 : MD DE YAUTAN | B169: 142 | C169: 020804 | D169: ANCASH | E169: MD DE YAUTAN | F169: =VLOOKUP(C169,'Anexo_GL '!$B$9:$N$1882,4,FALSE) -> 1148.95638 | H169: =VLOOKUP(C169,'Anexo_GL '!$B$9:$N$1882,5,FALSE) -> 6624.686375 | I169: =VLOOKUP(C169,'Anexo_GL '!$B$9:$N$1882,6,FALSE) -> 9892.71866 | L169: =VLOOKUP(C169,'Anexo_GL '!$B$9:$N$1882,7,FALSE) -> 11.61416209 | N169: =VLOOKUP(C169,'Anexo_GL '!$B$9:$N$1882,8,FALSE) -> Cumple | P169: =VLOOKUP(C169,'Anexo_GL '!$B$9:$N$1882,10,FALSE) -> 7897.04733 | Q169: =VLOOKUP(C169,'Anexo_GL '!$B$9:$N$1882,11,FALSE) -> 3531.6306 | R169: =VLOOKUP(C169,'Anexo_GL '!$B$9:$N$1882,12,FALSE) -> 4365.41673 | S169: =VLOOKUP(C169,'Anexo_GL '!$B$9:$N$1882,13,FALSE) -> Cumple
A170: 020901 : MP DE CORONGO | B170: 143 | C170: 020901 | D170: ANCASH | E170: MP DE CORONGO | F170: =VLOOKUP(C170,'Anexo_GL '!$B$9:$N$1882,4,FALSE) -> 420.19809 | H170: =VLOOKUP(C170,'Anexo_GL '!$B$9:$N$1882,5,FALSE) -> 7724.210115 | I170: =VLOOKUP(C170,'Anexo_GL '!$B$9:$N$1882,6,FALSE) -> 1562.15332 | L170: =VLOOKUP(C170,'Anexo_GL '!$B$9:$N$1882,7,FALSE) -> 5.44001372 | N170: =VLOOKUP(C170,'Anexo_GL '!$B$9:$N$1882,8,FALSE) -> Cumple | P170: =VLOOKUP(C170,'Anexo_GL '!$B$9:$N$1882,10,FALSE) -> 10657.69155 | Q170: =VLOOKUP(C170,'Anexo_GL '!$B$9:$N$1882,11,FALSE) -> 6287.29334 | R170: =VLOOKUP(C170,'Anexo_GL '!$B$9:$N$1882,12,FALSE) -> 4370.39821 | S170: =VLOOKUP(C170,'Anexo_GL '!$B$9:$N$1882,13,FALSE) -> Cumple
A171: 020902 : MD DE ACO | B171: 144 | C171: 020902 | D171: ANCASH | E171: MD DE ACO | F171: =VLOOKUP(C171,'Anexo_GL '!$B$9:$N$1882,4,FALSE) -> 349.62534 | H171: =VLOOKUP(C171,'Anexo_GL '!$B$9:$N$1882,5,FALSE) -> 913.8488675 | I171: =VLOOKUP(C171,'Anexo_GL '!$B$9:$N$1882,6,FALSE) -> 629.67747 | L171: =VLOOKUP(C171,'Anexo_GL '!$B$9:$N$1882,7,FALSE) -> 38.25855154 | N171: =VLOOKUP(C171,'Anexo_GL '!$B$9:$N$1882,8,FALSE) -> Cumple | P171: =VLOOKUP(C171,'Anexo_GL '!$B$9:$N$1882,10,FALSE) -> 1137.90513 | Q171: =VLOOKUP(C171,'Anexo_GL '!$B$9:$N$1882,11,FALSE) -> 1052.62711 | R171: =VLOOKUP(C171,'Anexo_GL '!$B$9:$N$1882,12,FALSE) -> 85.27802 | S171: =VLOOKUP(C171,'Anexo_GL '!$B$9:$N$1882,13,FALSE) -> Cumple
A172: 020903 : MD DE BAMBAS | B172: 145 | C172: 020903 | D172: ANCASH | E172: MD DE BAMBAS | F172: =VLOOKUP(C172,'Anexo_GL '!$B$9:$N$1882,4,FALSE) -> 53.76876 | H172: =VLOOKUP(C172,'Anexo_GL '!$B$9:$N$1882,5,FALSE) -> 1088.55316 | I172: =VLOOKUP(C172,'Anexo_GL '!$B$9:$N$1882,6,FALSE) -> 954.96471 | L172: =VLOOKUP(C172,'Anexo_GL '!$B$9:$N$1882,7,FALSE) -> 4.939470297 | N172: =VLOOKUP(C172,'Anexo_GL '!$B$9:$N$1882,8,FALSE) -> Cumple | P172: =VLOOKUP(C172,'Anexo_GL '!$B$9:$N$1882,10,FALSE) -> 1171.47222 | Q172: =VLOOKUP(C172,'Anexo_GL '!$B$9:$N$1882,11,FALSE) -> 560.76013 | R172: =VLOOKUP(C172,'Anexo_GL '!$B$9:$N$1882,12,FALSE) -> 610.71209 | S172: =VLOOKUP(C172,'Anexo_GL '!$B$9:$N$1882,13,FALSE) -> Cumple
A173: 020904 : MD DE CUSCA | B173: 146 | C173: 020904 | D173: ANCASH | E173: MD DE CUSCA | F173: =VLOOKUP(C173,'Anexo_GL '!$B$9:$N$1882,4,FALSE) -> 42.46591 | H173: =VLOOKUP(C173,'Anexo_GL '!$B$9:$N$1882,5,FALSE) -> 3223.715757 | I173: =VLOOKUP(C173,'Anexo_GL '!$B$9:$N$1882,6,FALSE) -> 4570.90498 | L173: =VLOOKUP(C173,'Anexo_GL '!$B$9:$N$1882,7,FALSE) -> 0.9290481904 | N173: =VLOOKUP(C173,'Anexo_GL '!$B$9:$N$1882,8,FALSE) -> Cumple | P173: =VLOOKUP(C173,'Anexo_GL '!$B$9:$N$1882,10,FALSE) -> 3844.46154 | Q173: =VLOOKUP(C173,'Anexo_GL '!$B$9:$N$1882,11,FALSE) -> 1071.57059 | R173: =VLOOKUP(C173,'Anexo_GL '!$B$9:$N$1882,12,FALSE) -> 2772.89095 | S173: =VLOOKUP(C173,'Anexo_GL '!$B$9:$N$1882,13,FALSE) -> Cumple
A174: 020905 : MD DE LA PAMPA | B174: 147 | C174: 020905 | D174: ANCASH | E174: MD DE LA PAMPA | F174: =VLOOKUP(C174,'Anexo_GL '!$B$9:$N$1882,4,FALSE) -> 1000.59841 | H174: =VLOOKUP(C174,'Anexo_GL '!$B$9:$N$1882,5,FALSE) -> 1096.49107 | I174: =VLOOKUP(C174,'Anexo_GL '!$B$9:$N$1882,6,FALSE) -> 1183.0426 | L174: =VLOOKUP(C174,'Anexo_GL '!$B$9:$N$1882,7,FALSE) -> 84.57839219 | N174: =VLOOKUP(C174,'Anexo_GL '!$B$9:$N$1882,8,FALSE) -> Cumple | P174: =VLOOKUP(C174,'Anexo_GL '!$B$9:$N$1882,10,FALSE) -> 1239.20693 | Q174: =VLOOKUP(C174,'Anexo_GL '!$B$9:$N$1882,11,FALSE) -> 738.10738 | R174: =VLOOKUP(C174,'Anexo_GL '!$B$9:$N$1882,12,FALSE) -> 501.09955 | S174: =VLOOKUP(C174,'Anexo_GL '!$B$9:$N$1882,13,FALSE) -> Cumple
A175: 020906 : MD DE YANAC | B175: 148 | C175: 020906 | D175: ANCASH | E175: MD DE YANAC | F175: =VLOOKUP(C175,'Anexo_GL '!$B$9:$N$1882,4,FALSE) -> 27.45515 | H175: =VLOOKUP(C175,'Anexo_GL '!$B$9:$N$1882,5,FALSE) -> 1159.929862 | I175: =VLOOKUP(C175,'Anexo_GL '!$B$9:$N$1882,6,FALSE) -> 864.42186 | L175: =VLOOKUP(C175,'Anexo_GL '!$B$9:$N$1882,7,FALSE) -> 2.366966391 | N175: =VLOOKUP(C175,'Anexo_GL '!$B$9:$N$1882,8,FALSE) -> Cumple | P175: =VLOOKUP(C175,'Anexo_GL '!$B$9:$N$1882,10,FALSE) -> 1094.89723 | Q175: =VLOOKUP(C175,'Anexo_GL '!$B$9:$N$1882,11,FALSE) -> 545.75533 | R175: =VLOOKUP(C175,'Anexo_GL '!$B$9:$N$1882,12,FALSE) -> 549.1419 | S175: =VLOOKUP(C175,'Anexo_GL '!$B$9:$N$1882,13,FALSE) -> Cumple
A176: 020907 : MD DE YUPAN | B176: 149 | C176: 020907 | D176: ANCASH | E176: MD DE YUPAN | F176: =VLOOKUP(C176,'Anexo_GL '!$B$9:$N$1882,4,FALSE) -> 70.29937 | H176: =VLOOKUP(C176,'Anexo_GL '!$B$9:$N$1882,5,FALSE) -> 904.5807925 | I176: =VLOOKUP(C176,'Anexo_GL '!$B$9:$N$1882,6,FALSE) -> 701.65941 | L176: =VLOOKUP(C176,'Anexo_GL '!$B$9:$N$1882,7,FALSE) -> 7.771486039 | N176: =VLOOKUP(C176,'Anexo_GL '!$B$9:$N$1882,8,FALSE) -> Cumple | P176: =VLOOKUP(C176,'Anexo_GL '!$B$9:$N$1882,10,FALSE) -> 974.1693 | Q176: =VLOOKUP(C176,'Anexo_GL '!$B$9:$N$1882,11,FALSE) -> 656.2018 | R176: =VLOOKUP(C176,'Anexo_GL '!$B$9:$N$1882,12,FALSE) -> 317.9675 | S176: =VLOOKUP(C176,'Anexo_GL '!$B$9:$N$1882,13,FALSE) -> Cumple
A177: 021001 : MP DE HUARI | B177: 150 | C177: 021001 | D177: ANCASH | E177: MP DE HUARI | F177: =VLOOKUP(C177,'Anexo_GL '!$B$9:$N$1882,4,FALSE) -> 7937.71543 | H177: =VLOOKUP(C177,'Anexo_GL '!$B$9:$N$1882,5,FALSE) -> 51395.58287 | I177: =VLOOKUP(C177,'Anexo_GL '!$B$9:$N$1882,6,FALSE) -> 92668.21628 | L177: =VLOOKUP(C177,'Anexo_GL '!$B$9:$N$1882,7,FALSE) -> 8.56573672 | N177: =VLOOKUP(C177,'Anexo_GL '!$B$9:$N$1882,8,FALSE) -> Cumple | P177: =VLOOKUP(C177,'Anexo_GL '!$B$9:$N$1882,10,FALSE) -> 54666.62404 | Q177: =VLOOKUP(C177,'Anexo_GL '!$B$9:$N$1882,11,FALSE) -> 19966.24242 | R177: =VLOOKUP(C177,'Anexo_GL '!$B$9:$N$1882,12,FALSE) -> 34700.38162 | S177: =VLOOKUP(C177,'Anexo_GL '!$B$9:$N$1882,13,FALSE) -> Cumple
A178: 021002 : MD DE ANRA | B178: 151 | C178: 021002 | D178: ANCASH | E178: MD DE ANRA | F178: =VLOOKUP(C178,'Anexo_GL '!$B$9:$N$1882,4,FALSE) -> 1063.13631 | H178: =VLOOKUP(C178,'Anexo_GL '!$B$9:$N$1882,5,FALSE) -> 9269.736537 | I178: =VLOOKUP(C178,'Anexo_GL '!$B$9:$N$1882,6,FALSE) -> 20096.80723 | L178: =VLOOKUP(C178,'Anexo_GL '!$B$9:$N$1882,7,FALSE) -> 5.290075671 | N178: =VLOOKUP(C178,'Anexo_GL '!$B$9:$N$1882,8,FALSE) -> Cumple | P178: =VLOOKUP(C178,'Anexo_GL '!$B$9:$N$1882,10,FALSE) -> 9621.66186 | Q178: =VLOOKUP(C178,'Anexo_GL '!$B$9:$N$1882,11,FALSE) -> 2542.44948 | R178: =VLOOKUP(C178,'Anexo_GL '!$B$9:$N$1882,12,FALSE) -> 7079.21238 | S178: =VLOOKUP(C178,'Anexo_GL '!$B$9:$N$1882,13,FALSE) -> Cumple
A179: 021003 : MD DE CAJAY | B179: 152 | C179: 021003 | D179: ANCASH | E179: MD DE CAJAY | F179: =VLOOKUP(C179,'Anexo_GL '!$B$9:$N$1882,4,FALSE) -> 898.50658 | H179: =VLOOKUP(C179,'Anexo_GL '!$B$9:$N$1882,5,FALSE) -> 17294.32562 | I179: =VLOOKUP(C179,'Anexo_GL '!$B$9:$N$1882,6,FALSE) -> 41520.85996 | L179: =VLOOKUP(C179,'Anexo_GL '!$B$9:$N$1882,7,FALSE) -> 2.163988368 | N179: =VLOOKUP(C179,'Anexo_GL '!$B$9:$N$1882,8,FALSE) -> Cumple | P179: =VLOOKUP(C179,'Anexo_GL '!$B$9:$N$1882,10,FALSE) -> 19332.66538 | Q179: =VLOOKUP(C179,'Anexo_GL '!$B$9:$N$1882,11,FALSE) -> 3348.71755 | R179: =VLOOKUP(C179,'Anexo_GL '!$B$9:$N$1882,12,FALSE) -> 15983.94783 | S179: =VLOOKUP(C179,'Anexo_GL '!$B$9:$N$1882,13,FALSE) -> Cumple
A180: 021004 : MD DE CHAVIN DE HUANTAR | B180: 153 | C180: 021004 | D180: ANCASH | E180: MD DE CHAVIN DE HUANTAR | F180: =VLOOKUP(C180,'Anexo_GL '!$B$9:$N$1882,4,FALSE) -> 21669.96814 | H180: =VLOOKUP(C180,'Anexo_GL '!$B$9:$N$1882,5,FALSE) -> 57429.6898 | I180: =VLOOKUP(C180,'Anexo_GL '!$B$9:$N$1882,6,FALSE) -> 129190.5075 | L180: =VLOOKUP(C180,'Anexo_GL '!$B$9:$N$1882,7,FALSE) -> 16.77365355 | N180: =VLOOKUP(C180,'Anexo_GL '!$B$9:$N$1882,8,FALSE) -> Cumple | P180: =VLOOKUP(C180,'Anexo_GL '!$B$9:$N$1882,10,FALSE) -> 68284.74392 | Q180: =VLOOKUP(C180,'Anexo_GL '!$B$9:$N$1882,11,FALSE) -> 10785.23491 | R180: =VLOOKUP(C180,'Anexo_GL '!$B$9:$N$1882,12,FALSE) -> 57499.50901 | S180: =VLOOKUP(C180,'Anexo_GL '!$B$9:$N$1882,13,FALSE) -> Cumple
A181: 021005 : MD DE HUACACHI | B181: 154 | C181: 021005 | D181: ANCASH | E181: MD DE HUACACHI | F181: =VLOOKUP(C181,'Anexo_GL '!$B$9:$N$1882,4,FALSE) -> 882.58679 | H181: =VLOOKUP(C181,'Anexo_GL '!$B$9:$N$1882,5,FALSE) -> 13868.17438 | I181: =VLOOKUP(C181,'Anexo_GL '!$B$9:$N$1882,6,FALSE) -> 29441.59981 | L181: =VLOOKUP(C181,'Anexo_GL '!$B$9:$N$1882,7,FALSE) -> 2.997754184 | N181: =VLOOKUP(C181,'Anexo_GL '!$B$9:$N$1882,8,FALSE) -> Cumple | P181: =VLOOKUP(C181,'Anexo_GL '!$B$9:$N$1882,10,FALSE) -> 18519.82705 | Q181: =VLOOKUP(C181,'Anexo_GL '!$B$9:$N$1882,11,FALSE) -> 2665.06377 | R181: =VLOOKUP(C181,'Anexo_GL '!$B$9:$N$1882,12,FALSE) -> 15854.76328 | S181: =VLOOKUP(C181,'Anexo_GL '!$B$9:$N$1882,13,FALSE) -> Cumple
A182: 021006 : MD DE HUACCHIS | B182: 155 | C182: 021006 | D182: ANCASH | E182: MD DE HUACCHIS | F182: =VLOOKUP(C182,'Anexo_GL '!$B$9:$N$1882,4,FALSE) -> 534.75495 | H182: =VLOOKUP(C182,'Anexo_GL '!$B$9:$N$1882,5,FALSE) -> 9083.508045 | I182: =VLOOKUP(C182,'Anexo_GL '!$B$9:$N$1882,6,FALSE) -> 18599.24649 | L182: =VLOOKUP(C182,'Anexo_GL '!$B$9:$N$1882,7,FALSE) -> 2.875143089 | N182: =VLOOKUP(C182,'Anexo_GL '!$B$9:$N$1882,8,FALSE) -> Cumple | P182: =VLOOKUP(C182,'Anexo_GL '!$B$9:$N$1882,10,FALSE) -> 6311.8065 | Q182: =VLOOKUP(C182,'Anexo_GL '!$B$9:$N$1882,11,FALSE) -> 1504.59735 | R182: =VLOOKUP(C182,'Anexo_GL '!$B$9:$N$1882,12,FALSE) -> 4807.20915 | S182: =VLOOKUP(C182,'Anexo_GL '!$B$9:$N$1882,13,FALSE) -> Cumple
A183: 021007 : MD DE HUACHIS | B183: 156 | C183: 021007 | D183: ANCASH | E183: MD DE HUACHIS | F183: =VLOOKUP(C183,'Anexo_GL '!$B$9:$N$1882,4,FALSE) -> 2387.73409 | H183: =VLOOKUP(C183,'Anexo_GL '!$B$9:$N$1882,5,FALSE) -> 22943.55506 | I183: =VLOOKUP(C183,'Anexo_GL '!$B$9:$N$1882,6,FALSE) -> 49327.75111 | L183: =VLOOKUP(C183,'Anexo_GL '!$B$9:$N$1882,7,FALSE) -> 4.840549257 | N183: =VLOOKUP(C183,'Anexo_GL '!$B$9:$N$1882,8,FALSE) -> Cumple | P183: =VLOOKUP(C183,'Anexo_GL '!$B$9:$N$1882,10,FALSE) -> 23366.13244 | Q183: =VLOOKUP(C183,'Anexo_GL '!$B$9:$N$1882,11,FALSE) -> 4593.65314 | R183: =VLOOKUP(C183,'Anexo_GL '!$B$9:$N$1882,12,FALSE) -> 18772.4793 | S183: =VLOOKUP(C183,'Anexo_GL '!$B$9:$N$1882,13,FALSE) -> Cumple
A184: 021008 : MD DE HUANTAR | B184: 157 | C184: 021008 | D184: ANCASH | E184: MD DE HUANTAR | F184: =VLOOKUP(C184,'Anexo_GL '!$B$9:$N$1882,4,FALSE) -> 916.00829 | H184: =VLOOKUP(C184,'Anexo_GL '!$B$9:$N$1882,5,FALSE) -> 15892.38023 | I184: =VLOOKUP(C184,'Anexo_GL '!$B$9:$N$1882,6,FALSE) -> 32716.03326 | L184: =VLOOKUP(C184,'Anexo_GL '!$B$9:$N$1882,7,FALSE) -> 2.799875776 | N184: =VLOOKUP(C184,'Anexo_GL '!$B$9:$N$1882,8,FALSE) -> Cumple | P184: =VLOOKUP(C184,'Anexo_GL '!$B$9:$N$1882,10,FALSE) -> 17414.88707 | Q184: =VLOOKUP(C184,'Anexo_GL '!$B$9:$N$1882,11,FALSE) -> 3382.80305 | R184: =VLOOKUP(C184,'Anexo_GL '!$B$9:$N$1882,12,FALSE) -> 14032.08402 | S184: =VLOOKUP(C184,'Anexo_GL '!$B$9:$N$1882,13,FALSE) -> Cumple
A185: 021009 : MD DE MASIN | B185: 158 | C185: 021009 | D185: ANCASH | E185: MD DE MASIN | F185: =VLOOKUP(C185,'Anexo_GL '!$B$9:$N$1882,4,FALSE) -> 729.92894 | H185: =VLOOKUP(C185,'Anexo_GL '!$B$9:$N$1882,5,FALSE) -> 8765.898815 | I185: =VLOOKUP(C185,'Anexo_GL '!$B$9:$N$1882,6,FALSE) -> 18156.7643 | L185: =VLOOKUP(C185,'Anexo_GL '!$B$9:$N$1882,7,FALSE) -> 4.020148788 | N185: =VLOOKUP(C185,'Anexo_GL '!$B$9:$N$1882,8,FALSE) -> Cumple | P185: =VLOOKUP(C185,'Anexo_GL '!$B$9:$N$1882,10,FALSE) -> 6702.93871 | Q185: =VLOOKUP(C185,'Anexo_GL '!$B$9:$N$1882,11,FALSE) -> 2310.42256 | R185: =VLOOKUP(C185,'Anexo_GL '!$B$9:$N$1882,12,FALSE) -> 4392.51615 | S185: =VLOOKUP(C185,'Anexo_GL '!$B$9:$N$1882,13,FALSE) -> Cumple
A186: 021010 : MD DE PAUCAS | B186: 159 | C186: 021010 | D186: ANCASH | E186: MD DE PAUCAS | F186: =VLOOKUP(C186,'Anexo_GL '!$B$9:$N$1882,4,FALSE) -> 631.34564 | H186: =VLOOKUP(C186,'Anexo_GL '!$B$9:$N$1882,5,FALSE) -> 10571.50829 | I186: =VLOOKUP(C186,'Anexo_GL '!$B$9:$N$1882,6,FALSE) -> 20804.24654 | L186: =VLOOKUP(C186,'Anexo_GL '!$B$9:$N$1882,7,FALSE) -> 3.034696012 | N186: =VLOOKUP(C186,'Anexo_GL '!$B$9:$N$1882,8,FALSE) -> Cumple | P186: =VLOOKUP(C186,'Anexo_GL '!$B$9:$N$1882,10,FALSE) -> 9551.08003 | Q186: =VLOOKUP(C186,'Anexo_GL '!$B$9:$N$1882,11,FALSE) -> 887.88947 | R186: =VLOOKUP(C186,'Anexo_GL '!$B$9:$N$1882,12,FALSE) -> 8663.19056 | S186: =VLOOKUP(C186,'Anexo_GL '!$B$9:$N$1882,13,FALSE) -> Cumple
A187: 021011 : MD DE PONTO | B187: 160 | C187: 021011 | D187: ANCASH | E187: MD DE PONTO | F187: =VLOOKUP(C187,'Anexo_GL '!$B$9:$N$1882,4,FALSE) -> 1676.08886 | H187: =VLOOKUP(C187,'Anexo_GL '!$B$9:$N$1882,5,FALSE) -> 21471.37863 | I187: =VLOOKUP(C187,'Anexo_GL '!$B$9:$N$1882,6,FALSE) -> 50415.43438 | L187: =VLOOKUP(C187,'Anexo_GL '!$B$9:$N$1882,7,FALSE) -> 3.324555031 | N187: =VLOOKUP(C187,'Anexo_GL '!$B$9:$N$1882,8,FALSE) -> Cumple | P187: =VLOOKUP(C187,'Anexo_GL '!$B$9:$N$1882,10,FALSE) -> 20813.93281 | Q187: =VLOOKUP(C187,'Anexo_GL '!$B$9:$N$1882,11,FALSE) -> 6461.7197 | R187: =VLOOKUP(C187,'Anexo_GL '!$B$9:$N$1882,12,FALSE) -> 14352.21311 | S187: =VLOOKUP(C187,'Anexo_GL '!$B$9:$N$1882,13,FALSE) -> Cumple
A188: 021012 : MD DE RAHUAPAMPA | B188: 161 | C188: 021012 | D188: ANCASH | E188: MD DE RAHUAPAMPA | F188: =VLOOKUP(C188,'Anexo_GL '!$B$9:$N$1882,4,FALSE) -> 690.70515 | H188: =VLOOKUP(C188,'Anexo_GL '!$B$9:$N$1882,5,FALSE) -> 4122.067985 | I188: =VLOOKUP(C188,'Anexo_GL '!$B$9:$N$1882,6,FALSE) -> 7948.83988 | L188: =VLOOKUP(C188,'Anexo_GL '!$B$9:$N$1882,7,FALSE) -> 8.68938311 | N188: =VLOOKUP(C188,'Anexo_GL '!$B$9:$N$1882,8,FALSE) -> Cumple | P188: =VLOOKUP(C188,'Anexo_GL '!$B$9:$N$1882,10,FALSE) -> 4846.74391 | Q188: =VLOOKUP(C188,'Anexo_GL '!$B$9:$N$1882,11,FALSE) -> 1076.91978 | R188: =VLOOKUP(C188,'Anexo_GL '!$B$9:$N$1882,12,FALSE) -> 3769.82413 | S188: =VLOOKUP(C188,'Anexo_GL '!$B$9:$N$1882,13,FALSE) -> Cumple
A189: 021013 : MD DE RAPAYAN | B189: 162 | C189: 021013 | D189: ANCASH | E189: MD DE RAPAYAN | F189: =VLOOKUP(C189,'Anexo_GL '!$B$9:$N$1882,4,FALSE) -> 300.73357 | H189: =VLOOKUP(C189,'Anexo_GL '!$B$9:$N$1882,5,FALSE) -> 9795.750835 | I189: =VLOOKUP(C189,'Anexo_GL '!$B$9:$N$1882,6,FALSE) -> 21502.49518 | L189: =VLOOKUP(C189,'Anexo_GL '!$B$9:$N$1882,7,FALSE) -> 1.398598477 | N189: =VLOOKUP(C189,'Anexo_GL '!$B$9:$N$1882,8,FALSE) -> Cumple | P189: =VLOOKUP(C189,'Anexo_GL '!$B$9:$N$1882,10,FALSE) -> 7556.6918 | Q189: =VLOOKUP(C189,'Anexo_GL '!$B$9:$N$1882,11,FALSE) -> 1662.37299 | R189: =VLOOKUP(C189,'Anexo_GL '!$B$9:$N$1882,12,FALSE) -> 5894.31881 | S189: =VLOOKUP(C189,'Anexo_GL '!$B$9:$N$1882,13,FALSE) -> Cumple
A190: 021014 : MD DE SAN MARCOS | B190: 163 | C190: 021014 | D190: ANCASH | E190: MD DE SAN MARCOS | F190: =VLOOKUP(C190,'Anexo_GL '!$B$9:$N$1882,4,FALSE) -> 30678.4173 | H190: =VLOOKUP(C190,'Anexo_GL '!$B$9:$N$1882,5,FALSE) -> 250296.8605 | I190: =VLOOKUP(C190,'Anexo_GL '!$B$9:$N$1882,6,FALSE) -> 567360.5455 | L190: =VLOOKUP(C190,'Anexo_GL '!$B$9:$N$1882,7,FALSE) -> 5.407217253 | N190: =VLOOKUP(C190,'Anexo_GL '!$B$9:$N$1882,8,FALSE) -> Cumple | P190: =VLOOKUP(C190,'Anexo_GL '!$B$9:$N$1882,10,FALSE) -> 327524.3845 | Q190: =VLOOKUP(C190,'Anexo_GL '!$B$9:$N$1882,11,FALSE) -> 107290.7151 | R190: =VLOOKUP(C190,'Anexo_GL '!$B$9:$N$1882,12,FALSE) -> 220233.6694 | S190: =VLOOKUP(C190,'Anexo_GL '!$B$9:$N$1882,13,FALSE) -> Cumple
A191: 021015 : MD DE SAN PEDRO DE CHANA | B191: 164 | C191: 021015 | D191: ANCASH | E191: MD DE SAN PEDRO DE CHANA | F191: =VLOOKUP(C191,'Anexo_GL '!$B$9:$N$1882,4,FALSE) -> 1024.61449 | H191: =VLOOKUP(C191,'Anexo_GL '!$B$9:$N$1882,5,FALSE) -> 16108.55402 | I191: =VLOOKUP(C191,'Anexo_GL '!$B$9:$N$1882,6,FALSE) -> 33170.26515 | L191: =VLOOKUP(C191,'Anexo_GL '!$B$9:$N$1882,7,FALSE) -> 3.088954777 | N191: =VLOOKUP(C191,'Anexo_GL '!$B$9:$N$1882,8,FALSE) -> Cumple | P191: =VLOOKUP(C191,'Anexo_GL '!$B$9:$N$1882,10,FALSE) -> 14166.30488 | Q191: =VLOOKUP(C191,'Anexo_GL '!$B$9:$N$1882,11,FALSE) -> 3121.41419 | R191: =VLOOKUP(C191,'Anexo_GL '!$B$9:$N$1882,12,FALSE) -> 11044.89069 | S191: =VLOOKUP(C191,'Anexo_GL '!$B$9:$N$1882,13,FALSE) -> Cumple
A192: 021016 : MD DE UCO | B192: 165 | C192: 021016 | D192: ANCASH | E192: MD DE UCO | F192: =VLOOKUP(C192,'Anexo_GL '!$B$9:$N$1882,4,FALSE) -> 387.699 | H192: =VLOOKUP(C192,'Anexo_GL '!$B$9:$N$1882,5,FALSE) -> 8259.847895 | I192: =VLOOKUP(C192,'Anexo_GL '!$B$9:$N$1882,6,FALSE) -> 17048.87273 | L192: =VLOOKUP(C192,'Anexo_GL '!$B$9:$N$1882,7,FALSE) -> 2.274044778 | N192: =VLOOKUP(C192,'Anexo_GL '!$B$9:$N$1882,8,FALSE) -> Cumple | P192: =VLOOKUP(C192,'Anexo_GL '!$B$9:$N$1882,10,FALSE) -> 6007.98589 | Q192: =VLOOKUP(C192,'Anexo_GL '!$B$9:$N$1882,11,FALSE) -> 1106.89386 | R192: =VLOOKUP(C192,'Anexo_GL '!$B$9:$N$1882,12,FALSE) -> 4901.09203 | S192: =VLOOKUP(C192,'Anexo_GL '!$B$9:$N$1882,13,FALSE) -> Cumple
A193: 021101 : MP DE HUARMEY | B193: 166 | C193: 021101 | D193: ANCASH | E193: MP DE HUARMEY | F193: =VLOOKUP(C193,'Anexo_GL '!$B$9:$N$1882,4,FALSE) -> 11441.51657 | H193: =VLOOKUP(C193,'Anexo_GL '!$B$9:$N$1882,5,FALSE) -> 30770.28692 | I193: =VLOOKUP(C193,'Anexo_GL '!$B$9:$N$1882,6,FALSE) -> 30651.00015 | L193: =VLOOKUP(C193,'Anexo_GL '!$B$9:$N$1882,7,FALSE) -> 37.18365252 | N193: =VLOOKUP(C193,'Anexo_GL '!$B$9:$N$1882,8,FALSE) -> Cumple | P193: =VLOOKUP(C193,'Anexo_GL '!$B$9:$N$1882,10,FALSE) -> 36651.32361 | Q193: =VLOOKUP(C193,'Anexo_GL '!$B$9:$N$1882,11,FALSE) -> 17330.44008 | R193: =VLOOKUP(C193,'Anexo_GL '!$B$9:$N$1882,12,FALSE) -> 19320.88353 | S193: =VLOOKUP(C193,'Anexo_GL '!$B$9:$N$1882,13,FALSE) -> Cumple
A194: 021102 : MD DE COCHAPETI | B194: 167 | C194: 021102 | D194: ANCASH | E194: MD DE COCHAPETI | F194: =VLOOKUP(C194,'Anexo_GL '!$B$9:$N$1882,4,FALSE) -> 666.43538 | H194: =VLOOKUP(C194,'Anexo_GL '!$B$9:$N$1882,5,FALSE) -> 1401.793183 | I194: =VLOOKUP(C194,'Anexo_GL '!$B$9:$N$1882,6,FALSE) -> 1650.03851 | L194: =VLOOKUP(C194,'Anexo_GL '!$B$9:$N$1882,7,FALSE) -> 40.38908037 | N194: =VLOOKUP(C194,'Anexo_GL '!$B$9:$N$1882,8,FALSE) -> Cumple | P194: =VLOOKUP(C194,'Anexo_GL '!$B$9:$N$1882,10,FALSE) -> 1839.09612 | Q194: =VLOOKUP(C194,'Anexo_GL '!$B$9:$N$1882,11,FALSE) -> 944.7638 | R194: =VLOOKUP(C194,'Anexo_GL '!$B$9:$N$1882,12,FALSE) -> 894.33232 | S194: =VLOOKUP(C194,'Anexo_GL '!$B$9:$N$1882,13,FALSE) -> Cumple
A195: 021103 : MD DE CULEBRAS | B195: 168 | C195: 021103 | D195: ANCASH | E195: MD DE CULEBRAS | F195: =VLOOKUP(C195,'Anexo_GL '!$B$9:$N$1882,4,FALSE) -> 2680.83838 | H195: =VLOOKUP(C195,'Anexo_GL '!$B$9:$N$1882,5,FALSE) -> 3502.89361 | I195: =VLOOKUP(C195,'Anexo_GL '!$B$9:$N$1882,6,FALSE) -> 5056.76686 | L195: =VLOOKUP(C195,'Anexo_GL '!$B$9:$N$1882,7,FALSE) -> 53.01487006 | N195: =VLOOKUP(C195,'Anexo_GL '!$B$9:$N$1882,8,FALSE) -> Cumple | P195: =VLOOKUP(C195,'Anexo_GL '!$B$9:$N$1882,10,FALSE) -> 3322.36932 | Q195: =VLOOKUP(C195,'Anexo_GL '!$B$9:$N$1882,11,FALSE) -> 1568.43421 | R195: =VLOOKUP(C195,'Anexo_GL '!$B$9:$N$1882,12,FALSE) -> 1753.93511 | S195: =VLOOKUP(C195,'Anexo_GL '!$B$9:$N$1882,13,FALSE) -> Cumple
A196: 021104 : MD DE HUAYAN | B196: 169 | C196: 021104 | D196: ANCASH | E196: MD DE HUAYAN | F196: =VLOOKUP(C196,'Anexo_GL '!$B$9:$N$1882,4,FALSE) -> 300.08653 | H196: =VLOOKUP(C196,'Anexo_GL '!$B$9:$N$1882,5,FALSE) -> 1221.929877 | I196: =VLOOKUP(C196,'Anexo_GL '!$B$9:$N$1882,6,FALSE) -> 1278.16677 | L196: =VLOOKUP(C196,'Anexo_GL '!$B$9:$N$1882,7,FALSE) -> 23.47788544 | N196: =VLOOKUP(C196,'Anexo_GL '!$B$9:$N$1882,8,FALSE) -> Cumple | P196: =VLOOKUP(C196,'Anexo_GL '!$B$9:$N$1882,10,FALSE) -> 1140.10794 | Q196: =VLOOKUP(C196,'Anexo_GL '!$B$9:$N$1882,11,FALSE) -> 597.76965 | R196: =VLOOKUP(C196,'Anexo_GL '!$B$9:$N$1882,12,FALSE) -> 542.33829 | S196: =VLOOKUP(C196,'Anexo_GL '!$B$9:$N$1882,13,FALSE) -> Cumple
A197: 021105 : MD DE MALVAS | B197: 170 | C197: 021105 | D197: ANCASH | E197: MD DE MALVAS | F197: =VLOOKUP(C197,'Anexo_GL '!$B$9:$N$1882,4,FALSE) -> 91.63362 | H197: =VLOOKUP(C197,'Anexo_GL '!$B$9:$N$1882,5,FALSE) -> 1326.46587 | I197: =VLOOKUP(C197,'Anexo_GL '!$B$9:$N$1882,6,FALSE) -> 1298.91619 | L197: =VLOOKUP(C197,'Anexo_GL '!$B$9:$N$1882,7,FALSE) -> 6.908102355 | N197: =VLOOKUP(C197,'Anexo_GL '!$B$9:$N$1882,8,FALSE) -> Cumple | P197: =VLOOKUP(C197,'Anexo_GL '!$B$9:$N$1882,10,FALSE) -> 1305.16963 | Q197: =VLOOKUP(C197,'Anexo_GL '!$B$9:$N$1882,11,FALSE) -> 683.50084 | R197: =VLOOKUP(C197,'Anexo_GL '!$B$9:$N$1882,12,FALSE) -> 621.66879 | S197: =VLOOKUP(C197,'Anexo_GL '!$B$9:$N$1882,13,FALSE) -> Cumple
A198: 021201 : MP DE HUAYLAS - CARAZ | B198: 171 | C198: 021201 | D198: ANCASH | E198: MP DE HUAYLAS - CARAZ | F198: =VLOOKUP(C198,'Anexo_GL '!$B$9:$N$1882,4,FALSE) -> 4361.22037 | H198: =VLOOKUP(C198,'Anexo_GL '!$B$9:$N$1882,5,FALSE) -> 27635.34287 | I198: =VLOOKUP(C198,'Anexo_GL '!$B$9:$N$1882,6,FALSE) -> 23980.38572 | L198: =VLOOKUP(C198,'Anexo_GL '!$B$9:$N$1882,7,FALSE) -> 15.7813145 | N198: =VLOOKUP(C198,'Anexo_GL '!$B$9:$N$1882,8,FALSE) -> Cumple | P198: =VLOOKUP(C198,'Anexo_GL '!$B$9:$N$1882,10,FALSE) -> 34718.48084 | Q198: =VLOOKUP(C198,'Anexo_GL '!$B$9:$N$1882,11,FALSE) -> 13370.45611 | R198: =VLOOKUP(C198,'Anexo_GL '!$B$9:$N$1882,12,FALSE) -> 21348.02473 | S198: =VLOOKUP(C198,'Anexo_GL '!$B$9:$N$1882,13,FALSE) -> Cumple
A199: 021202 : MD DE HUALLANCA | B199: 172 | C199: 021202 | D199: ANCASH | E199: MD DE HUALLANCA | F199: =VLOOKUP(C199,'Anexo_GL '!$B$9:$N$1882,4,FALSE) -> 181.99956 | H199: =VLOOKUP(C199,'Anexo_GL '!$B$9:$N$1882,5,FALSE) -> 3403.592595 | I199: =VLOOKUP(C199,'Anexo_GL '!$B$9:$N$1882,6,FALSE) -> 1231.62181 | L199: =VLOOKUP(C199,'Anexo_GL '!$B$9:$N$1882,7,FALSE) -> 5.347278058 | N199: =VLOOKUP(C199,'Anexo_GL '!$B$9:$N$1882,8,FALSE) -> Cumple | P199: =VLOOKUP(C199,'Anexo_GL '!$B$9:$N$1882,10,FALSE) -> 3350.51372 | Q199: =VLOOKUP(C199,'Anexo_GL '!$B$9:$N$1882,11,FALSE) -> 1544.22809 | R199: =VLOOKUP(C199,'Anexo_GL '!$B$9:$N$1882,12,FALSE) -> 1806.28563 | S199: =VLOOKUP(C199,'Anexo_GL '!$B$9:$N$1882,13,FALSE) -> Cumple
A200: 021203 : MD DE HUATA | B200: 173 | C200: 021203 | D200: ANCASH | E200: MD DE HUATA | F200: =VLOOKUP(C200,'Anexo_GL '!$B$9:$N$1882,4,FALSE) -> 274.57953 | H200: =VLOOKUP(C200,'Anexo_GL '!$B$9:$N$1882,5,FALSE) -> 1702.651725 | I200: =VLOOKUP(C200,'Anexo_GL '!$B$9:$N$1882,6,FALSE) -> 2036.31283 | L200: =VLOOKUP(C200,'Anexo_GL '!$B$9:$N$1882,7,FALSE) -> 13.48415263 | N200: =VLOOKUP(C200,'Anexo_GL '!$B$9:$N$1882,8,FALSE) -> Cumple | P200: =VLOOKUP(C200,'Anexo_GL '!$B$9:$N$1882,10,FALSE) -> 2028.10689 | Q200: =VLOOKUP(C200,'Anexo_GL '!$B$9:$N$1882,11,FALSE) -> 1549.19978 | R200: =VLOOKUP(C200,'Anexo_GL '!$B$9:$N$1882,12,FALSE) -> 478.90711 | S200: =VLOOKUP(C200,'Anexo_GL '!$B$9:$N$1882,13,FALSE) -> Cumple
... 1701 more rows

Sheet Anexo_GL
A1: Anexo N° 5: Seguimiento al Cumplimiento de las Reglas Fiscales Subnacionales 4T2021
A3: Gobiernos Locales
A5: N° | B5: Ubigeo | C5: Departamento | D5: Municipalidad5/ | E5: R1: Regla Fiscal de Saldo de Deuda Total | K5: R2: Regla Fiscal de Ahorro en Cuenta Corriente
E6: 4T2021 | K6: 4T2021
E7: S/ Miles | H7: SDT/ICT Prom ó SDT/ Lím Ley N° 29230 ó SDT/ ICT 4/ % | I7: Cumple R1 | K7: S/ Miles | N7: Cumple R2
E8: Saldo de Deuda Total 1/ | F8: ICT Prom2/ | G8: Límite Ley N° 29230 3/ | K8: Ingreso Corriente Total | L8: Gasto Corriente Total | M8: Ahorro en Cuenta Corriente
A9: 1 | B9: 010101 | C9: AMAZONAS | D9: MUNICIPALIDAD PROVINCIAL DE CHACHAPOYAS | E9: 12832.29379 | F9: 24321.60982 | G9: 0.94496 | H9: 52.7608735 | I9: Cumple | K9: 26439.72627 | L9: 23099.47814 | M9: 3340.24813 | N9: Cumple
A10: 2 | B10: 010102 | C10: AMAZONAS | D10: MUNICIPALIDAD DISTRITAL DE ASUNCION | E10: 40.04744 | F10: 706.4662675 | G10: 0.00095 | H10: 5.668698117 | I10: Cumple | K10: 960.5969 | L10: 679.26441 | M10: 281.33249 | N10: Cumple
A11: 3 | B11: 010103 | C11: AMAZONAS | D11: MUNICIPALIDAD DISTRITAL DE BALSAS | E11: 49.28207 | F11: 719.98516 | G11: 0.0028 | H11: 6.844873025 | I11: Cumple | K11: 710.14247 | L11: 716.55132 | M11: -6.40885 | N11: No Cumple
A12: 4 | B12: 010104 | C12: AMAZONAS | D12: MUNICIPALIDAD DISTRITAL DE CHETO | E12: 109.46808 | F12: 757.0123225 | G12: 0.0011 | H12: 14.46054136 | I12: Cumple | K12: 1214.2364 | L12: 852.17864 | M12: 362.05776 | N12: Cumple
A13: 5 | B13: 010105 | C13: AMAZONAS | D13: MUNICIPALIDAD DISTRITAL DE CHILIQUIN | E13: 26.67945 | F13: 950.3218025 | G13: 0.00192 | H13: 2.807412177 | I13: Cumple | K13: 1318.76309 | L13: 989.99545 | M13: 328.76764 | N13: Cumple
A14: 6 | B14: 010106 | C14: AMAZONAS | D14: MUNICIPALIDAD DISTRITAL DE CHUQUIBAMBA | E14: 175.93202 | F14: 1445.249045 | G14: 0.00357 | H14: 12.17312827 | I14: Cumple | K14: 1815.51363 | L14: 1365.48713 | M14: 450.0265 | N14: Cumple
A15: 7 | B15: 010107 | C15: AMAZONAS | D15: MUNICIPALIDAD DISTRITAL DE GRANADA | E15: 173.21727 | F15: 780.3176375 | G15: 0.00101 | H15: 22.19830255 | I15: Cumple | K15: 1215.07143 | L15: 861.40997 | M15: 353.66146 | N15: Cumple
A16: 8 | B16: 010108 | C16: AMAZONAS | D16: MUNICIPALIDAD DISTRITAL DE HUANCAS | E16: 98.67336 | F16: 822.52867 | G16: 0.00183 | H16: 11.99634294 | I16: Cumple | K16: 996.75127 | L16: 641.54612 | M16: 355.20515 | N16: Cumple
A17: 9 | B17: 010109 | C17: AMAZONAS | D17: MUNICIPALIDAD DISTRITAL DE JALCA GRANDE | E17: 46.00879 | F17: 1659.949082 | G17: 0.98139 | H17: 2.771698872 | I17: Cumple | K17: 2264.38579 | L17: 1706.84449 | M17: 557.5413 | N17: Cumple
A18: 10 | B18: 010110 | C18: AMAZONAS | D18: MUNICIPALIDAD DISTRITAL DE LEIMEBAMBA | E18: 58.11699 | F18: 2453.160915 | G18: 0.00575 | H18: 2.369065545 | I18: Cumple | K18: 3459.84935 | L18: 759.17556 | M18: 2700.67379 | N18: Cumple
A19: 11 | B19: 010111 | C19: AMAZONAS | D19: MUNICIPALIDAD DISTRITAL DE LEVANTO | E19: 96.59103 | F19: 789.0545325 | G19: 0.00155 | H19: 12.24136305 | I19: Cumple | K19: 1318.00514 | L19: 1314.53398 | M19: 3.47116 | N19: Cumple
A20: 12 | B20: 010112 | C20: AMAZONAS | D20: MUNICIPALIDAD DISTRITAL DE MAGDALENA | E20: 10.43184 | F20: 661.2473975 | G20: 0.00123 | H20: 1.57760016 | I20: Cumple | K20: 858.03513 | L20: 550.17264 | M20: 307.86249 | N20: Cumple
A21: 13 | B21: 010113 | C21: AMAZONAS | D21: MUNICIPALIDAD DISTRITAL DE MARISCAL CASTILLA | E21: 21.19811 | F21: 817.684215 | G21: 0.00179 | H21: 2.592456796 | I21: Cumple | K21: 1264.20366 | L21: 933.4197 | M21: 330.78396 | N21: Cumple
A22: 14 | B22: 010114 | C22: AMAZONAS | D22: MUNICIPALIDAD DISTRITAL DE MOLINOPAMPA | E22: 210.27046 | F22: 914.972025 | G22: 0.00479 | H22: 22.98108076 | I22: Cumple | K22: 771.20076 | L22: 675.60171 | M22: 95.59905 | N22: Cumple
A23: 15 | B23: 010115 | C23: AMAZONAS | D23: MUNICIPALIDAD DISTRITAL DE MONTEVIDEO | E23: 169.4653 | F23: 741.41374 | G23: 0.00083 | H23: 22.85704875 | I23: Cumple | K23: 951.76838 | L23: 796.80527 | M23: 154.96311 | N23: Cumple
A24: 16 | B24: 010116 | C24: AMAZONAS | D24: MUNICIPALIDAD DISTRITAL DE OLLEROS | E24: 71.81512 | F24: 621.34966 | G24: 0.00176 | H24: 11.55792376 | I24: Cumple | K24: 667.60992 | L24: 400.92338 | M24: 266.68654 | N24: Cumple
A25: 17 | B25: 010117 | C25: AMAZONAS | D25: MUNICIPALIDAD DISTRITAL DE QUINJALCA | E25: 23.86425 | F25: 628.9637875 | G25: 0.00332 | H25: 3.794216849 | I25: Cumple | K25: 639.64191 | L25: 577.06076 | M25: 62.58115 | N25: Cumple
A26: 18 | B26: 010118 | C26: AMAZONAS | D26: MUNICIPALIDAD DISTRITAL DE SAN FRANCISCO DE DAGUAS | E26: 47.64733 | F26: 637.052715 | G26: 0.00045 | H26: 7.47933866 | I26: Cumple | K26: 688.45524 | L26: 277.99361 | M26: 410.46163 | N26: Cumple
A27: 19 | B27: 010119 | C27: AMAZONAS | D27: MUNICIPALIDAD DISTRITAL DE SAN ISIDRO DE MAYNO | E27: 277.21582 | F27: 811.4865575 | G27: 0.0012 | H27: 34.16148024 | I27: Cumple | K27: 692.53205 | L27: 434.36078 | M27: 258.17127 | N27: Cumple
A28: 20 | B28: 010120 | C28: AMAZONAS | D28: MUNICIPALIDAD DISTRITAL DE SOLOCO | E28: 944.35088 | F28: 876.86805 | G28: 0.00221 | H28: 107.6958934 | I28: No Cumple | K28: 729.75959 | L28: 433.06141 | M28: 296.69818 | N28: Cumple
A29: 21 | B29: 010121 | C29: AMAZONAS | D29: MUNICIPALIDAD DISTRITAL DE SONCHE | E29: 156.49106 | F29: 776.920905 | G29: 0.00092 | H29: 20.14246997 | I29: Cumple | K29: 1087.53278 | L29: 806.41149 | M29: 281.12129 | N29: Cumple
A30: 22 | B30: 010201 | C30: AMAZONAS | D30: MUNICIPALIDAD PROVINCIAL DE BAGUA - LA PECA | E30: 4652.16559 | F30: 21942.21698 | G30: 0.83526 | H30: 21.20189402 | I30: Cumple | K30: 27712.62171 | L30: 19223.08897 | M30: 8489.53274 | N30: Cumple
A31: 23 | B31: 010202 | C31: AMAZONAS | D31: MUNICIPALIDAD DISTRITAL DE ARAMANGO | E31: 936.3044 | F31: 4698.069698 | G31: 1.13562 | H31: 19.92955533 | I31: Cumple | K31: 6312.79864 | L31: 3865.5009 | M31: 2447.29774 | N31: Cumple
A32: 24 | B32: 010203 | C32: AMAZONAS | D32: MUNICIPALIDAD DISTRITAL DE COPALLIN | E32: 673.62649 | F32: 2644.797785 | G32: 0.01166 | H32: 25.46986744 | I32: Cumple | K32: 2232.12048 | L32: 1891.21112 | M32: 340.90936 | N32: Cumple
A33: 25 | B33: 010204 | C33: AMAZONAS | D33: MUNICIPALIDAD DISTRITAL DE EL PARCO | E33: 264.47518 | F33: 5453.15399 | G33: 0.00402 | H33: 4.849948864 | I33: Cumple | K33: 6565.57675 | L33: 1397.23753 | M33: 5168.33922 | N33: Cumple
A34: 26 | B34: 010205 | C34: AMAZONAS | D34: MUNICIPALIDAD DISTRITAL DE IMAZA | E34: 7738.80486 | F34: 10024.63327 | G34: 2.32133 | H34: 77.19788498 | I34: Cumple | K34: 11810.92656 | L34: 8076.38503 | M34: 3734.54153 | N34: Cumple
A35: 27 | B35: 010206 | C35: AMAZONAS | D35: MUNICIPALIDAD DISTRITAL DE LA PECA | E35: 343.86002 | F35: 3068.481657 | G35: 0.01576 | H35: 11.20619441 | I35: Cumple | K35: 3910.62989 | L35: 3028.8709 | M35: 881.75899 | N35: Cumple
A36: 28 | B36: 010301 | C36: AMAZONAS | D36: MUNICIPALIDAD PROVINCIAL DE BONGARA - JUMBILLA | E36: 2685.34057 | F36: 6276.021463 | G36: 0.00235 | H36: 42.78730699 | I36: Cumple | K36: 6535.28728 | L36: 4427.84933 | M36: 2107.43795 | N36: Cumple
A37: 29 | B37: 010302 | C37: AMAZONAS | D37: MUNICIPALIDAD DISTRITAL DE CHISQUILLA | E37: 52.01281 | F37: 684.0064325 | G37: 0.00098 | H37: 7.604140477 | I37: Cumple | K37: 1098.13001 | L37: 765.86651 | M37: 332.2635 | N37: Cumple
A38: 30 | B38: 010303 | C38: AMAZONAS | D38: MUNICIPALIDAD DISTRITAL DE CHURUJA | E38: 31.63187 | F38: 535.5532525 | G38: 0.00068 | H38: 5.906391167 | I38: Cumple | K38: 506.15396 | L38: 411.51777 | M38: 94.63619 | N38: Cumple
A39: 31 | B39: 010304 | C39: AMAZONAS | D39: MUNICIPALIDAD DISTRITAL DE COROSHA | E39: 44.06302 | F39: 912.4923375 | G39: 0.00351 | H39: 4.828864659 | I39: Cumple | K39: 1941.01844 | L39: 1194.47314 | M39: 746.5453 | N39: Cumple
A40: 32 | B40: 010305 | C40: AMAZONAS | D40: MUNICIPALIDAD DISTRITAL DE CUISPES | E40: 43.34059 | F40: 649.051765 | G40: 0.00172 | H40: 6.677524404 | I40: Cumple | K40: 727.49719 | L40: 477.7363 | M40: 249.76089 | N40: Cumple
A41: 33 | B41: 010306 | C41: AMAZONAS | D41: MUNICIPALIDAD DISTRITAL DE FLORIDA | E41: 338.29673 | F41: 3064.121985 | G41: 0.01757 | H41: 11.04057644 | I41: Cumple | K41: 4226.21507 | L41: 2696.50097 | M41: 1529.7141 | N41: Cumple
A42: 34 | B42: 010307 | C42: AMAZONAS | D42: MUNICIPALIDAD DISTRITAL DE JAZAN | E42: 1460.7744 | F42: 3577.70185 | G42: 0.01073 | H42: 40.82996463 | I42: Cumple | K42: 3714.15479 | L42: 2991.51965 | M42: 722.63514 | N42: Cumple
A43: 35 | B43: 010308 | C43: AMAZONAS | D43: MUNICIPALIDAD DISTRITAL DE RECTA | E43: 175.43579 | F43: 751.93611 | G43: 0.00061 | H43: 23.33120962 | I43: Cumple | K43: 1282.71208 | L43: 1023.1513 | M43: 259.56078 | N43: Cumple
A44: 36 | B44: 010309 | C44: AMAZONAS | D44: MUNICIPALIDAD DISTRITAL DE SAN CARLOS | E44: 62.81451 | F44: 615.2424125 | G44: 0.00114 | H44: 10.20971713 | I44: Cumple | K44: 692.30242 | L44: 474.02503 | M44: 218.27739 | N44: Cumple
A45: 37 | B45: 010310 | C45: AMAZONAS | D45: MUNICIPALIDAD DISTRITAL DE SHIPASBAMBA | E45: 26.19509 | F45: 1041.433218 | G45: 0.00447 | H45: 2.515292345 | I45: Cumple | K45: 1414.14834 | L45: 570.51269 | M45: 843.63565 | N45: Cumple
A46: 38 | B46: 010311 | C46: AMAZONAS | D46: MUNICIPALIDAD DISTRITAL DE VALERA | E46: 52.33664 | F46: 691.20874 | G46: 0.0018 | H46: 7.571756109 | I46: Cumple | K46: 784.1392 | L46: 399.12661 | M46: 385.01259 | N46: Cumple
A47: 39 | B47: 010312 | C47: AMAZONAS | D47: MUNICIPALIDAD DISTRITAL DE YAMBRASBAMBA | E47: 1260.86869 | F47: 3447.792652 | G47: 0.02096 | H47: 36.57031664 | I47: Cumple | K47: 4502.07069 | L47: 2411.47365 | M47: 2090.59704 | N47: Cumple
A48: 40 | B48: 010401 | C48: AMAZONAS | D48: MUNICIPALIDAD PROVINCIAL DE CONDORCANQUI - NIEVA | E48: 2527.33984 | F48: 22308.95432 | G48: 2.47299 | H48: 11.32881355 | I48: Cumple | K48: 26459.55479 | L48: 20004.91075 | M48: 6454.64404 | N48: Cumple
A49: 41 | B49: 010402 | C49: AMAZONAS | D49: MUNICIPALIDAD DISTRITAL DE EL CENEPA | E49: 199.19693 | F49: 5816.12856 | G49: 0.65616 | H49: 3.424905897 | I49: Cumple | K49: 8000.08199 | L49: 6343.21088 | M49: 1656.87111 | N49: Cumple
A50: 42 | B50: 010403 | C50: AMAZONAS | D50: MUNICIPALIDAD DISTRITAL DE RIO SANTIAGO | E50: 2289.65015 | F50: 8973.549933 | G50: 1.11271 | H50: 25.51554476 | I50: Cumple | K50: 11913.80409 | L50: 9820.87033 | M50: 2092.93376 | N50: Cumple
A51: 43 | B51: 010501 | C51: AMAZONAS | D51: MUNICIPALIDAD PROVINCIAL DE LUYA - LAMUD | E51: 4604.31971 | F51: 21924.3909 | G51: 0.00203 | H51: 21.00090138 | I51: Cumple | K51: 26303.8942 | L51: 22779.12443 | M51: 3524.76977 | N51: Cumple
A52: 44 | B52: 010502 | C52: AMAZONAS | D52: MUNICIPALIDAD DISTRITAL DE CAMPORREDONDO | E52: 53.74434 | F52: 3402.525547 | G52: 0.01262 | H52: 1.579542585 | I52: Cumple | K52: 2537.33597 | L52: 2714.42099 | M52: -177.08502 | N52: No Cumple
A53: 45 | B53: 010503 | C53: AMAZONAS | D53: MUNICIPALIDAD DISTRITAL DE COCABAMBA | E53: 1550.48623 | F53: 1056.6067 | G53: 0.00387 | H53: 146.7420403 | I53: No Cumple | K53: 1005.0887 | L53: 596.74032 | M53: 408.34838 | N53: Cumple
A54: 46 | B54: 010504 | C54: AMAZONAS | D54: MUNICIPALIDAD DISTRITAL DE COLCAMAR | E54: 15.81006 | F54: 891.695285 | G54: 0.00225 | H54: 1.773033935 | I54: Cumple | K54: 661.8523 | L54: 619.93863 | M54: 41.91367 | N54: Cumple
A55: 47 | B55: 010505 | C55: AMAZONAS | D55: MUNICIPALIDAD DISTRITAL DE CONILA | E55: 380.41041 | F55: 733.7241275 | G55: 0.00253 | H55: 51.84651775 | I55: Cumple | K55: 669.4049 | L55: 651.9435 | M55: 17.4614 | N55: Cumple
A56: 48 | B56: 010506 | C56: AMAZONAS | D56: MUNICIPALIDAD DISTRITAL DE INGUILPATA | E56: 28.81971 | F56: 809.7606675 | G56: 0.00071 | H56: 3.559040486 | I56: Cumple | K56: 1319.72916 | L56: 889.66666 | M56: 430.0625 | N56: Cumple
A57: 49 | B57: 010507 | C57: AMAZONAS | D57: MUNICIPALIDAD DISTRITAL DE LONGUITA | E57: 20.38375 | F57: 1905.951307 | G57: 0.00148 | H57: 1.069479053 | I57: Cumple | K57: 2968.60366 | L57: 1116.72375 | M57: 1851.87991 | N57: Cumple
A58: 50 | B58: 010508 | C58: AMAZONAS | D58: MUNICIPALIDAD DISTRITAL DE LONYA CHICO | E58: 33.25301 | F58: 956.0093475 | G58: 0.00159 | H58: 3.478314316 | I58: Cumple | K58: 786.90643 | L58: 490.7648 | M58: 296.14163 | N58: Cumple
A59: 51 | B59: 010509 | C59: AMAZONAS | D59: MUNICIPALIDAD DISTRITAL DE LUYA | E59: 44.04769 | F59: 1808.544322 | G59: 0.00416 | H59: 2.43553279 | I59: Cumple | K59: 1167.22746 | L59: 1190.05731 | M59: -22.82985 | N59: No Cumple
A60: 52 | B60: 010510 | C60: AMAZONAS | D60: MUNICIPALIDAD DISTRITAL DE LUYA VIEJO | E60: 86.54146 | F60: 752.612055 | G60: 0.00054 | H60: 11.49881395 | I60: Cumple | K60: 1243.12488 | L60: 966.74957 | M60: 276.37531 | N60: Cumple
A61: 53 | B61: 010511 | C61: AMAZONAS | D61: MUNICIPALIDAD DISTRITAL DE MARIA | E61: 100.75457 | F61: 1001.294668 | G61: 0.00104 | H61: 10.0624295 | I61: Cumple | K61: 1225.1762 | L61: 913.04221 | M61: 312.13399 | N61: Cumple
A62: 54 | B62: 010512 | C62: AMAZONAS | D62: MUNICIPALIDAD DISTRITAL DE OCALLI | E62: 83.04341 | F62: 2219.50189 | G62: 0.00565 | H62: 3.741533647 | I62: Cumple | K62: 2224.41868 | L62: 1652.27979 | M62: 572.13889 | N62: Cumple
A63: 55 | B63: 010513 | C63: AMAZONAS | D63: MUNICIPALIDAD DISTRITAL DE OCUMAL | E63: 86.49624 | F63: 1689.379737 | G63: 0.00661 | H63: 5.119999848 | I63: Cumple | K63: 2083.94068 | L63: 1661.06021 | M63: 422.88047 | N63: Cumple
A64: 56 | B64: 010514 | C64: AMAZONAS | D64: MUNICIPALIDAD DISTRITAL DE PIZUQUIA | E64: 218.96379 | F64: 3086.347183 | G64: 0.00798 | H64: 7.09459361 | I64: Cumple | K64: 3604.6473 | L64: 2195.89831 | M64: 1408.74899 | N64: Cumple
A65: 57 | B65: 010515 | C65: AMAZONAS | D65: MUNICIPALIDAD DISTRITAL DE PROVIDENCIA | E65: 100.09096 | F65: 975.2834825 | G65: 0.00248 | H65: 10.26275558 | I65: Cumple | K65: 1469.37965 | L65: 1156.26291 | M65: 313.11674 | N65: Cumple
A66: 58 | B66: 010516 | C66: AMAZONAS | D66: MUNICIPALIDAD DISTRITAL DE SAN CRISTOBAL DE OLTO | E66: 25.32005 | F66: 841.45924 | G66: 0.00093 | H66: 3.009064349 | I66: Cumple | K66: 1507.36023 | L66: 1028.8616 | M66: 478.49863 | N66: Cumple
A67: 59 | B67: 010517 | C67: AMAZONAS | D67: MUNICIPALIDAD DISTRITAL DE SAN FRANCISCO DE YESO | E67: 31.30882 | F67: 623.3764225 | G67: 0.00152 | H67: 5.02245816 | I67: Cumple | K67: 809.04432 | L67: 467.2927 | M67: 341.75162 | N67: Cumple
A68: 60 | B68: 010518 | C68: AMAZONAS | D68: MUNICIPALIDAD DISTRITAL DE SAN JERONIMO DE PACLAS | E68: 27.73148 | F68: 929.8211675 | G68: 0.00129 | H68: 2.982453075 | I68: Cumple | K68: 1464.56519 | L68: 1183.25651 | M68: 281.30868 | N68: Cumple
A69: 61 | B69: 010519 | C69: AMAZONAS | D69: MUNICIPALIDAD DISTRITAL DE SAN JUAN DE LOPECANCHA | E69: 92.02078 | F69: 935.796335 | G69: 0.00159 | H69: 9.833419576 | I69: Cumple | K69: 1156.58014 | L69: 1057.39003 | M69: 99.19011 | N69: Cumple
A70: 62 | B70: 010520 | C70: AMAZONAS | D70: MUNICIPALIDAD DISTRITAL DE SANTA CATALINA | E70: 79.42376 | F70: 961.1966375 | G70: 0.00484 | H70: 8.263008515 | I70: Cumple | K70: 1422.59587 | L70: 1418.07801 | M70: 4.51786 | N70: Cumple
A71: 63 | B71: 010521 | C71: AMAZONAS | D71: MUNICIPALIDAD DISTRITAL DE SANTO TOMAS | E71: 104.01231 | F71: 1410.900875 | G71: 0.00917 | H71: 7.372049436 | I71: Cumple | K71: 1247.0943 | L71: 947.836 | M71: 299.2583 | N71: Cumple
A72: 64 | B72: 010522 | C72: AMAZONAS | D72: MUNICIPALIDAD DISTRITAL DE TINGO | E72: 84.25011 | F72: 597.827925 | G72: 0.0021 | H72: 14.09270234 | I72: Cumple | K72: 538.99277 | L72: 502.70445 | M72: 36.28832 | N72: Cumple
A73: 65 | B73: 010523 | C73: AMAZONAS | D73: MUNICIPALIDAD DISTRITAL DE TRITA | E73: 12.35 | F73: 819.47322 | G73: 0.00187 | H73: 1.507065722 | I73: Cumple | K73: 1483.11857 | L73: 1118.3601 | M73: 364.75847 | N73: Cumple
A74: 66 | B74: 010601 | C74: AMAZONAS | D74: MUNICIPALIDAD PROVINCIAL DE RODRIGUEZ DE MENDOZA - SAN NICOLAS | E74: 6511.19973 | F74: 8692.765622 | G74: 0.00872 | H74: 74.90366142 | I74: Cumple | K74: 9356.05191 | L74: 9215.36557 | M74: 140.68634 | N74: Cumple
A75: 67 | B75: 010602 | C75: AMAZONAS | D75: MUNICIPALIDAD DISTRITAL DE CHIRIMOTO | E75: 45.82903 | F75: 1266.462027 | G75: 0.01407 | H75: 3.618665937 | I75: Cumple | K75: 1534.09692 | L75: 1348.21422 | M75: 185.8827 | N75: Cumple
A76: 68 | B76: 010603 | C76: AMAZONAS | D76: MUNICIPALIDAD DISTRITAL DE COCHAMAL | E76: 134.41194 | F76: 577.69142 | G76: 0.00185 | H76: 23.26708262 | I76: Cumple | K76: 679.95633 | L76: 548.59286 | M76: 131.36347 | N76: Cumple
A77: 69 | B77: 010604 | C77: AMAZONAS | D77: MUNICIPALIDAD DISTRITAL DE HUAMBO | E77: 254.38344 | F77: 1953.155715 | G77: 0.01122 | H77: 13.02422731 | I77: Cumple | K77: 1716.95613 | L77: 761.4442 | M77: 955.51193 | N77: Cumple
A78: 70 | B78: 010605 | C78: AMAZONAS | D78: MUNICIPALIDAD DISTRITAL DE LIMABAMBA | E78: 2268.67396 | F78: 1109.673593 | G78: 0.01098 | H78: 204.4451608 | I78: No Cumple | K78: 1181.2606 | L78: 875.4439 | M78: 305.8167 | N78: Cumple
A79: 71 | B79: 010606 | C79: AMAZONAS | D79: MUNICIPALIDAD DISTRITAL DE LONGAR | E79: 94.40569 | F79: 646.055395 | G79: 0.00508 | H79: 14.61263086 | I79: Cumple | K79: 704.81408 | L79: 589.13187 | M79: 115.68221 | N79: Cumple
A80: 72 | B80: 010607 | C80: AMAZONAS | D80: MUNICIPALIDAD DISTRITAL DE MARISCAL BENAVIDES | E80: 875.84547 | F80: 862.25708 | G80: 0.0024 | H80: 101.5759094 | I80: No Cumple | K80: 600.14882 | L80: 639.76668 | M80: -39.61786 | N80: No Cumple
A81: 73 | B81: 010608 | C81: AMAZONAS | D81: MUNICIPALIDAD DISTRITAL DE MILPUC | E81: 102.14843 | F81: 645.942175 | G81: 0.01606 | H81: 15.813866 | I81: Cumple | K81: 678.11003 | L81: 619.59059 | M81: 58.51944 | N81: Cumple
A82: 74 | B82: 010609 | C82: AMAZONAS | D82: MUNICIPALIDAD DISTRITAL DE OMIA | E82: 168.2069 | F82: 3570.785957 | G82: 0.04947 | H82: 4.710640795 | I82: Cumple | K82: 4357.46214 | L82: 3447.87247 | M82: 909.58967 | N82: Cumple
A83: 75 | B83: 010610 | C83: AMAZONAS | D83: MUNICIPALIDAD DISTRITAL DE SANTA ROSA | E83: 188.60458 | F83: 937.2434275 | G83: 0.00205 | H83: 20.12332917 | I83: Cumple | K83: 1113.84434 | L83: 468.26284 | M83: 645.5815 | N83: Cumple
A84: 76 | B84: 010611 | C84: AMAZONAS | D84: MUNICIPALIDAD DISTRITAL DE TOTORA | E84: 11.08138 | F84: 638.664745 | G84: 0.00077 | H84: 1.735085596 | I84: Cumple | K84: 719.08389 | L84: 465.97304 | M84: 253.11085 | N84: Cumple
A85: 77 | B85: 010612 | C85: AMAZONAS | D85: MUNICIPALIDAD DISTRITAL DE VISTA ALEGRE | E85: 174.31283 | F85: 1472.015945 | G85: 0.02457 | H85: 11.84177594 | I85: Cumple | K85: 2287.99624 | L85: 2282.53944 | M85: 5.4568 | N85: Cumple
A86: 78 | B86: 010701 | C86: AMAZONAS | D86: MUNICIPALIDAD PROVINCIA DE UTCUBAMBA - BAGUA GRANDE | E86: 13214.56214 | F86: 39441.90783 | G86: 1.59528 | H86: 33.50386142 | I86: Cumple | K86: 47603.64112 | L86: 31485.02916 | M86: 16118.61196 | N86: Cumple
A87: 79 | B87: 010702 | C87: AMAZONAS | D87: MUNICIPALIDAD DISTRITAL DE CAJARURO | E87: 1993.01398 | F87: 12592.05702 | G87: 1.00327 | H87: 15.82754888 | I87: Cumple | K87: 14013.06817 | L87: 9267.609 | M87: 4745.45917 | N87: Cumple
A88: 80 | B88: 010703 | C88: AMAZONAS | D88: MUNICIPALIDAD DISTRITAL DE CUMBA | E88: 465.33946 | F88: 3704.673255 | G88: 0.08367 | H88: 12.56087725 | I88: Cumple | K88: 4732.18539 | L88: 4009.57134 | M88: 722.61405 | N88: Cumple
A89: 81 | B89: 010704 | C89: AMAZONAS | D89: MUNICIPALIDAD DISTRITAL DE EL MILAGRO | E89: 270.59651 | F89: 3119.44746 | G89: 0.04466 | H89: 8.674501285 | I89: Cumple | K89: 3658.81858 | L89: 3510.1631 | M89: 148.65548 | N89: Cumple
A90: 82 | B90: 010705 | C90: AMAZONAS | D90: MUNICIPALIDAD DISTRITAL DE JAMALCA | E90: 872.85247 | F90: 4181.285993 | G90: 0.06341 | H90: 20.8752157 | I90: Cumple | K90: 4417.87997 | L90: 3655.99047 | M90: 761.8895 | N90: Cumple
A91: 83 | B91: 010706 | C91: AMAZONAS | D91: MUNICIPALIDAD DISTRITAL DE LONYA GRANDE | E91: 1011.37821 | F91: 4322.18344 | G91: 0.06753 | H91: 23.39970582 | I91: Cumple | K91: 5583.54948 | L91: 3532.12696 | M91: 2051.42252 | N91: Cumple
A92: 84 | B92: 010707 | C92: AMAZONAS | D92: MUNICIPALIDAD DISTRITAL DE YAMON | E92: 712.97358 | F92: 2060.99136 | G92: 0.03324 | H92: 34.59371999 | I92: Cumple | K92: 1799.45243 | L92: 961.77781 | M92: 837.67462 | N92: Cumple
A93: 85 | B93: 020101 | C93: ANCASH | D93: MUNICIPALIDAD PROVINCIAL DE HUARAZ | E93: 16984.77635 | F93: 55498.32417 | G93: 48440.65366 | H93: 30.60412472 | I93: Cumple | K93: 67089.33297 | L93: 42504.17586 | M93: 24585.15711 | N93: Cumple
A94: 86 | B94: 020102 | C94: ANCASH | D94: MUNICIPALIDAD DISTRITAL DE COCHABAMBA | E94: 172.70562 | F94: 2781.707482 | G94: 3879.26531 | H94: 4.452018777 | I94: Cumple | K94: 3221.91947 | L94: 1895.49534 | M94: 1326.42413 | N94: Cumple
A95: 87 | B95: 020103 | C95: ANCASH | D95: MUNICIPALIDAD DISTRITAL DE COLCABAMBA | E95: 639.51513 | F95: 1809.437285 | G95: 748.12275 | H95: 35.34331559 | I95: Cumple | K95: 2403.72367 | L95: 690.02742 | M95: 1713.69625 | N95: Cumple
A96: 88 | B96: 020104 | C96: ANCASH | D96: MUNICIPALIDAD DISTRITAL DE HUANCHAY | E96: 184.48416 | F96: 2279.558347 | G96: 3367.04352 | H96: 5.479114211 | I96: Cumple | K96: 2218.962 | L96: 1035.19529 | M96: 1183.76671 | N96: Cumple
A97: 89 | B97: 020105 | C97: ANCASH | D97: MUNICIPALIDAD DISTRITAL DE INDEPENDENCIA | E97: 7120.77339 | F97: 45839.42382 | G97: 65944.77317 | H97: 10.79808611 | I97: Cumple | K97: 51382.24226 | L97: 23006.71458 | M97: 28375.52768 | N97: Cumple
A98: 90 | B98: 020106 | C98: ANCASH | D98: MUNICIPALIDAD DISTRITAL DE JANGAS | E98: 386.09725 | F98: 4511.003097 | G98: 8125.77036 | H98: 4.751515646 | I98: Cumple | K98: 3938.04803 | L98: 2751.98566 | M98: 1186.06237 | N98: Cumple
A99: 91 | B99: 020107 | C99: ANCASH | D99: MUNICIPALIDAD DISTRITAL DE LA LIBERTAD | E99: 82.70782 | F99: 2213.933697 | G99: 2016.19674 | H99: 3.735785769 | I99: Cumple | K99: 1877.12648 | L99: 1048.69579 | M99: 828.43069 | N99: Cumple
A100: 92 | B100: 020108 | C100: ANCASH | D100: MUNICIPALIDAD DISTRITAL DE OLLEROS | E100: 1070.69014 | F100: 2109.582783 | G100: 3273.4827 | H100: 32.70798224 | I100: Cumple | K100: 2487.28435 | L100: 1050.26467 | M100: 1437.01968 | N100: Cumple
A101: 93 | B101: 020109 | C101: ANCASH | D101: MUNICIPALIDAD DISTRITAL DE PAMPAS | E101: 79.5521 | F101: 1711.326853 | G101: 1904.30811 | H101: 4.177480502 | I101: Cumple | K101: 1967.31338 | L101: 1441.87223 | M101: 525.44115 | N101: Cumple
A102: 94 | B102: 020110 | C102: ANCASH | D102: MUNICIPALIDAD DISTRITAL DE PARIACOTO | E102: 1012.94031 | F102: 3881.402312 | G102: 5812.00863 | H102: 17.42840341 | I102: Cumple | K102: 3452.1543 | L102: 2273.18877 | M102: 1178.96553 | N102: Cumple
A103: 95 | B103: 020111 | C103: ANCASH | D103: MUNICIPALIDAD DISTRITAL DE PIRA | E103: 693.32928 | F103: 4367.286447 | G103: 6753.0497 | H103: 10.26690622 | I103: Cumple | K103: 3424.21741 | L103: 2154.68493 | M103: 1269.53248 | N103: Cumple
A104: 96 | B104: 020112 | C104: ANCASH | D104: MUNICIPALIDAD DISTRITAL DE TARICA | E104: 334.5656 | F104: 5209.237018 | G104: 8544.14768 | H104: 3.915728198 | I104: Cumple | K104: 6599.51703 | L104: 2443.99871 | M104: 4155.51832 | N104: Cumple
A105: 97 | B105: 020201 | C105: ANCASH | D105: MUNICIPALIDAD PROVINCIAL DE AIJA | E105: 292.13392 | F105: 9011.311335 | G105: 3658.54973 | H105: 3.241858029 | I105: Cumple | K105: 12601.61778 | L105: 13829.88396 | M105: -1228.26618 | N105: No Cumple
A106: 98 | B106: 020202 | C106: ANCASH | D106: MUNICIPALIDAD DISTRITAL DE CORIS | E106: 152.28944 | F106: 3237.443452 | G106: 5701.65573 | H106: 2.670968701 | I106: Cumple | K106: 3469.37757 | L106: 1197.75904 | M106: 2271.61853 | N106: Cumple
A107: 99 | B107: 020203 | C107: ANCASH | D107: MUNICIPALIDAD DISTRITAL DE HUACLLAN | E107: 107.83565 | F107: 1009.89421 | G107: 1176.18571 | H107: 9.16825031 | I107: Cumple | K107: 723.06864 | L107: 556.4247 | M107: 166.64394 | N107: Cumple
A108: 100 | B108: 020204 | C108: ANCASH | D108: MUNICIPALIDAD DISTRITAL DE LA MERCED | E108: 138.30578 | F108: 3006.049495 | G108: 4855.16015 | H108: 2.848634766 | I108: Cumple | K108: 2248.13101 | L108: 1075.38035 | M108: 1172.75066 | N108: Cumple
A109: 101 | B109: 020205 | C109: ANCASH | D109: MUNICIPALIDAD DISTRITAL DE SUCCHA | E109: 18.11551 | F109: 1325.78691 | G109: 1583.74957 | H109: 1.143836775 | I109: Cumple | K109: 1365.83607 | L109: 670.00873 | M109: 695.82734 | N109: Cumple
A110: 102 | B110: 020301 | C110: ANCASH | D110: MUNICIPALIDAD PROVINCIAL DE ANTONIO RAYMONDI - LLAMELLIN | E110: 1768.4442 | F110: 7249.610085 | G110: 5000.56943 | H110: 24.39364572 | I110: Cumple | K110: 8635.19273 | L110: 2913.48205 | M110: 5721.71068 | N110: Cumple
A111: 103 | B111: 020302 | C111: ANCASH | D111: MUNICIPALIDAD DISTRITAL DE ACSO | E111: 36.37242 | F111: 1746.409525 | G111: 2471.71745 | H111: 1.471544411 | I111: Cumple | K111: 1613.93474 | L111: 854.45873 | M111: 759.47601 | N111: Cumple
A112: 104 | B112: 020303 | C112: ANCASH | D112: MUNICIPALIDAD DISTRITAL DE CHACCHO | E112: 463.68539 | F112: 2045.731145 | G112: 2786.86973 | H112: 16.63821545 | I112: Cumple | K112: 2936.28896 | L112: 1641.92066 | M112: 1294.3683 | N112: Cumple
A113: 105 | B113: 020304 | C113: ANCASH | D113: MUNICIPALIDAD DISTRITAL DE CHINGAS | E113: 132.60033 | F113: 1702.429295 | G113: 2736.93859 | H113: 4.844841257 | I113: Cumple | K113: 1569.43341 | L113: 855.03704 | M113: 714.39637 | N113: Cumple
A114: 106 | B114: 020305 | C114: ANCASH | D114: MUNICIPALIDAD DISTRITAL DE MIRGAS | E114: 333.45084 | F114: 5443.676645 | G114: 8707.37702 | H114: 3.829521097 | I114: Cumple | K114: 6370.77853 | L114: 3195.52869 | M114: 3175.24984 | N114: Cumple
A115: 107 | B115: 020306 | C115: ANCASH | D115: MUNICIPALIDAD DISTRITAL DE SAN JUAN DE RONTOY | E115: 49.86699 | F115: 1634.958302 | G115: 1789.27906 | H115: 2.78698785 | I115: Cumple | K115: 1901.7676 | L115: 1540.71064 | M115: 361.05696 | N115: Cumple
A116: 108 | B116: 020401 | C116: ANCASH | D116: MUNICIPALIDAD PROVINCIAL DE ASUNCION - CHACAS | E116: 680.53776 | F116: 7424.95995 | G116: 6045.94582 | H116: 9.165541156 | I116: Cumple | K116: 9259.16138 | L116: 5955.92227 | M116: 3303.23911 | N116: Cumple
A117: 109 | B117: 020402 | C117: ANCASH | D117: MUNICIPALIDAD DISTRITAL DE ACOCHACA | E117: 376.93217 | F117: 2827.564585 | G117: 4155.30895 | H117: 9.071098552 | I117: Cumple | K117: 2353.50907 | L117: 1496.52132 | M117: 856.98775 | N117: Cumple
A118: 110 | B118: 020501 | C118: ANCASH | D118: MUNICIPALIDAD PROVINCIAL DE BOLOGNESI - CHIQUIAN | E118: 5077.89471 | F118: 16010.87308 | G118: 3674.4027 | H118: 31.71528926 | I118: Cumple | K118: 19801.35602 | L118: 17410.03731 | M118: 2391.31871 | N118: Cumple
A119: 111 | B119: 020502 | C119: ANCASH | D119: MUNICIPALIDAD DISTRITAL DE ABELARDO PARDO LAZAMETA | E119: 171.29623 | F119: 1457.258315 | G119: 1560.8729 | H119: 10.97438683 | I119: Cumple | K119: 817.03014 | L119: 560.75877 | M119: 256.27137 | N119: Cumple
A120: 112 | B120: 020503 | C120: ANCASH | D120: MUNICIPALIDAD DISTRITAL DE ANTONIO RAYMONDI | E120: 124.31787 | F120: 2046.535065 | G120: 1965.3654 | H120: 6.074553626 | I120: Cumple | K120: 2346.92266 | L120: 1567.28808 | M120: 779.63458 | N120: Cumple
A121: 113 | B121: 020504 | C121: ANCASH | D121: MUNICIPALIDAD DISTRITAL DE AQUIA | E121: 293.58963 | F121: 2965.114663 | G121: 4000.3959 | H121: 7.339014371 | I121: Cumple | K121: 2710.44328 | L121: 981.37387 | M121: 1729.06941 | N121: Cumple
A122: 114 | B122: 020505 | C122: ANCASH | D122: MUNICIPALIDAD DISTRITAL DE CAJACAY | E122: 185.37011 | F122: 1915.899392 | G122: 3136.50162 | H122: 5.91009132 | I122: Cumple | K122: 1728.97811 | L122: 749.81142 | M122: 979.16669 | N122: Cumple
A123: 115 | B123: 020506 | C123: ANCASH | D123: MUNICIPALIDAD DISTRITAL DE CANIS | E123: 228.07477 | F123: 1369.43782 | G123: 1610.61407 | H123: 14.16073374 | I123: Cumple | K123: 669.06035 | L123: 483.78927 | M123: 185.27108 | N123: Cumple
A124: 116 | B124: 020507 | C124: ANCASH | D124: MUNICIPALIDAD DISTRITAL DE COLQUIOC | E124: 1318.31389 | F124: 3124.69287 | G124: 4496.81223 | H124: 29.31663193 | I124: Cumple | K124: 2288.55773 | L124: 1185.07372 | M124: 1103.48401 | N124: Cumple
A125: 117 | B125: 020508 | C125: ANCASH | D125: MUNICIPALIDAD DISTRITAL DE HUALLANCA | E125: 1217.79652 | F125: 9803.96225 | G125: 14581.76216 | H125: 8.35150448 | I125: Cumple | K125: 9137.20684 | L125: 4337.96308 | M125: 4799.24376 | N125: Cumple
A126: 118 | B126: 020509 | C126: ANCASH | D126: MUNICIPALIDAD DISTRITAL DE HUASTA | E126: 279.54931 | F126: 3136.955737 | G126: 3832.71342 | H126: 7.293770219 | I126: Cumple | K126: 2136.04307 | L126: 1267.28531 | M126: 868.75776 | N126: Cumple
A127: 119 | B127: 020510 | C127: ANCASH | D127: MUNICIPALIDAD DISTRITAL DE HUAYLLACAYAN | E127: 836.20686 | F127: 1977.621303 | G127: 2623.52021 | H127: 31.87346744 | I127: Cumple | K127: 2628.87906 | L127: 1304.51462 | M127: 1324.36444 | N127: Cumple
A128: 120 | B128: 020511 | C128: ANCASH | D128: MUNICIPALIDAD DISTRITAL DE LA PRIMAVERA | E128: 189.32621 | F128: 3409.750695 | G128: 1540.55437 | H128: 5.552494212 | I128: Cumple | K128: 4717.7569 | L128: 453.22653 | M128: 4264.53037 | N128: Cumple
A129: 121 | B129: 020512 | C129: ANCASH | D129: MUNICIPALIDAD DISTRITAL DE MANGAS | E129: 290.57691 | F129: 1186.648155 | G129: 1480.47634 | H129: 19.62725794 | I129: Cumple | K129: 1341.40593 | L129: 733.80613 | M129: 607.5998 | N129: Cumple
A130: 122 | B130: 020513 | C130: ANCASH | D130: MUNICIPALIDAD DISTRITAL DE PACLLON | E130: 1559.2445 | F130: 2157.180805 | G130: 2943.81939 | H130: 52.9667175 | I130: Cumple | K130: 1266.85289 | L130: 621.70842 | M130: 645.14447 | N130: Cumple
A131: 123 | B131: 020514 | C131: ANCASH | D131: MUNICIPALIDAD DISTRITAL DE SAN MIGUEL DE CORPANQUI | E131: 152.478 | F131: 1441.907045 | G131: 1914.78141 | H131: 7.96320662 | I131: Cumple | K131: 1277.31158 | L131: 781.30549 | M131: 496.00609 | N131: Cumple
A132: 124 | B132: 020515 | C132: ANCASH | D132: MUNICIPALIDAD DISTRITAL DE TICLLOS | E132: 1779.95779 | F132: 1586.091748 | G132: 1946.74687 | H132: 91.4324208 | I132: Cumple | K132: 1643.58085 | L132: 1328.55885 | M132: 315.022 | N132: Cumple
A133: 125 | B133: 020601 | C133: ANCASH | D133: MUNICIPALIDAD PROVINCIAL DE CARHUAZ | E133: 2954.67067 | F133: 20552.76976 | G133: 19576.64152 | H133: 14.37602184 | I133: Cumple | K133: 22336.64963 | L133: 11005.04659 | M133: 11331.60304 | N133: Cumple
A134: 126 | B134: 020602 | C134: ANCASH | D134: MUNICIPALIDAD DISTRITAL DE ACOPAMPA | E134: 386.76179 | F134: 2009.106605 | G134: 2809.21683 | H134: 13.76760191 | I134: Cumple | K134: 1699.03376 | L134: 884.56926 | M134: 814.4645 | N134: Cumple
A135: 127 | B135: 020603 | C135: ANCASH | D135: MUNICIPALIDAD DISTRITAL DE AMASHCA | E135: 78.32666 | F135: 2030.451398 | G135: 2399.42256 | H135: 3.264396247 | I135: Cumple | K135: 2458.97688 | L135: 1387.25907 | M135: 1071.71781 | N135: Cumple
A136: 128 | B136: 020604 | C136: ANCASH | D136: MUNICIPALIDAD DISTRITAL DE ANTA | E136: 42.11362 | F136: 2798.948652 | G136: 3332.36126 | H136: 1.263777145 | I136: Cumple | K136: 2635.10455 | L136: 1979.58037 | M136: 655.52418 | N136: Cumple
A137: 129 | B137: 020605 | C137: ANCASH | D137: MUNICIPALIDAD DISTRITAL DE ATAQUERO | E137: 218.44304 | F137: 1566.487642 | G137: 1646.84231 | H137: 13.2643568 | I137: Cumple | K137: 1976.00303 | L137: 1346.98898 | M137: 629.01405 | N137: Cumple
A138: 130 | B138: 020606 | C138: ANCASH | D138: MUNICIPALIDAD DISTRITAL DE MARCARA | E138: 1010.91275 | F138: 8161.251157 | G138: 12609.3703 | H138: 8.017154909 | I138: Cumple | K138: 8493.8585 | L138: 3720.64411 | M138: 4773.21439 | N138: Cumple
A139: 131 | B139: 020607 | C139: ANCASH | D139: MUNICIPALIDAD DISTRITAL DE PARIAHUANCA | E139: 78.53764 | F139: 1799.4119 | G139: 1958.37811 | H139: 4.010340986 | I139: Cumple | K139: 1684.09781 | L139: 967.03282 | M139: 717.06499 | N139: Cumple
A140: 132 | B140: 020608 | C140: ANCASH | D140: MUNICIPALIDAD DISTRITAL DE SAN MIGUEL DE ACO | E140: 193.92843 | F140: 2315.994878 | G140: 2654.07818 | H140: 7.306809252 | I140: Cumple | K140: 2470.78224 | L140: 1809.0737 | M140: 661.70854 | N140: Cumple
A141: 133 | B141: 020609 | C141: ANCASH | D141: MUNICIPALIDAD DISTRITAL DE SHILLA | E141: 121.55435 | F141: 2193.347468 | G141: 3245.70277 | H141: 3.745085691 | I141: Cumple | K141: 1724.42855 | L141: 1217.14942 | M141: 507.27913 | N141: Cumple
A142: 134 | B142: 020610 | C142: ANCASH | D142: MUNICIPALIDAD DISTRITAL DE TINCO | E142: 63.69683 | F142: 2397.011452 | G142: 3313.07851 | H142: 1.9225874 | I142: Cumple | K142: 3208.25608 | L142: 1655.76712 | M142: 1552.48896 | N142: Cumple
A143: 135 | B143: 020611 | C143: ANCASH | D143: MUNICIPALIDAD DISTRITAL DE YUNGAR | E143: 334.39103 | F143: 2574.623332 | G143: 3327.6139 | H143: 10.04897323 | I143: Cumple | K143: 2753.53566 | L143: 1565.37644 | M143: 1188.15922 | N143: Cumple
A144: 136 | B144: 020701 | C144: ANCASH | D144: MUNICIPALIDAD PROVINCIAL DE CARLOS FERMIN FITZCARRALD | E144: 5524.29017 | F144: 20020.03261 | G144: 22004.13764 | H144: 25.10568812 | I144: Cumple | K144: 19362.91232 | L144: 13516.31098 | M144: 5846.60134 | N144: Cumple
A145: 137 | B145: 020702 | C145: ANCASH | D145: MUNICIPALIDAD DISTRITAL DE SAN NICOLAS | E145: 283.0617 | F145: 4302.418842 | G145: 5963.91758 | H145: 4.746237623 | I145: Cumple | K145: 3791.70267 | L145: 1851.87621 | M145: 1939.82646 | N145: Cumple
A146: 138 | B146: 020703 | C146: ANCASH | D146: MUNICIPALIDAD DISTRITAL DE YAUYA | E146: 600.86547 | F146: 7172.37507 | G146: 10321.34484 | H146: 5.821581192 | I146: Cumple | K146: 8360.11165 | L146: 3782.81006 | M146: 4577.30159 | N146: Cumple
A147: 139 | B147: 020801 | C147: ANCASH | D147: MUNICIPALIDAD PROVINCIAL DE CASMA | E147: 8678.71549 | F147: 31978.44326 | G147: 40130.01408 | H147: 21.626495 | I147: Cumple | K147: 38793.12997 | L147: 19195.99616 | M147: 19597.13381 | N147: Cumple
A148: 140 | B148: 020802 | C148: ANCASH | D148: MUNICIPALIDAD DISTRITAL DE BUENA VISTA ALTA | E148: 606.83778 | F148: 4853.709397 | G148: 7532.1582 | H148: 8.056625523 | I148: Cumple | K148: 5990.06175 | L148: 2565.52245 | M148: 3424.5393 | N148: Cumple
A149: 141 | B149: 020803 | C149: ANCASH | D149: MUNICIPALIDAD DISTRITAL DE COMANDANTE NOEL | E149: 616.52004 | F149: 2826.211695 | G149: 3536.25366 | H149: 17.43427082 | I149: Cumple | K149: 2626.26716 | L149: 1584.49394 | M149: 1041.77322 | N149: Cumple
A150: 142 | B150: 020804 | C150: ANCASH | D150: MUNICIPALIDAD DISTRITAL DE YAUTAN | E150: 1148.95638 | F150: 6624.686375 | G150: 9892.71866 | H150: 11.61416209 | I150: Cumple | K150: 7897.04733 | L150: 3531.6306 | M150: 4365.41673 | N150: Cumple
A151: 143 | B151: 020901 | C151: ANCASH | D151: MUNICIPALIDAD PROVINCIAL DE CORONGO | E151: 420.19809 | F151: 7724.210115 | G151: 1562.15332 | H151: 5.44001372 | I151: Cumple | K151: 10657.69155 | L151: 6287.29334 | M151: 4370.39821 | N151: Cumple
A152: 144 | B152: 020902 | C152: ANCASH | D152: MUNICIPALIDAD DISTRITAL DE ACO | E152: 349.62534 | F152: 913.8488675 | G152: 629.67747 | H152: 38.25855154 | I152: Cumple | K152: 1137.90513 | L152: 1052.62711 | M152: 85.27802 | N152: Cumple
A153: 145 | B153: 020903 | C153: ANCASH | D153: MUNICIPALIDAD DISTRITAL DE BAMBAS | E153: 53.76876 | F153: 1088.55316 | G153: 954.96471 | H153: 4.939470297 | I153: Cumple | K153: 1171.47222 | L153: 560.76013 | M153: 610.71209 | N153: Cumple
A154: 146 | B154: 020904 | C154: ANCASH | D154: MUNICIPALIDAD DISTRITAL DE CUSCA | E154: 42.46591 | F154: 3223.715757 | G154: 4570.90498 | H154: 0.9290481904 | I154: Cumple | K154: 3844.46154 | L154: 1071.57059 | M154: 2772.89095 | N154: Cumple
A155: 147 | B155: 020905 | C155: ANCASH | D155: MUNICIPALIDAD DISTRITAL DE LA PAMPA | E155: 1000.59841 | F155: 1096.49107 | G155: 1183.0426 | H155: 84.57839219 | I155: Cumple | K155: 1239.20693 | L155: 738.10738 | M155: 501.09955 | N155: Cumple
A156: 148 | B156: 020906 | C156: ANCASH | D156: MUNICIPALIDAD DISTRITAL DE YANAC | E156: 27.45515 | F156: 1159.929862 | G156: 864.42186 | H156: 2.366966391 | I156: Cumple | K156: 1094.89723 | L156: 545.75533 | M156: 549.1419 | N156: Cumple
A157: 149 | B157: 020907 | C157: ANCASH | D157: MUNICIPALIDAD DISTRITAL DE YUPAN | E157: 70.29937 | F157: 904.5807925 | G157: 701.65941 | H157: 7.771486039 | I157: Cumple | K157: 974.1693 | L157: 656.2018 | M157: 317.9675 | N157: Cumple
A158: 150 | B158: 021001 | C158: ANCASH | D158: MUNICIPALIDAD PROVINCIAL DE HUARI | E158: 7937.71543 | F158: 51395.58287 | G158: 92668.21628 | H158: 8.56573672 | I158: Cumple | K158: 54666.62404 | L158: 19966.24242 | M158: 34700.38162 | N158: Cumple
A159: 151 | B159: 021002 | C159: ANCASH | D159: MUNICIPALIDAD DISTRITAL DE ANRA | E159: 1063.13631 | F159: 9269.736537 | G159: 20096.80723 | H159: 5.290075671 | I159: Cumple | K159: 9621.66186 | L159: 2542.44948 | M159: 7079.21238 | N159: Cumple
A160: 152 | B160: 021003 | C160: ANCASH | D160: MUNICIPALIDAD DISTRITAL DE CAJAY | E160: 898.50658 | F160: 17294.32562 | G160: 41520.85996 | H160: 2.163988368 | I160: Cumple | K160: 19332.66538 | L160: 3348.71755 | M160: 15983.94783 | N160: Cumple
A161: 153 | B161: 021004 | C161: ANCASH | D161: MUNICIPALIDAD DISTRITAL DE CHAVIN DE HUANTAR | E161: 21669.96814 | F161: 57429.6898 | G161: 129190.5075 | H161: 16.77365355 | I161: Cumple | K161: 68284.74392 | L161: 10785.23491 | M161: 57499.50901 | N161: Cumple
A162: 154 | B162: 021005 | C162: ANCASH | D162: MUNICIPALIDAD DISTRITAL DE HUACACHI | E162: 882.58679 | F162: 13868.17438 | G162: 29441.59981 | H162: 2.997754184 | I162: Cumple | K162: 18519.82705 | L162: 2665.06377 | M162: 15854.76328 | N162: Cumple
A163: 155 | B163: 021006 | C163: ANCASH | D163: MUNICIPALIDAD DISTRITAL DE HUACCHIS | E163: 534.75495 | F163: 9083.508045 | G163: 18599.24649 | H163: 2.875143089 | I163: Cumple | K163: 6311.8065 | L163: 1504.59735 | M163: 4807.20915 | N163: Cumple
A164: 156 | B164: 021007 | C164: ANCASH | D164: MUNICIPALIDAD DISTRITAL DE HUACHIS | E164: 2387.73409 | F164: 22943.55506 | G164: 49327.75111 | H164: 4.840549257 | I164: Cumple | K164: 23366.13244 | L164: 4593.65314 | M164: 18772.4793 | N164: Cumple
A165: 157 | B165: 021008 | C165: ANCASH | D165: MUNICIPALIDAD DISTRITAL DE HUANTAR | E165: 916.00829 | F165: 15892.38023 | G165: 32716.03326 | H165: 2.799875776 | I165: Cumple | K165: 17414.88707 | L165: 3382.80305 | M165: 14032.08402 | N165: Cumple
A166: 158 | B166: 021009 | C166: ANCASH | D166: MUNICIPALIDAD DISTRITAL DE MASIN | E166: 729.92894 | F166: 8765.898815 | G166: 18156.7643 | H166: 4.020148788 | I166: Cumple | K166: 6702.93871 | L166: 2310.42256 | M166: 4392.51615 | N166: Cumple
A167: 159 | B167: 021010 | C167: ANCASH | D167: MUNICIPALIDAD DISTRITAL DE PAUCAS | E167: 631.34564 | F167: 10571.50829 | G167: 20804.24654 | H167: 3.034696012 | I167: Cumple | K167: 9551.08003 | L167: 887.88947 | M167: 8663.19056 | N167: Cumple
A168: 160 | B168: 021011 | C168: ANCASH | D168: MUNICIPALIDAD DISTRITAL DE PONTO | E168: 1676.08886 | F168: 21471.37863 | G168: 50415.43438 | H168: 3.324555031 | I168: Cumple | K168: 20813.93281 | L168: 6461.7197 | M168: 14352.21311 | N168: Cumple
A169: 161 | B169: 021012 | C169: ANCASH | D169: MUNICIPALIDAD DISTRITAL DE RAHUAPAMPA | E169: 690.70515 | F169: 4122.067985 | G169: 7948.83988 | H169: 8.68938311 | I169: Cumple | K169: 4846.74391 | L169: 1076.91978 | M169: 3769.82413 | N169: Cumple
A170: 162 | B170: 021013 | C170: ANCASH | D170: MUNICIPALIDAD DISTRITAL DE RAPAYAN | E170: 300.73357 | F170: 9795.750835 | G170: 21502.49518 | H170: 1.398598477 | I170: Cumple | K170: 7556.6918 | L170: 1662.37299 | M170: 5894.31881 | N170: Cumple
A171: 163 | B171: 021014 | C171: ANCASH | D171: MUNICIPALIDAD DISTRITAL DE SAN MARCOS | E171: 30678.4173 | F171: 250296.8605 | G171: 567360.5455 | H171: 5.407217253 | I171: Cumple | K171: 327524.3845 | L171: 107290.7151 | M171: 220233.6694 | N171: Cumple
A172: 164 | B172: 021015 | C172: ANCASH | D172: MUNICIPALIDAD DISTRITAL DE SAN PEDRO DE CHANA | E172: 1024.61449 | F172: 16108.55402 | G172: 33170.26515 | H172: 3.088954777 | I172: Cumple | K172: 14166.30488 | L172: 3121.41419 | M172: 11044.89069 | N172: Cumple
A173: 165 | B173: 021016 | C173: ANCASH | D173: MUNICIPALIDAD DISTRITAL DE UCO | E173: 387.699 | F173: 8259.847895 | G173: 17048.87273 | H173: 2.274044778 | I173: Cumple | K173: 6007.98589 | L173: 1106.89386 | M173: 4901.09203 | N173: Cumple
A174: 166 | B174: 021101 | C174: ANCASH | D174: MUNICIPALIDAD PROVINCIAL DE HUARMEY | E174: 11441.51657 | F174: 30770.28692 | G174: 30651.00015 | H174: 37.18365252 | I174: Cumple | K174: 36651.32361 | L174: 17330.44008 | M174: 19320.88353 | N174: Cumple
A175: 167 | B175: 021102 | C175: ANCASH | D175: MUNICIPALIDAD DISTRITAL DE COCHAPETI | E175: 666.43538 | F175: 1401.793183 | G175: 1650.03851 | H175: 40.38908037 | I175: Cumple | K175: 1839.09612 | L175: 944.7638 | M175: 894.33232 | N175: Cumple
A176: 168 | B176: 021103 | C176: ANCASH | D176: MUNICIPALIDAD DISTRITAL DE CULEBRAS | E176: 2680.83838 | F176: 3502.89361 | G176: 5056.76686 | H176: 53.01487006 | I176: Cumple | K176: 3322.36932 | L176: 1568.43421 | M176: 1753.93511 | N176: Cumple
A177: 169 | B177: 021104 | C177: ANCASH | D177: MUNICIPALIDAD DISTRITAL DE HUAYAN | E177: 300.08653 | F177: 1221.929877 | G177: 1278.16677 | H177: 23.47788544 | I177: Cumple | K177: 1140.10794 | L177: 597.76965 | M177: 542.33829 | N177: Cumple
A178: 170 | B178: 021105 | C178: ANCASH | D178: MUNICIPALIDAD DISTRITAL DE MALVAS | E178: 91.63362 | F178: 1326.46587 | G178: 1298.91619 | H178: 6.908102355 | I178: Cumple | K178: 1305.16963 | L178: 683.50084 | M178: 621.66879 | N178: Cumple
A179: 171 | B179: 021201 | C179: ANCASH | D179: MUNICIPALIDAD PROVINCIAL DE HUAYLAS - CARAZ | E179: 4361.22037 | F179: 27635.34287 | G179: 23980.38572 | H179: 15.7813145 | I179: Cumple | K179: 34718.48084 | L179: 13370.45611 | M179: 21348.02473 | N179: Cumple
A180: 172 | B180: 021202 | C180: ANCASH | D180: MUNICIPALIDAD DISTRITAL DE HUALLANCA | E180: 181.99956 | F180: 3403.592595 | G180: 1231.62181 | H180: 5.347278058 | I180: Cumple | K180: 3350.51372 | L180: 1544.22809 | M180: 1806.28563 | N180: Cumple
A181: 173 | B181: 021203 | C181: ANCASH | D181: MUNICIPALIDAD DISTRITAL DE HUATA | E181: 274.57953 | F181: 1702.651725 | G181: 2036.31283 | H181: 13.48415263 | I181: Cumple | K181: 2028.10689 | L181: 1549.19978 | M181: 478.90711 | N181: Cumple
A182: 174 | B182: 021204 | C182: ANCASH | D182: MUNICIPALIDAD DISTRITAL DE HUAYLAS | E182: 417.56222 | F182: 1458.84324 | G182: 2053.65922 | H182: 20.3325954 | I182: Cumple | K182: 1209.47632 | L182: 782.88319 | M182: 426.59313 | N182: Cumple
A183: 175 | B183: 021205 | C183: ANCASH | D183: MUNICIPALIDAD DISTRITAL DE MATO | E183: 335.36566 | F183: 2180.242903 | G183: 1887.78357 | H183: 15.38203196 | I183: Cumple | K183: 3100.50255 | L183: 1614.18077 | M183: 1486.32178 | N183: Cumple
A184: 176 | B184: 021206 | C184: ANCASH | D184: MUNICIPALIDAD DISTRITAL DE PAMPAROMAS | E184: 1317.81429 | F184: 8870.743207 | G184: 12017.75864 | H184: 10.96555797 | I184: Cumple | K184: 8194.83332 | L184: 5079.02491 | M184: 3115.80841 | N184: Cumple
A185: 177 | B185: 021207 | C185: ANCASH | D185: MUNICIPALIDAD DISTRITAL DE PUEBLO LIBRE | E185: 678.04821 | F185: 7365.342122 | G185: 11027.71805 | H185: 6.148581301 | I185: Cumple | K185: 9056.34405 | L185: 3011.39782 | M185: 6044.94623 | N185: Cumple
A186: 178 | B186: 021208 | C186: ANCASH | D186: MUNICIPALIDAD DISTRITAL DE SANTA CRUZ | E186: 1342.19167 | F186: 6262.60229 | G186: 7830.57762 | H186: 17.14039162 | I186: Cumple | K186: 6298.58878 | L186: 3295.95244 | M186: 3002.63634 | N186: Cumple
A187: 179 | B187: 021209 | C187: ANCASH | D187: MUNICIPALIDAD DISTRITAL DE SANTO TORIBIO | E187: 464.25063 | F187: 2493.321667 | G187: 1535.29664 | H187: 18.61976479 | I187: Cumple | K187: 1846.74918 | L187: 757.39004 | M187: 1089.35914 | N187: Cumple
A188: 180 | B188: 021210 | C188: ANCASH | D188: MUNICIPALIDAD DISTRITAL DE YURACMARCA | E188: 538.36892 | F188: 3754.676048 | G188: 3085.46511 | H188: 14.33862504 | I188: Cumple | K188: 3335.52527 | L188: 2194.46323 | M188: 1141.06204 | N188: Cumple
A189: 181 | B189: 021301 | C189: ANCASH | D189: MUNICIPALIDAD PROVINCIAL DE MARISCAL LUZURIAGA - PISCOBAMBA | E189: 5454.76914 | F189: 13831.10777 | G189: 5543.83063 | H189: 39.4384111 | I189: Cumple | K189: 17201.92955 | L189: 13020.58256 | M189: 4181.34699 | N189: Cumple
A190: 182 | B190: 021302 | C190: ANCASH | D190: MUNICIPALIDAD DISTRITAL DE CASCA | E190: 1101.5566 | F190: 6139.675547 | G190: 10912.35115 | H190: 10.09458535 | I190: Cumple | K190: 7408.95749 | L190: 3096.36492 | M190: 4312.59257 | N190: Cumple
A191: 183 | B191: 021303 | C191: ANCASH | D191: MUNICIPALIDAD DISTRITAL DE ELEAZAR GUZMAN BARRON | E191: 101.69779 | F191: 1985.520232 | G191: 2651.46334 | H191: 3.835534456 | I191: Cumple | K191: 2637.12949 | L191: 1447.28187 | M191: 1189.84762 | N191: Cumple
A192: 184 | B192: 021304 | C192: ANCASH | D192: MUNICIPALIDAD DISTRITAL DE FIDEL OLIVAS ESCUDERO | E192: 1005.96904 | F192: 3038.040025 | G192: 4053.15905 | H192: 24.8193823 | I192: Cumple | K192: 3923.46313 | L192: 1996.0768 | M192: 1927.38633 | N192: Cumple
A193: 185 | B193: 021305 | C193: ANCASH | D193: MUNICIPALIDAD DISTRITAL DE LLAMA | E193: 92.29181 | F193: 1991.029595 | G193: 2604.90485 | H193: 3.543001196 | I193: Cumple | K193: 2345.25365 | L193: 1479.61138 | M193: 865.64227 | N193: Cumple
A194: 186 | B194: 021306 | C194: ANCASH | D194: MUNICIPALIDAD DISTRITAL DE LLUMPA | E194: 955.95425 | F194: 7594.473045 | G194: 11218.98318 | H194: 8.520863564 | I194: Cumple | K194: 8592.77716 | L194: 3843.96647 | M194: 4748.81069 | N194: Cumple
A195: 187 | B195: 021307 | C195: ANCASH | D195: MUNICIPALIDAD DISTRITAL DE LUCMA | E195: 73.38174 | F195: 3975.231867 | G195: 5183.43603 | H195: 1.415696838 | I195: Cumple | K195: 4658.10433 | L195: 3018.85667 | M195: 1639.24766 | N195: Cumple
A196: 188 | B196: 021308 | C196: ANCASH | D196: MUNICIPALIDAD DISTRITAL DE MUSGA | E196: 123.71171 | F196: 1779.007117 | G196: 2380.7803 | H196: 5.196267375 | I196: Cumple | K196: 2616.8909 | L196: 1288.61865 | M196: 1328.27225 | N196: Cumple
A197: 189 | B197: 021401 | C197: ANCASH | D197: MUNICIPALIDAD PROVINCIAL DE OCROS | E197: 385.78627 | F197: 8594.190853 | G197: 1484.10633 | H197: 4.488919046 | I197: Cumple | K197: 9956.5973 | L197: 8364.51908 | M197: 1592.07822 | N197: Cumple
A198: 190 | B198: 021402 | C198: ANCASH | D198: MUNICIPALIDAD DISTRITAL DE ACAS | E198: 82.73624 | F198: 1420.973133 | G198: 1884.86293 | H198: 4.389509639 | I198: Cumple | K198: 1466.04381 | L198: 679.91054 | M198: 786.13327 | N198: Cumple
A199: 191 | B199: 021403 | C199: ANCASH | D199: MUNICIPALIDAD DISTRITAL DE CAJAMARQUILLA | E199: 40.17045 | F199: 856.719 | G199: 539.0845 | H199: 4.688871147 | I199: Cumple | K199: 1226.62902 | L199: 947.82687 | M199: 278.80215 | N199: Cumple
A200: 192 | B200: 021404 | C200: ANCASH | D200: MUNICIPALIDAD DISTRITAL DE CARHUAPAMPA | E200: 69.59666 | F200: 1330.39735 | G200: 1030.19386 | H200: 5.231268688 | I200: Cumple | K200: 1651.76868 | L200: 1274.43191 | M200: 377.33677 | N200: Cumple
A201: 193 | B201: 021405 | C201: ANCASH | D201: MUNICIPALIDAD DISTRITAL DE COCHAS | E201: 416.36511 | F201: 1902.724898 | G201: 2589.72934 | H201: 16.07755311 | I201: Cumple | K201: 2329.52833 | L201: 1018.54222 | M201: 1310.98611 | N201: Cumple
A202: 194 | B202: 021406 | C202: ANCASH | D202: MUNICIPALIDAD DISTRITAL DE CONGAS | E202: 200.56145 | F202: 1716.77745 | G202: 2647.6554 | H202: 7.575058673 | I202: Cumple | K202: 2206.44773 | L202: 819.78483 | M202: 1386.6629 | N202: Cumple
... 1687 more rows

Sheet DPTO (hidden)
A1: -------------------- | B1: CODI_DEP | C1: DESC_DEP
A2: 01:AMAZONAS | B2: 01 | C2: AMAZONAS
A3: 02:ANCASH | B3: 02 | C3: ANCASH
A4: 03:APURIMAC | B4: 03 | C4: APURIMAC
A5: 04:AREQUIPA | B5: 04 | C5: AREQUIPA
A6: 05:AYACUCHO | B6: 05 | C6: AYACUCHO
A7: 06:CAJAMARCA | B7: 06 | C7: CAJAMARCA
A8: 07:PROV CONSTIT DEL CALLAO | B8: 07 | C8: PROV CONSTIT DEL CALLAO
A9: 08:CUSCO | B9: 08 | C9: CUSCO
A10: 09:HUANCAVELICA | B10: 09 | C10: HUANCAVELICA
A11: 10:HUANUCO | B11: 10 | C11: HUANUCO
A12: 11:ICA | B12: 11 | C12: ICA
A13: 12:JUNIN | B13: 12 | C13: JUNIN
A14: 13:LA LIBERTAD | B14: 13 | C14: LA LIBERTAD
A15: 14:LAMBAYEQUE | B15: 14 | C15: LAMBAYEQUE
A16: 15:LIMA | B16: 15 | C16: LIMA
A17: 16:LORETO | B17: 16 | C17: LORETO
A18: 17:MADRE DE DIOS | B18: 17 | C18: MADRE DE DIOS
A19: 18:MOQUEGUA | B19: 18 | C19: MOQUEGUA
A20: 19:PASCO | B20: 19 | C20: PASCO
A21: 20:PIURA | B21: 20 | C21: PIURA
A22: 21:PUNO | B22: 21 | C22: PUNO
A23: 22:SAN MARTIN | B23: 22 | C23: SAN MARTIN
A24: 23:TACNA | B24: 23 | C24: TACNA
A25: 24:TUMBES | B25: 24 | C25: TUMBES
A26: 25:UCAYALI | B26: 25 | C26: UCAYALI

Sheet PROV (hidden)
A1: PROV | B1: CODI_DEP | C1: CODI_PRO | D1: DESC_PRO
A2: 0101:CHACHAPOYAS | B2: 01 | C2: 01 | D2: CHACHAPOYAS
A3: 0102:BAGUA | B3: 01 | C3: 02 | D3: BAGUA
A4: 0103:BONGARA | B4: 01 | C4: 03 | D4: BONGARA
A5: 0104:CONDORCANQUI | B5: 01 | C5: 04 | D5: CONDORCANQUI
A6: 0105:LUYA | B6: 01 | C6: 05 | D6: LUYA
A7: 0106:RODRIGUEZ DE MENDOZA | B7: 01 | C7: 06 | D7: RODRIGUEZ DE MENDOZA
A8: 0107:UCTUBAMBA | B8: 01 | C8: 07 | D8: UCTUBAMBA
A9: 0201:HUARAZ | B9: 02 | C9: 01 | D9: HUARAZ
A10: 0202:AIJA | B10: 02 | C10: 02 | D10: AIJA
A11: 0203:ANTONIO RAIMONDI | B11: 02 | C11: 03 | D11: ANTONIO RAIMONDI
A12: 0204:ASUNCION | B12: 02 | C12: 04 | D12: ASUNCION
A13: 0205:BOLOGNESI | B13: 02 | C13: 05 | D13: BOLOGNESI
A14: 0206:CARHUAZ | B14: 02 | C14: 06 | D14: CARHUAZ
A15: 0207:CARLOS FERMIN FITZCARRALD | B15: 02 | C15: 07 | D15: CARLOS FERMIN FITZCARRALD
A16: 0208:CASMA | B16: 02 | C16: 08 | D16: CASMA
A17: 0209:CORONGO | B17: 02 | C17: 09 | D17: CORONGO
A18: 0210:HUARI | B18: 02 | C18: 10 | D18: HUARI
A19: 0211:HUARMEY | B19: 02 | C19: 11 | D19: HUARMEY
A20: 0212:HUAYLAS | B20: 02 | C20: 12 | D20: HUAYLAS
A21: 0213:MARISCAL LUZURIAGA | B21: 02 | C21: 13 | D21: MARISCAL LUZURIAGA
A22: 0214:OCROS | B22: 02 | C22: 14 | D22: OCROS
A23: 0215:PALLASCA | B23: 02 | C23: 15 | D23: PALLASCA
A24: 0216:POMABAMBA | B24: 02 | C24: 16 | D24: POMABAMBA
A25: 0217:RECUAY | B25: 02 | C25: 17 | D25: RECUAY
A26: 0218:SANTA | B26: 02 | C26: 18 | D26: SANTA
A27: 0219:SIHUAS | B27: 02 | C27: 19 | D27: SIHUAS
A28: 0220:YUNGAY | B28: 02 | C28: 20 | D28: YUNGAY
A29: 0301:ABANCAY | B29: 03 | C29: 01 | D29: ABANCAY
A30: 0302:ANDAHUAYLAS | B30: 03 | C30: 02 | D30: ANDAHUAYLAS
A31: 0303:ANTABAMBA | B31: 03 | C31: 03 | D31: ANTABAMBA
A32: 0304:AYMARAES | B32: 03 | C32: 04 | D32: AYMARAES
A33: 0305:COTABAMBA | B33: 03 | C33: 05 | D33: COTABAMBA
A34: 0306:CHINCHEROS | B34: 03 | C34: 06 | D34: CHINCHEROS
A35: 0307:GRAU | B35: 03 | C35: 07 | D35: GRAU
A36: 0401:AREQUIPA | B36: 04 | C36: 01 | D36: AREQUIPA
A37: 0402:CAMANA | B37: 04 | C37: 02 | D37: CAMANA
A38: 0403:CARAVELI | B38: 04 | C38: 03 | D38: CARAVELI
A39: 0404:CASTILLA | B39: 04 | C39: 04 | D39: CASTILLA
A40: 0405:CAYLLOMA | B40: 04 | C40: 05 | D40: CAYLLOMA
A41: 0406:CONDESUYOS | B41: 04 | C41: 06 | D41: CONDESUYOS
A42: 0407:ISLAY | B42: 04 | C42: 07 | D42: ISLAY
A43: 0408:LA UNION | B43: 04 | C43: 08 | D43: LA UNION
A44: 0501:HUAMANGA | B44: 05 | C44: 01 | D44: HUAMANGA
A45: 0502:CANGALLO | B45: 05 | C45: 02 | D45: CANGALLO
A46: 0503:HUANCA SANCOS | B46: 05 | C46: 03 | D46: HUANCA SANCOS
A47: 0504:HUANTA | B47: 05 | C47: 04 | D47: HUANTA
A48: 0505:LA MAR | B48: 05 | C48: 05 | D48: LA MAR
A49: 0506:LUCANAS | B49: 05 | C49: 06 | D49: LUCANAS
A50: 0507:PARINACOCHAS | B50: 05 | C50: 07 | D50: PARINACOCHAS
A51: 0508:PAUCAR DEL SARA SARA | B51: 05 | C51: 08 | D51: PAUCAR DEL SARA SARA
A52: 0509:SUCRE | B52: 05 | C52: 09 | D52: SUCRE
A53: 0510:VICTOR FAJARDO | B53: 05 | C53: 10 | D53: VICTOR FAJARDO
A54: 0511:VILCASHUAMAN | B54: 05 | C54: 11 | D54: VILCASHUAMAN
A55: 0601:CAJAMARCA | B55: 06 | C55: 01 | D55: CAJAMARCA
A56: 0602:CAJABAMBA | B56: 06 | C56: 02 | D56: CAJABAMBA
A57: 0603:CELENDIN | B57: 06 | C57: 03 | D57: CELENDIN
A58: 0604:CHOTA | B58: 06 | C58: 04 | D58: CHOTA
A59: 0605:CONTUMAZA | B59: 06 | C59: 05 | D59: CONTUMAZA
A60: 0606:CUTERVO | B60: 06 | C60: 06 | D60: CUTERVO
A61: 0607:HUALGAYOC | B61: 06 | C61: 07 | D61: HUALGAYOC
A62: 0608:JAEN | B62: 06 | C62: 08 | D62: JAEN
A63: 0609:SAN IGNACIO | B63: 06 | C63: 09 | D63: SAN IGNACIO
A64: 0610:SAN MARCOS | B64: 06 | C64: 10 | D64: SAN MARCOS
A65: 0611:SAN MIGUEL | B65: 06 | C65: 11 | D65: SAN MIGUEL
A66: 0612:SAN PABLO | B66: 06 | C66: 12 | D66: SAN PABLO
A67: 0613:SANTA CRUZ | B67: 06 | C67: 13 | D67: SANTA CRUZ
A68: 0701:PROV. CALLAO | B68: 07 | C68: 01 | D68: PROV. CALLAO
A69: 0801:CUSCO | B69: 08 | C69: 01 | D69: CUSCO
A70: 0802:ACOMAYO | B70: 08 | C70: 02 | D70: ACOMAYO
A71: 0803:ANTA | B71: 08 | C71: 03 | D71: ANTA
A72: 0804:CALCA | B72: 08 | C72: 04 | D72: CALCA
A73: 0805:CANAS | B73: 08 | C73: 05 | D73: CANAS
A74: 0806:CANCHIS | B74: 08 | C74: 06 | D74: CANCHIS
A75: 0807:CHUMBIVILCAS | B75: 08 | C75: 07 | D75: CHUMBIVILCAS
A76: 0808:ESPINAR | B76: 08 | C76: 08 | D76: ESPINAR
A77: 0809:LA CONVENCION | B77: 08 | C77: 09 | D77: LA CONVENCION
A78: 0810:PARURO | B78: 08 | C78: 10 | D78: PARURO
A79: 0811:PAUCARTAMBO | B79: 08 | C79: 11 | D79: PAUCARTAMBO
A80: 0812:QUISPICANCHIS | B80: 08 | C80: 12 | D80: QUISPICANCHIS
A81: 0813:URUBAMBA | B81: 08 | C81: 13 | D81: URUBAMBA
A82: 0901:HUANCAVELICA | B82: 09 | C82: 01 | D82: HUANCAVELICA
A83: 0902:ACOBAMBA | B83: 09 | C83: 02 | D83: ACOBAMBA
A84: 0903:ANGARAES | B84: 09 | C84: 03 | D84: ANGARAES
A85: 0904:CASTROVIRREYNA | B85: 09 | C85: 04 | D85: CASTROVIRREYNA
A86: 0905:CHURCAMPA | B86: 09 | C86: 05 | D86: CHURCAMPA
A87: 0906:HUAYTARA | B87: 09 | C87: 06 | D87: HUAYTARA
A88: 0907:TAYACAJA | B88: 09 | C88: 07 | D88: TAYACAJA
A89: 1001:HUANUCO | B89: 10 | C89: 01 | D89: HUANUCO
A90: 1002:AMBO | B90: 10 | C90: 02 | D90: AMBO
A91: 1003:DOS DE MAYO | B91: 10 | C91: 03 | D91: DOS DE MAYO
A92: 1004:HUACAYBAMBA | B92: 10 | C92: 04 | D92: HUACAYBAMBA
A93: 1005:HUAMALIES | B93: 10 | C93: 05 | D93: HUAMALIES
A94: 1006:LEONCIO PRADO | B94: 10 | C94: 06 | D94: LEONCIO PRADO
A95: 1007:MARANON | B95: 10 | C95: 07 | D95: MARANON
A96: 1008:PACHITEA | B96: 10 | C96: 08 | D96: PACHITEA
A97: 1009:PUERTO INCA | B97: 10 | C97: 09 | D97: PUERTO INCA
A98: 1010:LAURICOCHA | B98: 10 | C98: 10 | D98: LAURICOCHA
A99: 1011:YAROWILCA | B99: 10 | C99: 11 | D99: YAROWILCA
A100: 1101:ICA | B100: 11 | C100: 01 | D100: ICA
A101: 1102:CHINCHA | B101: 11 | C101: 02 | D101: CHINCHA
A102: 1103:NAZCA | B102: 11 | C102: 03 | D102: NAZCA
A103: 1104:PALPA | B103: 11 | C103: 04 | D103: PALPA
A104: 1105:PISCO | B104: 11 | C104: 05 | D104: PISCO
A105: 1201:HUANCAYO | B105: 12 | C105: 01 | D105: HUANCAYO
A106: 1202:CONCEPCION | B106: 12 | C106: 02 | D106: CONCEPCION
A107: 1203:CHANCHAMAYO | B107: 12 | C107: 03 | D107: CHANCHAMAYO
A108: 1204:JAUJA | B108: 12 | C108: 04 | D108: JAUJA
A109: 1205:JUNIN | B109: 12 | C109: 05 | D109: JUNIN
A110: 1206:SATIPO | B110: 12 | C110: 06 | D110: SATIPO
A111: 1207:TARMA | B111: 12 | C111: 07 | D111: TARMA
A112: 1208:YAULI | B112: 12 | C112: 08 | D112: YAULI
A113: 1209:CHUPACA | B113: 12 | C113: 09 | D113: CHUPACA
A114: 1301:TRUJILLO | B114: 13 | C114: 01 | D114: TRUJILLO
A115: 1302:ASCOPE | B115: 13 | C115: 02 | D115: ASCOPE
A116: 1303:BOLIVAR | B116: 13 | C116: 03 | D116: BOLIVAR
A117: 1304:CHEPEN | B117: 13 | C117: 04 | D117: CHEPEN
A118: 1305:JULCAN | B118: 13 | C118: 05 | D118: JULCAN
A119: 1306:OTUZCO | B119: 13 | C119: 06 | D119: OTUZCO
A120: 1307:PACASMAYO | B120: 13 | C120: 07 | D120: PACASMAYO
A121: 1308:PATAZ | B121: 13 | C121: 08 | D121: PATAZ
A122: 1309:SANCHEZ CARRION | B122: 13 | C122: 09 | D122: SANCHEZ CARRION
A123: 1310:SANTIAGO DE CHUCO | B123: 13 | C123: 10 | D123: SANTIAGO DE CHUCO
A124: 1311:GRAN CHIMU | B124: 13 | C124: 11 | D124: GRAN CHIMU
A125: 1312:VIRU | B125: 13 | C125: 12 | D125: VIRU
A126: 1401:CHICLAYO | B126: 14 | C126: 01 | D126: CHICLAYO
A127: 1402:FERRENAFE | B127: 14 | C127: 02 | D127: FERRENAFE
A128: 1403:LAMBAYEQUE | B128: 14 | C128: 03 | D128: LAMBAYEQUE
A129: 1501:LIMA | B129: 15 | C129: 01 | D129: LIMA
A130: 1502:BARRANCA | B130: 15 | C130: 02 | D130: BARRANCA
A131: 1503:CAJATAMBO | B131: 15 | C131: 03 | D131: CAJATAMBO
A132: 1504:CANTA | B132: 15 | C132: 04 | D132: CANTA
A133: 1505:CAÑETE | B133: 15 | C133: 05 | D133: CAÑETE
A134: 1506:HUARAL | B134: 15 | C134: 06 | D134: HUARAL
A135: 1507:HUAROCHIRI | B135: 15 | C135: 07 | D135: HUAROCHIRI
A136: 1508:HUAURA | B136: 15 | C136: 08 | D136: HUAURA
A137: 1509:OYON | B137: 15 | C137: 09 | D137: OYON
A138: 1510:YAUYOS | B138: 15 | C138: 10 | D138: YAUYOS
A139: 1601:MAYNAS | B139: 16 | C139: 01 | D139: MAYNAS
A140: 1602:ALTO AMAZONAS | B140: 16 | C140: 02 | D140: ALTO AMAZONAS
A141: 1603:LORETO | B141: 16 | C141: 03 | D141: LORETO
A142: 1604:RAMON CASTILLA | B142: 16 | C142: 04 | D142: RAMON CASTILLA
A143: 1605:REQUENA | B143: 16 | C143: 05 | D143: REQUENA
A144: 1606:UCAYALI | B144: 16 | C144: 06 | D144: UCAYALI
A145: 1607:DATEM DEL MARAÑON | B145: 16 | C145: 07 | D145: DATEM DEL MARAÑON
A146: 1608:PUTUMAYO | B146: 16 | C146: 08 | D146: PUTUMAYO
A147: 1701:TAMBOPATA | B147: 17 | C147: 01 | D147: TAMBOPATA
A148: 1702:MANU | B148: 17 | C148: 02 | D148: MANU
A149: 1703:TAHUAMANU | B149: 17 | C149: 03 | D149: TAHUAMANU
A150: 1801:MARISCAL NIETO | B150: 18 | C150: 01 | D150: MARISCAL NIETO
A151: 1802:GENERAL SANCHEZ CERRO | B151: 18 | C151: 02 | D151: GENERAL SANCHEZ CERRO
A152: 1803:ILO | B152: 18 | C152: 03 | D152: ILO
A153: 1901:PASCO | B153: 19 | C153: 01 | D153: PASCO
A154: 1902:DANIEL A. CARRION | B154: 19 | C154: 02 | D154: DANIEL A. CARRION
A155: 1903:OXAPAMPA | B155: 19 | C155: 03 | D155: OXAPAMPA
A156: 2001:PIURA | B156: 20 | C156: 01 | D156: PIURA
A157: 2002:AYABACA | B157: 20 | C157: 02 | D157: AYABACA
A158: 2003:HUANCABAMBA | B158: 20 | C158: 03 | D158: HUANCABAMBA
A159: 2004:MORROPON | B159: 20 | C159: 04 | D159: MORROPON
A160: 2005:PAITA | B160: 20 | C160: 05 | D160: PAITA
A161: 2006:SULLANA | B161: 20 | C161: 06 | D161: SULLANA
A162: 2007:TALARA | B162: 20 | C162: 07 | D162: TALARA
A163: 2008:SECHURA | B163: 20 | C163: 08 | D163: SECHURA
A164: 2101:PUNO | B164: 21 | C164: 01 | D164: PUNO
A165: 2102:AZANGARO | B165: 21 | C165: 02 | D165: AZANGARO
A166: 2103:CARABAYA | B166: 21 | C166: 03 | D166: CARABAYA
A167: 2104:CHUCUITO | B167: 21 | C167: 04 | D167: CHUCUITO
A168: 2105:EL COLLAO | B168: 21 | C168: 05 | D168: EL COLLAO
A169: 2106:HUANCANE | B169: 21 | C169: 06 | D169: HUANCANE
A170: 2107:LAMPA | B170: 21 | C170: 07 | D170: LAMPA
A171: 2108:MELGAR | B171: 21 | C171: 08 | D171: MELGAR
A172: 2109:MOHO | B172: 21 | C172: 09 | D172: MOHO
A173: 2110:SAN ANTONIO DE PUTINA | B173: 21 | C173: 10 | D173: SAN ANTONIO DE PUTINA
A174: 2111:SAN ROMAN | B174: 21 | C174: 11 | D174: SAN ROMAN
A175: 2112:SANDIA | B175: 21 | C175: 12 | D175: SANDIA
A176: 2113:YUNGUYO | B176: 21 | C176: 13 | D176: YUNGUYO
A177: 2201:MOYOBAMBA | B177: 22 | C177: 01 | D177: MOYOBAMBA
A178: 2202:BELLAVISTA | B178: 22 | C178: 02 | D178: BELLAVISTA
A179: 2203:EL DORADO | B179: 22 | C179: 03 | D179: EL DORADO
A180: 2204:HUALLAGA | B180: 22 | C180: 04 | D180: HUALLAGA
A181: 2205:LAMAS | B181: 22 | C181: 05 | D181: LAMAS
A182: 2206:MARISCAL CACERES | B182: 22 | C182: 06 | D182: MARISCAL CACERES
A183: 2207:PICOTA | B183: 22 | C183: 07 | D183: PICOTA
A184: 2208:RIOJA | B184: 22 | C184: 08 | D184: RIOJA
A185: 2209:SAN MARTIN | B185: 22 | C185: 09 | D185: SAN MARTIN
A186: 2210:TOCACHE | B186: 22 | C186: 10 | D186: TOCACHE
A187: 2301:TACNA | B187: 23 | C187: 01 | D187: TACNA
A188: 2302:CANDARAVE | B188: 23 | C188: 02 | D188: CANDARAVE
A189: 2303:JORGE BASADRE | B189: 23 | C189: 03 | D189: JORGE BASADRE
A190: 2304:TARATA | B190: 23 | C190: 04 | D190: TARATA
A191: 2401:TUMBES | B191: 24 | C191: 01 | D191: TUMBES
A192: 2402:CONTRALMIRANTE VILLAR | B192: 24 | C192: 02 | D192: CONTRALMIRANTE VILLAR
A193: 2403:ZARUMILLA | B193: 24 | C193: 03 | D193: ZARUMILLA
A194: 2501:CORONEL PORTILLO | B194: 25 | C194: 01 | D194: CORONEL PORTILLO
A195: 2502:ATALAYA | B195: 25 | C195: 02 | D195: ATALAYA
A196: 2503:PADRE ABAD | B196: 25 | C196: 03 | D196: PADRE ABAD
A197: 2504:PURUS | B197: 25 | C197: 04 | D197: PURUS

Sheet ENTIDAD (hidden)
A1: ENTIDADES
A2: 010000 : GOBIERNO REGIONAL DE AMAZONAS
A3: 020000 : GOBIERNO REGIONAL DE ANCASH
A4: 030000 : GOBIERNO REGIONAL DE APURIMAC
A5: 040000 : GOBIERNO REGIONAL DE AREQUIPA
A6: 050000 : GOBIERNO REGIONAL DE AYACUCHO
A7: 060000 : GOBIERNO REGIONAL DE CAJAMARCA
A8: 070000 : GOBIERNO REGIONAL DEL CALLAO
A9: 080000 : GOBIERNO REGIONAL DE CUSCO
A10: 090000 : GOBIERNO REGIONAL DE HUANCAVELICA
A11: 100000 : GOBIERNO REGIONAL DE HUANUCO
A12: 110000 : GOBIERNO REGIONAL DE ICA
A13: 120000 : GOBIERNO REGIONAL DE JUNIN
A14: 130000 : GOBIERNO REGIONAL DE LA LIBERTAD
A15: 140000 : GOBIERNO REGIONAL DE LAMBAYEQUE
A16: 150000 : GOBIERNO REGIONAL DE LIMA
A17: 160000 : GOBIERNO REGIONAL DE LORETO
A18: 170000 : GOBIERNO REGIONAL DE MADRE DE DIOS
A19: 180000 : GOBIERNO REGIONAL DE MOQUEGUA
A20: 190000 : GOBIERNO REGIONAL DE PASCO
A21: 200000 : GOBIERNO REGIONAL DE PIURA
A22: 210000 : GOBIERNO REGIONAL DE PUNO
A23: 220000 : GOBIERNO REGIONAL DE SAN MARTIN
A24: 230000 : GOBIERNO REGIONAL DE TACNA
A25: 240000 : GOBIERNO REGIONAL DE TUMBES
A26: 250000 : GOBIERNO REGIONAL DE UCAYALI
A27: 260000 : REGION LIMA METROPOLITANA
A28: 010101 : MP DE CHACHAPOYAS
A29: 010102 : MD DE ASUNCION
A30: 010103 : MD DE BALSAS
A31: 010104 : MD DE CHETO
A32: 010105 : MD DE CHILIQUIN
A33: 010106 : MD DE CHUQUIBAMBA
A34: 010107 : MD DE GRANADA
A35: 010108 : MD DE HUANCAS
A36: 010109 : MD DE JALCA GRANDE
A37: 010110 : MD DE LEIMEBAMBA
A38: 010111 : MD DE LEVANTO
A39: 010112 : MD DE MAGDALENA
A40: 010113 : MD DE MARISCAL CASTILLA
A41: 010114 : MD DE MOLINOPAMPA
A42: 010115 : MD DE MONTEVIDEO
A43: 010116 : MD DE OLLEROS
A44: 010117 : MD DE QUINJALCA
A45: 010118 : MD DE SAN FRANCISCO DE DAGUAS
A46: 010119 : MD DE SAN ISIDRO DE MAYNO
A47: 010120 : MD DE SOLOCO
A48: 010121 : MD DE SONCHE
A49: 010201 : MP DE BAGUA - LA PECA
A50: 010202 : MD DE ARAMANGO
A51: 010203 : MD DE COPALLIN
A52: 010204 : MD DE EL PARCO
A53: 010205 : MD DE IMAZA
A54: 010206 : MD DE LA PECA
A55: 010301 : MP DE BONGARA - JUMBILLA
A56: 010302 : MD DE CHISQUILLA
A57: 010303 : MD DE CHURUJA
A58: 010304 : MD DE COROSHA
A59: 010305 : MD DE CUISPES
A60: 010306 : MD DE FLORIDA
A61: 010307 : MD DE JAZAN
A62: 010308 : MD DE RECTA
A63: 010309 : MD DE SAN CARLOS
A64: 010310 : MD DE SHIPASBAMBA
A65: 010311 : MD DE VALERA
A66: 010312 : MD DE YAMBRASBAMBA
A67: 010401 : MP DE CONDORCANQUI - NIEVA
A68: 010402 : MD DE EL CENEPA
A69: 010403 : MD DE RIO SANTIAGO
A70: 010501 : MP DE LUYA - LAMUD
A71: 010502 : MD DE CAMPORREDONDO
A72: 010503 : MD DE COCABAMBA
A73: 010504 : MD DE COLCAMAR
A74: 010505 : MD DE CONILA
A75: 010506 : MD DE INGUILPATA
A76: 010507 : MD DE LONGUITA
A77: 010508 : MD DE LONYA CHICO
A78: 010509 : MD DE LUYA
A79: 010510 : MD DE LUYA VIEJO
A80: 010511 : MD DE MARIA
A81: 010512 : MD DE OCALLI
A82: 010513 : MD DE OCUMAL
A83: 010514 : MD DE PIZUQUIA
A84: 010515 : MD DE PROVIDENCIA
A85: 010516 : MD DE SAN CRISTOBAL DE OLTO
A86: 010517 : MD DE SAN FRANCISCO DE YESO
A87: 010518 : MD DE SAN JERONIMO DE PACLAS
A88: 010519 : MD DE SAN JUAN DE LOPECANCHA
A89: 010520 : MD DE SANTA CATALINA
A90: 010521 : MD DE SANTO TOMAS
A91: 010522 : MD DE TINGO
A92: 010523 : MD DE TRITA
A93: 010601 : MP DE RODRIGUEZ DE MENDOZA - SAN NICOLAS
A94: 010602 : MD DE CHIRIMOTO
A95: 010603 : MD DE COCHAMAL
A96: 010604 : MD DE HUAMBO
A97: 010605 : MD DE LIMABAMBA
A98: 010606 : MD DE LONGAR
A99: 010607 : MD DE MARISCAL BENAVIDES
A100: 010608 : MD DE MILPUC
A101: 010609 : MD DE OMIA
A102: 010610 : MD DE SANTA ROSA
A103: 010611 : MD DE TOTORA
A104: 010612 : MD DE VISTA ALEGRE
A105: 010701 : MP DE UTCUBAMBA - BAGUA GRANDE
A106: 010702 : MD DE CAJARURO
A107: 010703 : MD DE CUMBA
A108: 010704 : MD DE EL MILAGRO
A109: 010705 : MD DE JAMALCA
A110: 010706 : MD DE LONYA GRANDE
A111: 010707 : MD DE YAMON
A112: 020101 : MP DE HUARAZ
A113: 020102 : MD DE COCHABAMBA
A114: 020103 : MD DE COLCABAMBA
A115: 020104 : MD DE HUANCHAY
A116: 020105 : MD DE INDEPENDENCIA
A117: 020106 : MD DE JANGAS
A118: 020107 : MD DE LA LIBERTAD
A119: 020108 : MD DE OLLEROS
A120: 020109 : MD DE PAMPAS
A121: 020110 : MD DE PARIACOTO
A122: 020111 : MD DE PIRA
A123: 020112 : MD DE TARICA
A124: 020201 : MP DE AIJA
A125: 020202 : MD DE CORIS
A126: 020203 : MD DE HUACLLAN
A127: 020204 : MD DE LA MERCED
A128: 020205 : MD DE SUCCHA
A129: 020301 : MP DE ANTONIO RAYMONDI - LLAMELLIN
A130: 020302 : MD DE ACSO
A131: 020303 : MD DE CHACCHO
A132: 020304 : MD DE CHINGAS
A133: 020305 : MD DE MIRGAS
A134: 020306 : MD DE SAN JUAN DE RONTOY
A135: 020401 : MP DE ASUNCION - CHACAS
A136: 020402 : MD DE ACOCHACA
A137: 020501 : MP DE BOLOGNESI - CHIQUIAN
A138: 020502 : MD DE ABELARDO PARDO LAZAMETA
A139: 020503 : MD DE ANTONIO RAYMONDI
A140: 020504 : MD DE AQUIA
A141: 020505 : MD DE CAJACAY
A142: 020506 : MD DE CANIS
A143: 020507 : MD DE COLQUIOC
A144: 020508 : MD DE HUALLANCA
A145: 020509 : MD DE HUASTA
A146: 020510 : MD DE HUAYLLACAYAN
A147: 020511 : MD DE LA PRIMAVERA
A148: 020512 : MD DE MANGAS
A149: 020513 : MD DE PACLLON
A150: 020514 : MD DE SAN MIGUEL DE CORPANQUI
A151: 020515 : MD DE TICLLOS
A152: 020601 : MP DE CARHUAZ
A153: 020602 : MD DE ACOPAMPA
A154: 020603 : MD DE AMASHCA
A155: 020604 : MD DE ANTA
A156: 020605 : MD DE ATAQUERO
A157: 020606 : MD DE MARCARA
A158: 020607 : MD DE PARIAHUANCA
A159: 020608 : MD DE SAN MIGUEL DE ACO
A160: 020609 : MD DE SHILLA
A161: 020610 : MD DE TINCO
A162: 020611 : MD DE YUNGAR
A163: 020701 : MP DE CARLOS FERMIN FITZCARRALD
A164: 020702 : MD DE SAN NICOLAS
A165: 020703 : MD DE YAUYA
A166: 020801 : MP DE CASMA
A167: 020802 : MD DE BUENA VISTA ALTA
A168: 020803 : MD DE COMANDANTE NOEL
A169: 020804 : MD DE YAUTAN
A170: 020901 : MP DE CORONGO
A171: 020902 : MD DE ACO
A172: 020903 : MD DE BAMBAS
A173: 020904 : MD DE CUSCA
A174: 020905 : MD DE LA PAMPA
A175: 020906 : MD DE YANAC
A176: 020907 : MD DE YUPAN
A177: 021001 : MP DE HUARI
A178: 021002 : MD DE ANRA
A179: 021003 : MD DE CAJAY
A180: 021004 : MD DE CHAVIN DE HUANTAR
A181: 021005 : MD DE HUACACHI
A182: 021006 : MD DE HUACCHIS
A183: 021007 : MD DE HUACHIS
A184: 021008 : MD DE HUANTAR
A185: 021009 : MD DE MASIN
A186: 021010 : MD DE PAUCAS
A187: 021011 : MD DE PONTO
A188: 021012 : MD DE RAHUAPAMPA
A189: 021013 : MD DE RAPAYAN
A190: 021014 : MD DE SAN MARCOS
A191: 021015 : MD DE SAN PEDRO DE CHANA
A192: 021016 : MD DE UCO
A193: 021101 : MP DE HUARMEY
A194: 021102 : MD DE COCHAPETI
A195: 021103 : MD DE CULEBRAS
A196: 021104 : MD DE HUAYAN
A197: 021105 : MD DE MALVAS
A198: 021201 : MP DE HUAYLAS - CARAZ
A199: 021202 : MD DE HUALLANCA
A200: 021203 : MD DE HUATA
... 1701 more rows

Sheet GRS (hidden)
A1: -----------------------------------------------
A2: 010000 : GOBIERNO REGIONAL DE AMAZONAS
A3: 020000 : GOBIERNO REGIONAL DE ANCASH
A4: 030000 : GOBIERNO REGIONAL DE APURIMAC
A5: 040000 : GOBIERNO REGIONAL DE AREQUIPA
A6: 050000 : GOBIERNO REGIONAL DE AYACUCHO
A7: 060000 : GOBIERNO REGIONAL DE CAJAMARCA
A8: 070000 : GOBIERNO REGIONAL DEL CALLAO
A9: 080000 : GOBIERNO REGIONAL DE CUSCO
A10: 090000 : GOBIERNO REGIONAL DE HUANCAVELICA
A11: 100000 : GOBIERNO REGIONAL DE HUANUCO
A12: 110000 : GOBIERNO REGIONAL DE ICA
A13: 120000 : GOBIERNO REGIONAL DE JUNIN
A14: 130000 : GOBIERNO REGIONAL DE LA LIBERTAD
A15: 140000 : GOBIERNO REGIONAL DE LAMBAYEQUE
A16: 150000 : GOBIERNO REGIONAL DE LIMA
A17: 160000 : GOBIERNO REGIONAL DE LORETO
A18: 170000 : GOBIERNO REGIONAL DE MADRE DE DIOS
A19: 180000 : GOBIERNO REGIONAL DE MOQUEGUA
A20: 190000 : GOBIERNO REGIONAL DE PASCO
A21: 200000 : GOBIERNO REGIONAL DE PIURA
A22: 210000 : GOBIERNO REGIONAL DE PUNO
A23: 220000 : GOBIERNO REGIONAL DE SAN MARTIN
A24: 230000 : GOBIERNO REGIONAL DE TACNA
A25: 240000 : GOBIERNO REGIONAL DE TUMBES
A26: 250000 : GOBIERNO REGIONAL DE UCAYALI
A27: 260000 : REGION LIMA METROPOLITANA

Sheet TIPOGOB (hidden)
A1: TIPOGOB
A2: Gobiernos Locales
A3: Gobiernos Regionales
A6: No Cumple
A7: Si Cumple
